Workbook

Sheet Generation Summary
A1: Date
A2: 2022-01-01 | B2: =A2 -> 2022-01-01 | E2: Enter in fields that are highlighted yellow.
A3: =MONTH(A2) -> 1
A4: % Share of Rocky Reach | B4: 0.05
A5: % Share of Rock Island | B5: 0.05
A8: Chief Joseph Daily Avg Disch (kcfs) | B8: 90 | H8: Rocky Reach Water Estimate (kcfs) | I8: =B8+B9+B10+B11+B12-I11 -> 94.2
A9: Okanogan Daily Avg Disch (kcfs) | B9: 1.2 | H9: Rock Island Water Estimate (kcfs) | I9: =B8+B9+B10+B11+B12+B13-I12 -> 95.4
A10: Methow Daily Avg Disch (kcfs) | B10: 0.4
A11: Entiat Daily Avg Disch (kcfs) | B11: 0.1 | H11: Rocky Reach Avg Fish Spill (kcfs) | I11: =AVERAGE('Rocky Reach Inflow'!D5:D6,'Rocky Reach Inflow'!D8:D29) -> 0
A12: Lake Chelan Daily Avg Disch (kcfs) | B12: 2.5 | H12: Rock Island Avg Fish Spill (kcfs) | I12: =AVERAGE('Rock Island Inflow'!D5:D6,'Rock Island Inflow'!D8:D29) -> 0
A13: Wenatchee Daily Avg Disch (kcfs) | B13: 1.2
A15: Hour | B15: 1 | C15: 2 | D15: 2B | E15: 3 | F15: 4 | G15: 5 | H15: 6 | I15: 7 | J15: 8 | K15: 9 | L15: 10 | M15: 11 | N15: 12 | O15: 13 | P15: 14 | Q15: 15 | R15: 16 | S15: 17 | T15: 18 | U15: 19 | V15: 20 | W15: 21 | X15: 22 | Y15: 23 | Z15: 24 | AA15: Day
A17: RR/RI Comb Inflows Hourly Shape | B17: 0.91 | C17: 0.8 | D17: 0 | E17: 0.7170906964 | F17: 0.7026948695 | G17: 0.6630687325 | H17: 0.7222297814 | I17: 0.7914039801 | J17: 1.012004952 | K17: 1.07369851 | L17: 1.140999905 | M17: 1.134545874 | N17: 1.067002224 | O17: 1.002521106 | P17: 0.9594175753 | Q17: 0.9672682098 | R17: 0.9997095758 | S17: 1.051736172 | T17: 1.114969723 | U17: 1.208239306 | V17: 1.242516402 | W17: 1.239873355 | X17: 1.253528403 | Y17: 1.227900297 | Z17: 1.00159259
A19: Total RR/RI Capability | B19: ='Rocky Reach Capability'!$U10-B34+'Rock Island Capability'!$AB10-B35 -> 77.775 | C19: ='Rocky Reach Capability'!$U11-C34+'Rock Island Capability'!$AB11-C35 -> 77.775 | D19: ='Rocky Reach Capability'!$U12-D34+'Rock Island Capability'!$AB12-D35 -> 0 | E19: ='Rocky Reach Capability'!$U13-E34+'Rock Island Capability'!$AB13-E35 -> 77.775 | F19: ='Rocky Reach Capability'!$U14-F34+'Rock Island Capability'!$AB14-F35 -> 77.775 | G19: ='Rocky Reach Capability'!$U15-G34+'Rock Island Capability'!$AB15-G35 -> 77.775 | H19: ='Rocky Reach Capability'!$U16-H34+'Rock Island Capability'!$AB16-H35 -> 77.775 | I19: ='Rocky Reach Capability'!$U17-I34+'Rock Island Capability'!$AB17-I35 -> 77.775 | J19: ='Rocky Reach Capability'!$U18-J34+'Rock Island Capability'!$AB18-J35 -> 77.775 | K19: ='Rocky Reach Capability'!$U19-K34+'Rock Island Capability'!$AB19-K35 -> 77.775 | L19: ='Rocky Reach Capability'!$U20-L34+'Rock Island Capability'!$AB20-L35 -> 77.775 | M19: ='Rocky Reach Capability'!$U21-M34+'Rock Island Capability'!$AB21-M35 -> 77.775 | N19: ='Rocky Reach Capability'!$U22-N34+'Rock Island Capability'!$AB22-N35 -> 77.775 | O19: ='Rocky Reach Capability'!$U23-O34+'Rock Island Capability'!$AB23-O35 -> 77.775 | P19: ='Rocky Reach Capability'!$U24-P34+'Rock Island Capability'!$AB24-P35 -> 77.775 | Q19: ='Rocky Reach Capability'!$U25-Q34+'Rock Island Capability'!$AB25-Q35 -> 77.775 | R19: ='Rocky Reach Capability'!$U26-R34+'Rock Island Capability'!$AB26-R35 -> 77.775 | S19: ='Rocky Reach Capability'!$U27-S34+'Rock Island Capability'!$AB27-S35 -> 77.775 | T19: ='Rocky Reach Capability'!$U28-T34+'Rock Island Capability'!$AB28-T35 -> 77.775 | U19: ='Rocky Reach Capability'!$U29-U34+'Rock Island Capability'!$AB29-U35 -> 77.775 | V19: ='Rocky Reach Capability'!$U30-V34+'Rock Island Capability'!$AB30-V35 -> 77.775 | W19: ='Rocky Reach Capability'!$U31-W34+'Rock Island Capability'!$AB31-W35 -> 77.775 | X19: ='Rocky Reach Capability'!$U32-X34+'Rock Island Capability'!$AB32-X35 -> 77.775 | Y19: ='Rocky Reach Capability'!$U33-Y34+'Rock Island Capability'!$AB33-Y35 -> 77.775 | Z19: ='Rocky Reach Capability'!$U34-Z34+'Rock Island Capability'!$AB34-Z35 -> 77.775
A22: RR/RI Slice Share Min Project Gen Limits | B22: 14 | C22: 14 | E22: 14 | F22: 14 | G22: 14 | H22: 14 | I22: 8 | J22: 6 | K22: 6 | L22: 6 | M22: 6 | N22: 6 | O22: 6 | P22: 6 | Q22: 6 | R22: 6 | S22: 6 | T22: 6 | U22: 6 | V22: 6 | W22: 6 | X22: 6 | Y22: 6 | Z22: 6 | AA22: =SUM(B22:Z22) -> 194
A23: Total RR/RI Minimum Net Generation | B23: =IF(B22<(B31+B32),0,(B22-(B31+B32))) -> 14 | C23: =IF(C22<(C31+C32),0,(C22-(C31+C32))) -> 14 | D23: 0 | E23: 14 | F23: 14 | G23: 14 | H23: 14 | I23: =IF(I22<(I31+I32),0,(I22-(I31+I32))) -> 4 | J23: 1 | K23: 1 | L23: 1 | M23: 0 | N23: 1 | O23: 2 | P23: 2 | Q23: 1 | R23: 2 | S23: 0 | T23: 2 | U23: 2 | V23: 1 | W23: 1 | X23: 1 | Y23: 6 | Z23: 6 | AA23: 118
A25: Total RR/RI Inflow (MWH) | B25: ='Rocky Reach Inflow'!$L5+'Rock Island Inflow'!$L5 -> 46.61741603 | C25: ='Rocky Reach Inflow'!$L6+'Rock Island Inflow'!$L6 -> 41.62344404 | D25: ='Rocky Reach Inflow'!$L7+'Rock Island Inflow'!$L7 -> 0 | E25: ='Rocky Reach Inflow'!$L8+'Rock Island Inflow'!$L8 -> 37.75667662 | F25: ='Rocky Reach Inflow'!$L9+'Rock Island Inflow'!$L9 -> 37.07558338 | G25: ='Rocky Reach Inflow'!$L10+'Rock Island Inflow'!$L10 -> 35.18523137 | H25: ='Rocky Reach Inflow'!$L11+'Rock Island Inflow'!$L11 -> 37.99910182 | I25: ='Rocky Reach Inflow'!$L12+'Rock Island Inflow'!$L12 -> 41.22681802 | J25: ='Rocky Reach Inflow'!$L13+'Rock Island Inflow'!$L13 -> 51.12355168 | K25: ='Rocky Reach Inflow'!$L14+'Rock Island Inflow'!$L14 -> 53.79600405 | L25: ='Rocky Reach Inflow'!$L15+'Rock Island Inflow'!$L15 -> 56.66936923 | M25: ='Rocky Reach Inflow'!$L16+'Rock Island Inflow'!$L16 -> 56.39564518 | N25: ='Rocky Reach Inflow'!$L17+'Rock Island Inflow'!$L17 -> 53.5077594 | O25: ='Rocky Reach Inflow'!$L18+'Rock Island Inflow'!$L18 -> 50.70930661 | P25: ='Rocky Reach Inflow'!$L19+'Rock Island Inflow'!$L19 -> 48.81463205 | Q25: ='Rocky Reach Inflow'!$L20+'Rock Island Inflow'!$L20 -> 49.16120007 | R25: ='Rocky Reach Inflow'!$L21+'Rock Island Inflow'!$L21 -> 50.58632198 | S25: ='Rocky Reach Inflow'!$L22+'Rock Island Inflow'!$L22 -> 52.8489852 | T25: ='Rocky Reach Inflow'!$L23+'Rock Island Inflow'!$L23 -> 55.56305915 | U25: ='Rocky Reach Inflow'!$L24+'Rock Island Inflow'!$L24 -> 59.49902788 | V25: ='Rocky Reach Inflow'!$L25+'Rock Island Inflow'!$L25 -> 60.92653654 | W25: ='Rocky Reach Inflow'!$L26+'Rock Island Inflow'!$L26 -> 60.81681348 | X25: ='Rocky Reach Inflow'!$L27+'Rock Island Inflow'!$L27 -> 61.38306634 | Y25: ='Rocky Reach Inflow'!$L28+'Rock Island Inflow'!$L28 -> 60.31903809 | Z25: ='Rocky Reach Inflow'!$L29+'Rock Island Inflow'!$L29 -> 50.66869971 | AA25: =SUM(B25:Z25) -> 1210.273288
A27: Total Purchases/Imports | B27: 0 | C27: 0 | D27: 0 | E27: 0 | F27: 0 | G27: 0 | H27: 0 | I27: 0 | J27: 0 | K27: 0 | L27: 0 | M27: 0 | N27: 0 | O27: 0 | P27: 0 | Q27: 0 | R27: 0 | S27: 0 | T27: 0 | U27: 0 | V27: 0 | W27: 0 | X27: 0 | Y27: 0 | Z27: 0 | AA27: =SUM(B27:Z27) -> 0
A28: Total Sales/Exports | B28: 45 | C28: 45 | D28: 0 | E28: 45 | F28: 45 | G28: 45 | H28: 45 | I28: 45 | J28: 45 | K28: 45 | L28: 45 | M28: 45 | N28: 45 | O28: 45 | P28: 45 | Q28: 45 | R28: 45 | S28: 45 | T28: 45 | U28: 45 | V28: 45 | W28: 45 | X28: 45 | Y28: 45 | Z28: 45 | AA28: =SUM(B28:Z28) -> 1080
A29: Net Purchases/(Sales) | B29: =B27-B28 -> -45 | C29: -45 | D29: 0 | E29: -45 | F29: -45 | G29: -45 | H29: -45 | I29: -45 | J29: -45 | K29: -45 | L29: -45 | M29: -45 | N29: -45 | O29: -45 | P29: -45 | Q29: -45 | R29: -45 | S29: -45 | T29: -45 | U29: -45 | V29: -45 | W29: -45 | X29: -45 | Y29: -45 | Z29: -45 | AA29: -1080
A31: Rocky Reach Canadian Entitlement | B31: =VLOOKUP($A$2,'RR CEAEA'!$A$7:$AA$371,3,FALSE) -> 0 | C31: =VLOOKUP($A$2,'RR CEAEA'!$A$7:$AA$371,4,FALSE) -> 0 | D31: =VLOOKUP($A$2,'RR CEAEA'!$A$7:$AA$371,5,FALSE) -> 0 | E31: =VLOOKUP($A$2,'RR CEAEA'!$A$7:$AA$371,6,FALSE) -> 0 | F31: =VLOOKUP($A$2,'RR CEAEA'!$A$7:$AA$371,7,FALSE) -> 0 | G31: =VLOOKUP($A$2,'RR CEAEA'!$A$7:$AA$371,8,FALSE) -> 0 | H31: =VLOOKUP($A$2,'RR CEAEA'!$A$7:$AA$371,9,FALSE) -> 0 | I31: =VLOOKUP($A$2,'RR CEAEA'!$A$7:$AA$371,10,FALSE) -> 3 | J31: =VLOOKUP($A$2,'RR CEAEA'!$A$7:$AA$371,11,FALSE) -> 3 | K31: =VLOOKUP($A$2,'RR CEAEA'!$A$7:$AA$371,12,FALSE) -> 3 | L31: =VLOOKUP($A$2,'RR CEAEA'!$A$7:$AA$371,13,FALSE) -> 4 | M31: =VLOOKUP($A$2,'RR CEAEA'!$A$7:$AA$371,14,FALSE) -> 4 | N31: =VLOOKUP($A$2,'RR CEAEA'!$A$7:$AA$371,15,FALSE) -> 4 | O31: =VLOOKUP($A$2,'RR CEAEA'!$A$7:$AA$371,16,FALSE) -> 3 | P31: =VLOOKUP($A$2,'RR CEAEA'!$A$7:$AA$371,17,FALSE) -> 3 | Q31: =VLOOKUP($A$2,'RR CEAEA'!$A$7:$AA$371,18,FALSE) -> 3 | R31: =VLOOKUP($A$2,'RR CEAEA'!$A$7:$AA$371,19,FALSE) -> 3 | S31: =VLOOKUP($A$2,'RR CEAEA'!$A$7:$AA$371,20,FALSE) -> 4 | T31: =VLOOKUP($A$2,'RR CEAEA'!$A$7:$AA$371,21,FALSE) -> 3 | U31: =VLOOKUP($A$2,'RR CEAEA'!$A$7:$AA$371,22,FALSE) -> 3 | V31: =VLOOKUP($A$2,'RR CEAEA'!$A$7:$AA$371,23,FALSE) -> 3 | W31: =VLOOKUP($A$2,'RR CEAEA'!$A$7:$AA$371,24,FALSE) -> 3 | X31: =VLOOKUP($A$2,'RR CEAEA'!$A$7:$AA$371,25,FALSE) -> 3 | Y31: =VLOOKUP($A$2,'RR CEAEA'!$A$7:$AA$371,26,FALSE) -> 0 | Z31: =VLOOKUP($A$2,'RR CEAEA'!$A$7:$AA$371,27,FALSE) -> 0 | AA31: =SUM(B31:Z31) -> 52
A32: Rock Island Canadian Entitlement | B32: =VLOOKUP($A$2,'RI CEAEA'!$A$7:$AA$371,3,FALSE) -> 0 | C32: =VLOOKUP($A$2,'RI CEAEA'!$A$7:$AA$371,4,FALSE) -> 0 | D32: =VLOOKUP($A$2,'RI CEAEA'!$A$7:$AA$371,5,FALSE) -> 0 | E32: =VLOOKUP($A$2,'RI CEAEA'!$A$7:$AA$371,6,FALSE) -> 0 | F32: =VLOOKUP($A$2,'RI CEAEA'!$A$7:$AA$371,7,FALSE) -> 0 | G32: =VLOOKUP($A$2,'RI CEAEA'!$A$7:$AA$371,8,FALSE) -> 0 | H32: =VLOOKUP($A$2,'RI CEAEA'!$A$7:$AA$371,9,FALSE) -> 0 | I32: =VLOOKUP($A$2,'RI CEAEA'!$A$7:$AA$371,10,FALSE) -> 1 | J32: =VLOOKUP($A$2,'RI CEAEA'!$A$7:$AA$371,11,FALSE) -> 2 | K32: =VLOOKUP($A$2,'RI CEAEA'!$A$7:$AA$371,12,FALSE) -> 2 | L32: =VLOOKUP($A$2,'RI CEAEA'!$A$7:$AA$371,13,FALSE) -> 1 | M32: =VLOOKUP($A$2,'RI CEAEA'!$A$7:$AA$371,14,FALSE) -> 2 | N32: =VLOOKUP($A$2,'RI CEAEA'!$A$7:$AA$371,15,FALSE) -> 1 | O32: =VLOOKUP($A$2,'RI CEAEA'!$A$7:$AA$371,16,FALSE) -> 1 | P32: =VLOOKUP($A$2,'RI CEAEA'!$A$7:$AA$371,17,FALSE) -> 1 | Q32: =VLOOKUP($A$2,'RI CEAEA'!$A$7:$AA$371,18,FALSE) -> 2 | R32: =VLOOKUP($A$2,'RI CEAEA'!$A$7:$AA$371,19,FALSE) -> 1 | S32: =VLOOKUP($A$2,'RI CEAEA'!$A$7:$AA$371,20,FALSE) -> 2 | T32: =VLOOKUP($A$2,'RI CEAEA'!$A$7:$AA$371,21,FALSE) -> 1 | U32: =VLOOKUP($A$2,'RI CEAEA'!$A$7:$AA$371,22,FALSE) -> 1 | V32: =VLOOKUP($A$2,'RI CEAEA'!$A$7:$AA$371,23,FALSE) -> 2 | W32: =VLOOKUP($A$2,'RI CEAEA'!$A$7:$AA$371,24,FALSE) -> 2 | X32: =VLOOKUP($A$2,'RI CEAEA'!$A$7:$AA$371,25,FALSE) -> 2 | Y32: =VLOOKUP($A$2,'RI CEAEA'!$A$7:$AA$371,26,FALSE) -> 0 | Z32: =VLOOKUP($A$2,'RI CEAEA'!$A$7:$AA$371,27,FALSE) -> 0 | AA32: =SUM(B32:Z32) -> 24
A34: Rocky Reach Immediate Spill | B34: 0 | C34: 0 | D34: 0 | E34: 0 | F34: 0 | G34: 0 | H34: 0 | I34: 0 | J34: 0 | K34: 0 | L34: 0 | M34: 0 | N34: 0 | O34: 0 | P34: 0 | Q34: 0 | R34: 0 | S34: 0 | T34: 0 | U34: 0 | V34: 0 | W34: 0 | X34: 0 | Y34: 0 | Z34: 0 | AA34: =SUM(B34:Z34) -> 0
A35: Rock Island Immediate Spill | B35: 0 | C35: 0 | D35: 0 | E35: 0 | F35: 0 | G35: 0 | H35: 0 | I35: 0 | J35: 0 | K35: 0 | L35: 0 | M35: 0 | N35: 0 | O35: 0 | P35: 0 | Q35: 0 | R35: 0 | S35: 0 | T35: 0 | U35: 0 | V35: 0 | W35: 0 | X35: 0 | Y35: 0 | Z35: 0 | AA35: =SUM(B35:Z35) -> 0
A37: Net Requirements/Allocated Gen | B37: =IF(B22> (-B29+B31+B32-B34-B35), B22, (-B29+B31+B32-B34-B35)) -> 45 | C37: 45 | D37: 0 | E37: 45 | F37: 45 | G37: 45 | H37: 45 | I37: 49 | J37: 50 | K37: 50 | L37: 50 | M37: 51 | N37: 50 | O37: 49 | P37: 49 | Q37: 50 | R37: 49 | S37: 51 | T37: 49 | U37: 49 | V37: 50 | W37: 50 | X37: 50 | Y37: 45 | Z37: 45 | AA37: =SUM(B37:Z37) -> 1156
A39: Remaining Capability Available | B39: =B19-B37 -> 32.775 | C39: 32.775 | D39: 0 | E39: 32.775 | F39: 32.775 | G39: 32.775 | H39: 32.775 | I39: 28.775 | J39: 27.775 | K39: 27.775 | L39: 27.775 | M39: 26.775 | N39: 27.775 | O39: 28.775 | P39: 28.775 | Q39: 27.775 | R39: 28.775 | S39: 26.775 | T39: 28.775 | U39: 28.775 | V39: 27.775 | W39: 27.775 | X39: 27.775 | Y39: 32.775 | Z39: 32.775 | AA39: =SUM(B39:Z39) -> 710.6
I44: RR/RI COMBINED POND DAILY EXCESS OR (DEFICIENT) | Q44: =AA25-AA37 -> 54.27328792
A47: For Use on Real-Time - References Pond Tab
A48: Negative RR/RI Actual Comb Pond | B48: =IF(Pond!D19<0,Pond!D19,"") ->  | C48: =IF(Pond!E19<0,Pond!E19,"") ->  | D48: =IF(Pond!F19<0,Pond!F19,"") ->  | E48: =IF(Pond!G19<0,Pond!G19,"") ->  | F48: =IF(Pond!H19<0,Pond!H19,"") ->  | G48: =IF(Pond!I19<0,Pond!I19,"") ->  | H48: =IF(Pond!J19<0,Pond!J19,"") ->  | I48: =IF(Pond!K19<0,Pond!K19,"") ->  | J48: =IF(Pond!L19<0,Pond!L19,"") ->  | K48: =IF(Pond!M19<0,Pond!M19,"") ->  | L48: =IF(Pond!N19<0,Pond!N19,"") ->  | M48: =IF(Pond!O19<0,Pond!O19,"") ->  | N48: =IF(Pond!P19<0,Pond!P19,"") ->  | O48: =IF(Pond!Q19<0,Pond!Q19,"") ->  | P48: =IF(Pond!R19<0,Pond!R19,"") ->  | Q48: =IF(Pond!S19<0,Pond!S19,"") ->  | R48: =IF(Pond!T19<0,Pond!T19,"") ->  | S48: =IF(Pond!U19<0,Pond!U19,"") ->  | T48: =IF(Pond!V19<0,Pond!V19,"") ->  | U48: =IF(Pond!W19<0,Pond!W19,"") ->  | V48: =IF(Pond!X19<0,Pond!X19,"") ->  | W48: =IF(Pond!Y19<0,Pond!Y19,"") ->  | X48: =IF(Pond!Z19<0,Pond!Z19,"") ->  | Y48: =IF(Pond!AA19<0,Pond!AA19,"") ->  | Z48: =IF(Pond!AB19<0,Pond!AB19,"") ->  | AA48: =SUM(B48:Z48) -> 0
A49: RR Spill | B49: =Pond!D9 -> 0 | C49: =Pond!E9 -> 0 | D49: =Pond!F9 -> 0 | E49: =Pond!G9 -> 0 | F49: =Pond!H9 -> 0 | G49: =Pond!I9 -> 0 | H49: =Pond!J9 -> 0 | I49: =Pond!K9 -> 0 | J49: =Pond!L9 -> 0 | K49: =Pond!M9 -> 0 | L49: =Pond!N9 -> 0 | M49: =Pond!O9 -> 0 | N49: =Pond!P9 -> 0 | O49: =Pond!Q9 -> 0 | P49: =Pond!R9 -> 0 | Q49: =Pond!S9 -> 0 | R49: =Pond!T9 -> 0 | S49: =Pond!U9 -> 0 | T49: =Pond!V9 -> 0 | U49: =Pond!W9 -> 0 | V49: =Pond!X9 -> 0 | W49: =Pond!Y9 -> 0 | X49: =Pond!Z9 -> 0 | Y49: =Pond!AA9 -> 0 | Z49: =Pond!AB9 -> 0 | AA49: =SUM(B49:Z49) -> 0
A50: RI Spill | B50: =Pond!D15 -> 0 | C50: =Pond!E15 -> 0 | D50: =Pond!F15 -> 0 | E50: =Pond!G15 -> 0 | F50: =Pond!H15 -> 0 | G50: =Pond!I15 -> 0 | H50: =Pond!J15 -> 0 | I50: =Pond!K15 -> 0 | J50: =Pond!L15 -> 0 | K50: =Pond!M15 -> 0 | L50: =Pond!N15 -> 0 | M50: =Pond!O15 -> 0 | N50: =Pond!P15 -> 0 | O50: =Pond!Q15 -> 0 | P50: =Pond!R15 -> 0 | Q50: =Pond!S15 -> 0 | R50: =Pond!T15 -> 0 | S50: =Pond!U15 -> 0 | T50: =Pond!V15 -> 0 | U50: =Pond!W15 -> 0 | V50: =Pond!X15 -> 0 | W50: =Pond!Y15 -> 0 | X50: =Pond!Z15 -> 0 | Y50: =Pond!AA15 -> 0 | Z50: =Pond!AB15 -> 0 | AA50: =SUM(B50:Z50) -> 0

Sheet Pond
A1: NOTE - Inputs on this tab are to be filled in on Real Time to assist with pond mgmt. | J1: POND
A2: The estimated pond (line 21) is calculated for assistance on Preschedule & Real-Time. | J2: Hourly Inflows (MWH) & End Of Hour Accounts (MWH)
A4: HOUR | C4: 24 | D4: 1 | E4: 2 | F4: 2B | G4: 3 | H4: 4 | I4: 5 | J4: 6 | K4: 7 | L4: 8 | M4: 9 | N4: 10 | O4: 11 | P4: 12 | Q4: 13 | R4: 14 | S4: 15 | T4: 16 | U4: 17 | V4: 18 | W4: 19 | X4: 20 | Y4: 21 | Z4: 22 | AA4: 23 | AB4: 24
A5: RR pond limit | B5: =2970*'Generation Summary'!B4 -> 148.5
A6: Wells Discharge (kcfs) | AC6: =SUM(D6:AB6) -> 0
A7: RR Inflow | AC7: 0
A8: RR Allocated Gen | AC8: 0
A9: RR Pond Spill | AC9: =SUM(D9:AB9) -> 0
A10: RR End of Hour | C10: 30
A11: Deferred Spill Return | B11: 0
A12: RI pond limit | B12: =418*'Generation Summary'!B5 -> 20.9
A13: RI Inflow | C13: 0 | D13: 0 | E13: 0 | F13: 0 | G13: 0 | H13: 0 | I13: 0 | J13: 0 | K13: 0 | L13: 0 | M13: 0 | N13: 0 | O13: 0 | P13: 0 | Q13: 0 | R13: 0 | S13: 0 | T13: 0 | U13: 0 | V13: 0 | W13: 0 | X13: 0 | Y13: 0 | Z13: 0 | AA13: 0 | AB13: 0 | AC13: =SUM(D13:AB13) -> 0
A14: RI Allocated Gen | C14: 0 | D14: 0 | E14: 0 | F14: 0 | G14: 0 | H14: 0 | I14: 0 | J14: 0 | K14: 0 | L14: 0 | M14: 0 | N14: 0 | O14: 0 | P14: 0 | Q14: 0 | R14: 0 | S14: 0 | T14: 0 | U14: 0 | V14: 0 | W14: 0 | X14: 0 | Y14: 0 | Z14: 0 | AA14: 0 | AB14: 0 | AC14: 0
A15: RI Pond Spill | C15: 0 | D15: 0 | E15: 0 | F15: 0 | G15: 0 | H15: 0 | I15: 0 | J15: 0 | K15: 0 | L15: 0 | M15: 0 | N15: 0 | O15: 0 | P15: 0 | Q15: 0 | R15: 0 | S15: 0 | T15: 0 | U15: 0 | V15: 0 | W15: 0 | X15: 0 | Y15: 0 | Z15: 0 | AA15: 0 | AB15: 0 | AC15: =SUM(D15:AB15) -> 0
A16: RI End of Hour | C16: 0 | D16: 0 | E16: 0 | F16: 0 | G16: 0 | H16: 0 | I16: 0 | J16: 0 | K16: 0 | L16: 0 | M16: 0 | N16: 0 | O16: 0 | P16: 0 | Q16: 0 | R16: 0 | S16: 0 | T16: 0 | U16: 0 | V16: 0 | W16: 0 | X16: 0 | Y16: 0 | Z16: 0 | AA16: 0 | AB16: 0
A18: Comb pond limit | B18: =B5+B12 -> 169.4
A19: RR/RI Actual Comb Pond | C19: =C16+C10 -> 30 | D19: 0 | E19: 0 | F19: 0 | G19: 0 | H19: 0 | I19: 0 | J19: 0 | K19: 0 | L19: 0 | M19: 0 | N19: 0 | O19: 0 | P19: 0 | Q19: 0 | R19: 0 | S19: 0 | T19: 0 | U19: 0 | V19: 0 | W19: 0 | X19: 0 | Y19: 0 | Z19: 0 | AA19: 0 | AB19: 0
A21: Estimated Comb Pond (MWH) | D21: =B11+C19+'Rocky Reach Inflow'!L5+'Rock Island Inflow'!L5-'Generation Summary'!B37-D33-D34-D35-D36-D37 -> 31.61741603 | E21: =IF(D10=0,D21,D19)+'Rocky Reach Inflow'!L6+'Rock Island Inflow'!L6-'Generation Summary'!C37-E33-E34-E35-E36-E37 -> 28.24086007 | F21: =IF(E10=0,E21,E19)+'Rocky Reach Inflow'!L7+'Rock Island Inflow'!L7-'Generation Summary'!D37-F33-F34-F35-F36-F37 -> 28.24086007 | G21: =IF(F10=0,F21,F19)+'Rocky Reach Inflow'!L8+'Rock Island Inflow'!L8-'Generation Summary'!E37-G33-G34-G35-G36-G37 -> 20.99753669 | H21: =IF(G10=0,G21,G19)+'Rocky Reach Inflow'!L9+'Rock Island Inflow'!L9-'Generation Summary'!F37-H33-H34-H35-H36-H37 -> 13.07312007 | I21: =IF(H10=0,H21,H19)+'Rocky Reach Inflow'!L10+'Rock Island Inflow'!L10-'Generation Summary'!G37-I33-I34-I35-I36-I37 -> 3.258351437 | J21: =IF(I10=0,I21,I19)+'Rocky Reach Inflow'!L11+'Rock Island Inflow'!L11-'Generation Summary'!H37-J33-J34-J35-J36-J37 -> -3.742546739 | K21: =IF(J10=0,J21,J19)+'Rocky Reach Inflow'!L12+'Rock Island Inflow'!L12-'Generation Summary'!I37-K33-K34-K35-K36-K37 -> -11.51572872 | L21: =IF(K10=0,K21,K19)+'Rocky Reach Inflow'!L13+'Rock Island Inflow'!L13-'Generation Summary'!J37-L33-L34-L35-L36-L37 -> -10.39217704 | M21: =IF(L10=0,L21,L19)+'Rocky Reach Inflow'!L14+'Rock Island Inflow'!L14-'Generation Summary'!K37-M33-M34-M35-M36-M37 -> -6.59617299 | N21: =IF(M10=0,M21,M19)+'Rocky Reach Inflow'!L15+'Rock Island Inflow'!L15-'Generation Summary'!L37-N33-N34-N35-N36-N37 -> 0.07319623747 | O21: =IF(N10=0,N21,N19)+'Rocky Reach Inflow'!L16+'Rock Island Inflow'!L16-'Generation Summary'!M37-O33-O34-O35-O36-O37 -> 5.468841422 | P21: =IF(O10=0,O21,O19)+'Rocky Reach Inflow'!L17+'Rock Island Inflow'!L17-'Generation Summary'!N37-P33-P34-P35-P36-P37 -> 8.976600819 | Q21: =IF(P10=0,P21,P19)+'Rocky Reach Inflow'!L18+'Rock Island Inflow'!L18-'Generation Summary'!O37-Q33-Q34-Q35-Q36-Q37 -> 10.68590743 | R21: =IF(Q10=0,Q21,Q19)+'Rocky Reach Inflow'!L19+'Rock Island Inflow'!L19-'Generation Summary'!P37-R33-R34-R35-R36-R37 -> 10.50053949 | S21: =IF(R10=0,R21,R19)+'Rocky Reach Inflow'!L20+'Rock Island Inflow'!L20-'Generation Summary'!Q37-S33-S34-S35-S36-S37 -> 9.661739553 | T21: =IF(S10=0,S21,S19)+'Rocky Reach Inflow'!L21+'Rock Island Inflow'!L21-'Generation Summary'!R37-T33-T34-T35-T36-T37 -> 11.24806153 | U21: =IF(T10=0,T21,T19)+'Rocky Reach Inflow'!L22+'Rock Island Inflow'!L22-'Generation Summary'!S37-U33-U34-U35-U36-U37 -> 13.09704673 | V21: =IF(U10=0,U21,U19)+'Rocky Reach Inflow'!L23+'Rock Island Inflow'!L23-'Generation Summary'!T37-V33-V34-V35-V36-V37 -> 19.66010588 | W21: =IF(V10=0,V21,V19)+'Rocky Reach Inflow'!L24+'Rock Island Inflow'!L24-'Generation Summary'!U37-W33-W34-W35-W36-W37 -> 30.15913376 | X21: =IF(W10=0,W21,W19)+'Rocky Reach Inflow'!L25+'Rock Island Inflow'!L25-'Generation Summary'!V37-X33-X34-X35-X36-X37 -> 41.0856703 | Y21: =IF(X10=0,X21,X19)+'Rocky Reach Inflow'!L26+'Rock Island Inflow'!L26-'Generation Summary'!W37-Y33-Y34-Y35-Y36-Y37 -> 51.90248378 | Z21: =IF(Y10=0,Y21,Y19)+'Rocky Reach Inflow'!L27+'Rock Island Inflow'!L27-'Generation Summary'!X37-Z33-Z34-Z35-Z36-Z37 -> 63.28555012 | AA21: =IF(Z10=0,Z21,Z19)+'Rocky Reach Inflow'!L28+'Rock Island Inflow'!L28-'Generation Summary'!Y37-AA33-AA34-AA35-AA36-AA37 -> 78.60458821 | AB21: =IF(AA10=0,AA21,AA19)+'Rocky Reach Inflow'!L29+'Rock Island Inflow'!L29-'Generation Summary'!Z37-AB33-AB34-AB35-AB36-AB37 -> 84.27328792
A32: POND TRANSFERS/SALES/(BUYS) | D32: 1 | E32: 2 | F32: 2B | G32: 3 | H32: 4 | I32: 5 | J32: 6 | K32: 7 | L32: 8 | M32: 9 | N32: 10 | O32: 11 | P32: 12 | Q32: 13 | R32: 14 | S32: 15 | T32: 16 | U32: 17 | V32: 18 | W32: 19 | X32: 20 | Y32: 21 | Z32: 22 | AA32: 23 | AB32: 24
A33: Transfer/Transaction #1
A34: Transfer/Transaction #2
A35: Transfer/Transaction #3
A36: Transfer/Transaction #4
A37: Transfer/Transaction #5

Sheet Rocky Reach Inflow
A1: Rocky Reach Inflow
H2: Estimated | I2: RI - RR | J2: RR - LKCH | K2: Net Estimated | L2: Slice Share
C3: Shaped Inflow | D3: Fish Spill | E3: Max. Discharge | F3: Headwater Spill | G3: RR Plant | H3: Inflow | I3: Encroachment | J3: Encroachment | K3: Inflow | L3: Inflow
A4: Hour | B4: Water Shape | C4: (KCFS) | D4: (KCFS) | E4: (KCFS) | F4: (KCFS) | G4: H/K | H4: (MWH) | I4: (MWH) | J4: (MWH) | K4: (MWH) | L4: (MWH)
A5: Hour 1 | B5: ='Generation Summary'!B$17 -> 0.91 | C5: =('Generation Summary'!$B$8+'Generation Summary'!$B$9+'Generation Summary'!$B$10+'Generation Summary'!$B$11+'Generation Summary'!$B$12)*'Rocky Reach Inflow'!B5 -> 85.722 | D5: 0 | E5: 201 | F5: =IF(C5-D5>E5,C5-D5-E5,0) -> 0 | G5: =-0.0042*C5+7.3091 -> 6.9490676 | H5: =IF('Rocky Reach Capability'!Q10<(C5-D5-F5)*G5,'Rocky Reach Capability'!Q10,(C5-D5-F5)*G5) -> 595.6879728 | I5: =-'Rock Island Inflow'!J5 -> 22.15105479 | J5: =IF(C5=0, 0,'Rocky Reach Capability'!S10) -> -4 | K5: =(H5+I5+J5) -> 613.8390276 | L5: =K5*'Generation Summary'!$B$4 -> 30.69195138
A6: Hour 2 | B6: ='Generation Summary'!C$17 -> 0.8 | C6: =('Generation Summary'!$B$8+'Generation Summary'!$B$9+'Generation Summary'!$B$10+'Generation Summary'!$B$11+'Generation Summary'!$B$12)*'Rocky Reach Inflow'!B6 -> 75.36 | D6: 0 | E6: 201 | F6: =IF(C6-D6>E6,C6-D6-E6,0) -> 0 | G6: =-0.0042*C6+7.3091 -> 6.992588 | H6: =IF('Rocky Reach Capability'!Q11<(C6-D6-F6)*G6,'Rocky Reach Capability'!Q11,(C6-D6-F6)*G6) -> 526.9614317 | I6: =-'Rock Island Inflow'!J6 -> 20.93320912 | J6: =IF(C6=0, 0,'Rocky Reach Capability'!S11) -> -4 | K6: =(H6+I6+J6) -> 543.8946408 | L6: =K6*'Generation Summary'!$B$4 -> 27.19473204
A7: Hour 2B | B7: ='Generation Summary'!D$17 -> 0 | C7: =('Generation Summary'!$B$8+'Generation Summary'!$B$9+'Generation Summary'!$B$10+'Generation Summary'!$B$11+'Generation Summary'!$B$12)*'Rocky Reach Inflow'!B7 -> 0 | E7: 201 | F7: 0 | G7: 7.3091 | H7: =IF('Rocky Reach Capability'!Q12<(C7-D7-F7)*G7,'Rocky Reach Capability'!Q12,(C7-D7-F7)*G7) -> 0 | I7: =-'Rock Island Inflow'!J7 -> -0.4147475 | J7: =IF(C7=0, 0,'Rocky Reach Capability'!S12) -> 0 | K7: -0.4147475 | L7: =K7*'Generation Summary'!$B$4 -> -0.020737375
A8: Hour 3 | B8: ='Generation Summary'!E$17 -> 0.7170906964 | C8: =('Generation Summary'!$B$8+'Generation Summary'!$B$9+'Generation Summary'!$B$10+'Generation Summary'!$B$11+'Generation Summary'!$B$12)*'Rocky Reach Inflow'!B8 -> 67.5499436 | D8: 0 | E8: 201 | F8: 0 | G8: 7.025390237 | H8: =IF('Rocky Reach Capability'!Q13<(C8-D8-F8)*G8,'Rocky Reach Capability'!Q13,(C8-D8-F8)*G8) -> 474.5647143 | I8: =-'Rock Island Inflow'!J8 -> 19.82694081 | J8: =IF(C8=0, 0,'Rocky Reach Capability'!S13) -> -4 | K8: 490.3916551 | L8: =K8*'Generation Summary'!$B$4 -> 24.51958275
A9: Hour 4 | B9: ='Generation Summary'!F$17 -> 0.7026948695 | C9: =('Generation Summary'!$B$8+'Generation Summary'!$B$9+'Generation Summary'!$B$10+'Generation Summary'!$B$11+'Generation Summary'!$B$12)*'Rocky Reach Inflow'!B9 -> 66.1938567 | D9: 0 | E9: 201 | F9: 0 | G9: 7.031085802 | H9: =IF('Rocky Reach Capability'!Q14<(C9-D9-F9)*G9,'Rocky Reach Capability'!Q14,(C9-D9-F9)*G9) -> 465.414686 | I9: =-'Rock Island Inflow'!J9 -> 19.61656492 | J9: =IF(C9=0, 0,'Rocky Reach Capability'!S14) -> -4 | K9: 481.031251 | L9: =K9*'Generation Summary'!$B$4 -> 24.05156255
A10: Hour 5 | B10: ='Generation Summary'!G$17 -> 0.6630687325 | C10: =('Generation Summary'!$B$8+'Generation Summary'!$B$9+'Generation Summary'!$B$10+'Generation Summary'!$B$11+'Generation Summary'!$B$12)*'Rocky Reach Inflow'!B10 -> 62.4610746 | D10: 0 | E10: 201 | F10: 0 | G10: 7.046763487 | H10: =IF('Rocky Reach Capability'!Q15<(C10-D10-F10)*G10,'Rocky Reach Capability'!Q15,(C10-D10-F10)*G10) -> 440.1484198 | I10: =-'Rock Island Inflow'!J10 -> 19.00758187 | J10: =IF(C10=0, 0,'Rocky Reach Capability'!S15) -> -4 | K10: 455.1560017 | L10: =K10*'Generation Summary'!$B$4 -> 22.75780008
A11: Hour 6 | B11: ='Generation Summary'!H$17 -> 0.7222297814 | C11: =('Generation Summary'!$B$8+'Generation Summary'!$B$9+'Generation Summary'!$B$10+'Generation Summary'!$B$11+'Generation Summary'!$B$12)*'Rocky Reach Inflow'!B11 -> 68.03404541 | D11: 0 | E11: 201 | F11: 0 | G11: 7.023357009 | H11: =IF('Rocky Reach Capability'!Q16<(C11-D11-F11)*G11,'Rocky Reach Capability'!Q16,(C11-D11-F11)*G11) -> 477.8273897 | I11: =-'Rock Island Inflow'!J11 -> 19.90067985 | J11: =IF(C11=0, 0,'Rocky Reach Capability'!S16) -> -4 | K11: 493.7280695 | L11: =K11*'Generation Summary'!$B$4 -> 24.68640348
A12: Hour 7 | B12: ='Generation Summary'!I$17 -> 0.7914039801 | C12: =('Generation Summary'!$B$8+'Generation Summary'!$B$9+'Generation Summary'!$B$10+'Generation Summary'!$B$11+'Generation Summary'!$B$12)*'Rocky Reach Inflow'!B12 -> 74.55025492 | D12: 0 | E12: 201 | F12: 0 | G12: 6.995988929 | H12: =IF('Rocky Reach Capability'!Q17<(C12-D12-F12)*G12,'Rocky Reach Capability'!Q17,(C12-D12-F12)*G12) -> 521.5527581 | I12: =-'Rock Island Inflow'!J12 -> 20.82648969 | J12: =IF(C12=0, 0,'Rocky Reach Capability'!S17) -> -4 | K12: 538.3792478 | L12: =K12*'Generation Summary'!$B$4 -> 26.91896239
A13: Hour 8 | B13: ='Generation Summary'!J$17 -> 1.012004952 | C13: =('Generation Summary'!$B$8+'Generation Summary'!$B$9+'Generation Summary'!$B$10+'Generation Summary'!$B$11+'Generation Summary'!$B$12)*'Rocky Reach Inflow'!B13 -> 95.33086644 | D13: 0 | E13: 201 | F13: 0 | G13: 6.908710361 | H13: =IF('Rocky Reach Capability'!Q18<(C13-D13-F13)*G13,'Rocky Reach Capability'!Q18,(C13-D13-F13)*G13) -> 658.6133447 | I13: =-'Rock Island Inflow'!J13 -> 23.06140139 | J13: =IF(C13=0, 0,'Rocky Reach Capability'!S18) -> -4 | K13: 677.6747461 | L13: =K13*'Generation Summary'!$B$4 -> 33.88373731
A14: Hour 9 | B14: ='Generation Summary'!K$17 -> 1.07369851 | C14: =('Generation Summary'!$B$8+'Generation Summary'!$B$9+'Generation Summary'!$B$10+'Generation Summary'!$B$11+'Generation Summary'!$B$12)*'Rocky Reach Inflow'!B14 -> 101.1423997 | D14: 0 | E14: 201 | F14: 0 | G14: 6.884301921 | H14: =IF('Rocky Reach Capability'!Q19<(C14-D14-F14)*G14,'Rocky Reach Capability'!Q19,(C14-D14-F14)*G14) -> 696.2948165 | I14: =-'Rock Island Inflow'!J14 -> 23.52333137 | J14: =IF(C14=0, 0,'Rocky Reach Capability'!S19) -> -4 | K14: 715.8181478 | L14: =K14*'Generation Summary'!$B$4 -> 35.79090739
A15: Hour 10 | B15: ='Generation Summary'!L$17 -> 1.140999905 | C15: =('Generation Summary'!$B$8+'Generation Summary'!$B$9+'Generation Summary'!$B$10+'Generation Summary'!$B$11+'Generation Summary'!$B$12)*'Rocky Reach Inflow'!B15 -> 107.4821911 | D15: 0 | E15: 201 | F15: 0 | G15: 6.857674797 | H15: =IF('Rocky Reach Capability'!Q20<(C15-D15-F15)*G15,'Rocky Reach Capability'!Q20,(C15-D15-F15)*G15) -> 737.0779129 | I15: =-'Rock Island Inflow'!J15 -> 23.95962234 | J15: =IF(C15=0, 0,'Rocky Reach Capability'!S20) -> -4 | K15: 757.0375353 | L15: =K15*'Generation Summary'!$B$4 -> 37.85187676
A16: Hour 11 | B16: ='Generation Summary'!M$17 -> 1.134545874 | C16: =('Generation Summary'!$B$8+'Generation Summary'!$B$9+'Generation Summary'!$B$10+'Generation Summary'!$B$11+'Generation Summary'!$B$12)*'Rocky Reach Inflow'!B16 -> 106.8742214 | D16: 0 | E16: 201 | F16: 0 | G16: 6.86022827 | H16: =IF('Rocky Reach Capability'!Q21<(C16-D16-F16)*G16,'Rocky Reach Capability'!Q21,(C16-D16-F16)*G16) -> 733.1815547 | I16: =-'Rock Island Inflow'!J16 -> 23.9206567 | J16: =IF(C16=0, 0,'Rocky Reach Capability'!S21) -> -4 | K16: 753.1022114 | L16: =K16*'Generation Summary'!$B$4 -> 37.65511057
A17: Hour 12 | B17: ='Generation Summary'!N$17 -> 1.067002224 | C17: =('Generation Summary'!$B$8+'Generation Summary'!$B$9+'Generation Summary'!$B$10+'Generation Summary'!$B$11+'Generation Summary'!$B$12)*'Rocky Reach Inflow'!B17 -> 100.5116095 | D17: 0 | E17: 201 | F17: 0 | G17: 6.88695124 | H17: =IF('Rocky Reach Capability'!Q22<(C17-D17-F17)*G17,'Rocky Reach Capability'!Q22,(C17-D17-F17)*G17) -> 692.2185535 | I17: =-'Rock Island Inflow'!J17 -> 23.47617037 | J17: =IF(C17=0, 0,'Rocky Reach Capability'!S22) -> -4 | K17: 711.6947238 | L17: =K17*'Generation Summary'!$B$4 -> 35.58473619
A18: Hour 13 | B18: ='Generation Summary'!O$17 -> 1.002521106 | C18: =('Generation Summary'!$B$8+'Generation Summary'!$B$9+'Generation Summary'!$B$10+'Generation Summary'!$B$11+'Generation Summary'!$B$12)*'Rocky Reach Inflow'!B18 -> 94.43748818 | D18: 0 | E18: 201 | F18: 0 | G18: 6.91246255 | H18: =IF('Rocky Reach Capability'!Q23<(C18-D18-F18)*G18,'Rocky Reach Capability'!Q23,(C18-D18-F18)*G18) -> 652.7956004 | I18: =-'Rock Island Inflow'!J18 -> 22.98474896 | J18: =IF(C18=0, 0,'Rocky Reach Capability'!S23) -> -4 | K18: 671.7803493 | L18: =K18*'Generation Summary'!$B$4 -> 33.58901747
A19: Hour 14 | B19: ='Generation Summary'!P$17 -> 0.9594175753 | C19: =('Generation Summary'!$B$8+'Generation Summary'!$B$9+'Generation Summary'!$B$10+'Generation Summary'!$B$11+'Generation Summary'!$B$12)*'Rocky Reach Inflow'!B19 -> 90.3771356 | D19: 0 | E19: 201 | F19: 0 | G19: 6.92951603 | H19: =IF('Rocky Reach Capability'!Q24<(C19-D19-F19)*G19,'Rocky Reach Capability'!Q24,(C19-D19-F19)*G19) -> 626.2698099 | I19: =-'Rock Island Inflow'!J19 -> 22.61626979 | J19: =IF(C19=0, 0,'Rocky Reach Capability'!S24) -> -4 | K19: 644.8860797 | L19: =K19*'Generation Summary'!$B$4 -> 32.24430398
A20: Hour 15 | B20: ='Generation Summary'!Q$17 -> 0.9672682098 | C20: =('Generation Summary'!$B$8+'Generation Summary'!$B$9+'Generation Summary'!$B$10+'Generation Summary'!$B$11+'Generation Summary'!$B$12)*'Rocky Reach Inflow'!B20 -> 91.11666536 | D20: 0 | E20: 201 | F20: 0 | G20: 6.926410005 | H20: =IF('Rocky Reach Capability'!Q25<(C20-D20-F20)*G20,'Rocky Reach Capability'!Q25,(C20-D20-F20)*G20) -> 631.1113826 | I20: =-'Rock Island Inflow'!J20 -> 22.68589402 | J20: =IF(C20=0, 0,'Rocky Reach Capability'!S25) -> -4 | K20: 649.7972766 | L20: =K20*'Generation Summary'!$B$4 -> 32.48986383
A21: Hour 16 | B21: ='Generation Summary'!R$17 -> 0.9997095758 | C21: =('Generation Summary'!$B$8+'Generation Summary'!$B$9+'Generation Summary'!$B$10+'Generation Summary'!$B$11+'Generation Summary'!$B$12)*'Rocky Reach Inflow'!B21 -> 94.17264204 | D21: 0 | E21: 201 | F21: 0 | G21: 6.913574903 | H21: =IF('Rocky Reach Capability'!Q26<(C21-D21-F21)*G21,'Rocky Reach Capability'!Q26,(C21-D21-F21)*G21) -> 651.0696146 | I21: =-'Rock Island Inflow'!J21 -> 22.96172486 | J21: =IF(C21=0, 0,'Rocky Reach Capability'!S26) -> -4 | K21: 670.0313395 | L21: =K21*'Generation Summary'!$B$4 -> 33.50156697
A22: Hour 17 | B22: ='Generation Summary'!S$17 -> 1.051736172 | C22: =('Generation Summary'!$B$8+'Generation Summary'!$B$9+'Generation Summary'!$B$10+'Generation Summary'!$B$11+'Generation Summary'!$B$12)*'Rocky Reach Inflow'!B22 -> 99.07354739 | D22: 0 | E22: 201 | F22: 0 | G22: 6.892991101 | H22: =IF('Rocky Reach Capability'!Q27<(C22-D22-F22)*G22,'Rocky Reach Capability'!Q27,(C22-D22-F22)*G22) -> 682.9130805 | I22: =-'Rock Island Inflow'!J22 -> 23.36599845 | J22: =IF(C22=0, 0,'Rocky Reach Capability'!S27) -> -4 | K22: 702.279079 | L22: =K22*'Generation Summary'!$B$4 -> 35.11395395
A23: Hour 18 | B23: ='Generation Summary'!T$17 -> 1.114969723 | C23: =('Generation Summary'!$B$8+'Generation Summary'!$B$9+'Generation Summary'!$B$10+'Generation Summary'!$B$11+'Generation Summary'!$B$12)*'Rocky Reach Inflow'!B23 -> 105.0301479 | D23: 0 | E23: 201 | F23: 0 | G23: 6.867973379 | H23: =IF('Rocky Reach Capability'!Q28<(C23-D23-F23)*G23,'Rocky Reach Capability'!Q28,(C23-D23-F23)*G23) -> 721.3442601 | I23: =-'Rock Island Inflow'!J23 -> 23.79881581 | J23: =IF(C23=0, 0,'Rocky Reach Capability'!S28) -> -4 | K23: 741.1430759 | L23: =K23*'Generation Summary'!$B$4 -> 37.05715379
A24: Hour 19 | B24: ='Generation Summary'!U$17 -> 1.208239306 | C24: =('Generation Summary'!$B$8+'Generation Summary'!$B$9+'Generation Summary'!$B$10+'Generation Summary'!$B$11+'Generation Summary'!$B$12)*'Rocky Reach Inflow'!B24 -> 113.8161427 | D24: 0 | E24: 201 | F24: 0 | G24: 6.831072201 | H24: =IF('Rocky Reach Capability'!Q29<(C24-D24-F24)*G24,'Rocky Reach Capability'!Q29,(C24-D24-F24)*G24) -> 777.4862882 | I24: =-'Rock Island Inflow'!J24 -> 24.33164152 | J24: =IF(C24=0, 0,'Rocky Reach Capability'!S29) -> -4 | K24: 797.8179297 | L24: =K24*'Generation Summary'!$B$4 -> 39.89089649
A25: Hour 20 | B25: ='Generation Summary'!V$17 -> 1.242516402 | C25: =('Generation Summary'!$B$8+'Generation Summary'!$B$9+'Generation Summary'!$B$10+'Generation Summary'!$B$11+'Generation Summary'!$B$12)*'Rocky Reach Inflow'!B25 -> 117.0450451 | D25: 0 | E25: 201 | F25: 0 | G25: 6.817510811 | H25: =IF('Rocky Reach Capability'!Q30<(C25-D25-F25)*G25,'Rocky Reach Capability'!Q30,(C25-D25-F25)*G25) -> 797.9558602 | I25: =-'Rock Island Inflow'!J25 -> 24.49864962 | J25: =IF(C25=0, 0,'Rocky Reach Capability'!S30) -> -4 | K25: 818.4545098 | L25: =K25*'Generation Summary'!$B$4 -> 40.92272549
A26: Hour 21 | B26: ='Generation Summary'!W$17 -> 1.239873355 | C26: =('Generation Summary'!$B$8+'Generation Summary'!$B$9+'Generation Summary'!$B$10+'Generation Summary'!$B$11+'Generation Summary'!$B$12)*'Rocky Reach Inflow'!B26 -> 116.7960701 | D26: 0 | E26: 201 | F26: 0 | G26: 6.818556506 | H26: =IF('Rocky Reach Capability'!Q31<(C26-D26-F26)*G26,'Rocky Reach Capability'!Q31,(C26-D26-F26)*G26) -> 796.3806034 | I26: =-'Rock Island Inflow'!J26 -> 24.48629133 | J26: =IF(C26=0, 0,'Rocky Reach Capability'!S31) -> -4 | K26: 816.8668947 | L26: =K26*'Generation Summary'!$B$4 -> 40.84334473
A27: Hour 22 | B27: ='Generation Summary'!X$17 -> 1.253528403 | C27: =('Generation Summary'!$B$8+'Generation Summary'!$B$9+'Generation Summary'!$B$10+'Generation Summary'!$B$11+'Generation Summary'!$B$12)*'Rocky Reach Inflow'!B27 -> 118.0823755 | D27: 0 | E27: 201 | F27: 0 | G27: 6.813154023 | H27: =IF('Rocky Reach Capability'!Q32<(C27-D27-F27)*G27,'Rocky Reach Capability'!Q32,(C27-D27-F27)*G27) -> 804.5134119 | I27: =-'Rock Island Inflow'!J27 -> 24.54922388 | J27: =IF(C27=0, 0,'Rocky Reach Capability'!S32) -> -4 | K27: 825.0626358 | L27: =K27*'Generation Summary'!$B$4 -> 41.25313179
A28: Hour 23 | B28: ='Generation Summary'!Y$17 -> 1.227900297 | C28: =('Generation Summary'!$B$8+'Generation Summary'!$B$9+'Generation Summary'!$B$10+'Generation Summary'!$B$11+'Generation Summary'!$B$12)*'Rocky Reach Inflow'!B28 -> 115.668208 | D28: 0 | E28: 201 | F28: 0 | G28: 6.823293526 | H28: =IF('Rocky Reach Capability'!Q33<(C28-D28-F28)*G28,'Rocky Reach Capability'!Q33,(C28-D28-F28)*G28) -> 789.2381349 | I28: =-'Rock Island Inflow'!J28 -> 24.42923052 | J28: =IF(C28=0, 0,'Rocky Reach Capability'!S33) -> -4 | K28: 809.6673655 | L28: =K28*'Generation Summary'!$B$4 -> 40.48336827
A29: Hour 24 | B29: ='Generation Summary'!Z$17 -> 1.00159259 | C29: =('Generation Summary'!$B$8+'Generation Summary'!$B$9+'Generation Summary'!$B$10+'Generation Summary'!$B$11+'Generation Summary'!$B$12)*'Rocky Reach Inflow'!B29 -> 94.35002198 | D29: 0 | E29: 201 | F29: 0 | G29: 6.912829908 | H29: =IF('Rocky Reach Capability'!Q34<(C29-D29-F29)*G29,'Rocky Reach Capability'!Q34,(C29-D29-F29)*G29) -> 652.2256538 | I29: =-'Rock Island Inflow'!J29 -> 22.97716045 | J29: =IF(C29=0, 0,'Rocky Reach Capability'!S34) -> -4 | K29: 671.2028142 | L29: =K29*'Generation Summary'!$B$4 -> 33.56014071
B30: AVG | C30: =AVERAGE(C5:C6,C8:C29) -> 94.21574805 | J30: SUM | K30: =SUM(K5:K29)/2 -> 8025.16093 | L30: =SUM(L5:L29) -> 802.516093

Sheet Rock Island Inflow
A1: Rock Island Inflow
H2: Estimated | I2: Wan - RI | J2: RI - RR | K2: Net Estimated | L2: Slice Share
C3: Shaped Inflow | D3: Fish Spill | E3: Max. Discharge | F3: Headwater Spill | G3: RI Plant | H3: Inflow | I3: Encroachment | J3: Encroachment | K3: Inflow | L3: Inflow
A4: Hour | B4: Water Shape | C4: (KCFS) | D4: (KCFS) | E4: (KCFS) | F4: (KCFS) | G4: H/K | H4: (MWH) | I4: (MWH) | J4: (MWH) | K4: (MWH) | L4: (MWH)
A5: Hour 1 | B5: ='Generation Summary'!B$17 -> 0.91 | C5: =('Generation Summary'!$B$8+'Generation Summary'!$B$9+'Generation Summary'!$B$10+'Generation Summary'!$B$11+'Generation Summary'!$B$12+'Generation Summary'!$B$13)*'Rock Island Inflow'!B5 -> 86.814 | D5: 0 | E5: 217 | F5: =IF(C5-D5>E5,C5-D5-E5,0) -> 0 | G5: =-0.004*C5+3.4277 -> 3.080444 | H5: =IF('Rock Island Capability'!X10<(C5-D5-F5)*G5,'Rock Island Capability'!X10,(C5-D5-F5)*G5) -> 267.4256654 | I5: =IF(C5=0, 0, IF(C5<210,-0.00000016176*(C5-D5-F5)^4+0.00010366*(C5-D5-F5)^3-0.024223*(C5-D5-F5)^2+2.4258*(C5-D5-F5)-5.4333,(-0.00000016176*(C5-D5-F5)^4+0.00010366*(C5-D5-F5)^3-0.024223*(C5-D5-F5)^2+2.4258*(C5-D5-F5)-5.4333)-(0.162*(C5-210)))-((18-SUM('Rock Island Capability'!C10:T10))*2)) -> 73.23468239 | J5: =IF(D5>0,-(0.000002231361*C5^3-0.001727269*C5^2+0.3686574*C5-0.7627374),-(-0.00000002276714*C5^4+0.00001391477*C5^3-0.003700159*C5^2+0.4911836*C5-0.4147475)) -> -22.15105479 | K5: =(H5+I5+J5) -> 318.509293 | L5: =K5*'Generation Summary'!$B$5 -> 15.92546465
A6: Hour 2 | B6: ='Generation Summary'!C$17 -> 0.8 | C6: =('Generation Summary'!$B$8+'Generation Summary'!$B$9+'Generation Summary'!$B$10+'Generation Summary'!$B$11+'Generation Summary'!$B$12+'Generation Summary'!$B$13)*'Rock Island Inflow'!B6 -> 76.32 | D6: 0 | E6: 217 | F6: =IF(C6-D6>E6,C6-D6-E6,0) -> 0 | G6: =-0.004*C6+3.4277 -> 3.12242 | H6: =IF('Rock Island Capability'!X11<(C6-D6-F6)*G6,'Rock Island Capability'!X11,(C6-D6-F6)*G6) -> 238.3030944 | I6: =IF(C6=0, 0, IF(C6<210,-0.00000016176*(C6-D6-F6)^4+0.00010366*(C6-D6-F6)^3-0.024223*(C6-D6-F6)^2+2.4258*(C6-D6-F6)-5.4333,(-0.00000016176*(C6-D6-F6)^4+0.00010366*(C6-D6-F6)^3-0.024223*(C6-D6-F6)^2+2.4258*(C6-D6-F6)-5.4333)-(0.162*(C6-210)))-((18-SUM('Rock Island Capability'!C11:T11))*2)) -> 71.20435466 | J6: =IF(D6>0,-(0.000002231361*C6^3-0.001727269*C6^2+0.3686574*C6-0.7627374),-(-0.00000002276714*C6^4+0.00001391477*C6^3-0.003700159*C6^2+0.4911836*C6-0.4147475)) -> -20.93320912 | K6: =(H6+I6+J6) -> 288.5742399 | L6: =K6*'Generation Summary'!$B$5 -> 14.428712
A7: Hour 2B | B7: ='Generation Summary'!D$17 -> 0 | C7: =('Generation Summary'!$B$8+'Generation Summary'!$B$9+'Generation Summary'!$B$10+'Generation Summary'!$B$11+'Generation Summary'!$B$12+'Generation Summary'!$B$13)*'Rock Island Inflow'!B7 -> 0 | E7: 217 | F7: 0 | G7: 3.4277 | H7: =IF('Rock Island Capability'!X12<(C7-D7-F7)*G7,'Rock Island Capability'!X12,(C7-D7-F7)*G7) -> 0 | I7: =IF(C7=0, 0, IF(C7<210,-0.00000016176*(C7-D7-F7)^4+0.00010366*(C7-D7-F7)^3-0.024223*(C7-D7-F7)^2+2.4258*(C7-D7-F7)-5.4333,(-0.00000016176*(C7-D7-F7)^4+0.00010366*(C7-D7-F7)^3-0.024223*(C7-D7-F7)^2+2.4258*(C7-D7-F7)-5.4333)-(0.162*(C7-210)))-((18-SUM('Rock Island Capability'!C12:T12))*2)) -> 0 | J7: =IF(D7>0,-(0.000002231361*C7^3-0.001727269*C7^2+0.3686574*C7-0.7627374),-(-0.00000002276714*C7^4+0.00001391477*C7^3-0.003700159*C7^2+0.4911836*C7-0.4147475)) -> 0.4147475 | K7: =(H7+I7+J7) -> 0.4147475 | L7: =K7*'Generation Summary'!$B$5 -> 0.020737375
A8: Hour 3 | B8: ='Generation Summary'!E$17 -> 0.7170906964 | C8: =('Generation Summary'!$B$8+'Generation Summary'!$B$9+'Generation Summary'!$B$10+'Generation Summary'!$B$11+'Generation Summary'!$B$12+'Generation Summary'!$B$13)*'Rock Island Inflow'!B8 -> 68.41045243 | D8: 0 | E8: 217 | F8: 0 | G8: 3.15405819 | H8: =IF('Rock Island Capability'!X13<(C8-D8-F8)*G8,'Rock Island Capability'!X13,(C8-D8-F8)*G8) -> 215.7705478 | I8: =IF(C8=0, 0, IF(C8<210,-0.00000016176*(C8-D8-F8)^4+0.00010366*(C8-D8-F8)^3-0.024223*(C8-D8-F8)^2+2.4258*(C8-D8-F8)-5.4333,(-0.00000016176*(C8-D8-F8)^4+0.00010366*(C8-D8-F8)^3-0.024223*(C8-D8-F8)^2+2.4258*(C8-D8-F8)-5.4333)-(0.162*(C8-210)))-((18-SUM('Rock Island Capability'!C13:T13))*2)) -> 68.7982704 | J8: -19.82694081 | K8: 264.7418774 | L8: =K8*'Generation Summary'!$B$5 -> 13.23709387
A9: Hour 4 | B9: ='Generation Summary'!F$17 -> 0.7026948695 | C9: =('Generation Summary'!$B$8+'Generation Summary'!$B$9+'Generation Summary'!$B$10+'Generation Summary'!$B$11+'Generation Summary'!$B$12+'Generation Summary'!$B$13)*'Rock Island Inflow'!B9 -> 67.03709055 | D9: 0 | E9: 217 | F9: 0 | G9: 3.159551638 | H9: =IF('Rock Island Capability'!X14<(C9-D9-F9)*G9,'Rock Island Capability'!X14,(C9-D9-F9)*G9) -> 211.8071492 | I9: =IF(C9=0, 0, IF(C9<210,-0.00000016176*(C9-D9-F9)^4+0.00010366*(C9-D9-F9)^3-0.024223*(C9-D9-F9)^2+2.4258*(C9-D9-F9)-5.4333,(-0.00000016176*(C9-D9-F9)^4+0.00010366*(C9-D9-F9)^3-0.024223*(C9-D9-F9)^2+2.4258*(C9-D9-F9)-5.4333)-(0.162*(C9-210)))-((18-SUM('Rock Island Capability'!C14:T14))*2)) -> 68.28983228 | J9: =IF(D9>0,-(0.000002231361*C9^3-0.001727269*C9^2+0.3686574*C9-0.7627374),-(-0.00000002276714*C9^4+0.00001391477*C9^3-0.003700159*C9^2+0.4911836*C9-0.4147475)) -> -19.61656492 | K9: 260.4804166 | L9: =K9*'Generation Summary'!$B$5 -> 13.02402083
A10: Hour 5 | B10: ='Generation Summary'!G$17 -> 0.6630687325 | C10: =('Generation Summary'!$B$8+'Generation Summary'!$B$9+'Generation Summary'!$B$10+'Generation Summary'!$B$11+'Generation Summary'!$B$12+'Generation Summary'!$B$13)*'Rock Island Inflow'!B10 -> 63.25675708 | D10: 0 | E10: 217 | F10: 0 | G10: 3.174672972 | H10: =IF('Rock Island Capability'!X15<(C10-D10-F10)*G10,'Rock Island Capability'!X15,(C10-D10-F10)*G10) -> 200.819517 | I10: =IF(C10=0, 0, IF(C10<210,-0.00000016176*(C10-D10-F10)^4+0.00010366*(C10-D10-F10)^3-0.024223*(C10-D10-F10)^2+2.4258*(C10-D10-F10)-5.4333,(-0.00000016176*(C10-D10-F10)^4+0.00010366*(C10-D10-F10)^3-0.024223*(C10-D10-F10)^2+2.4258*(C10-D10-F10)-5.4333)-(0.162*(C10-210)))-((18-SUM('Rock Island Capability'!C15:T15))*2)) -> 66.7366906 | J10: =IF(D10>0,-(0.000002231361*C10^3-0.001727269*C10^2+0.3686574*C10-0.7627374),-(-0.00000002276714*C10^4+0.00001391477*C10^3-0.003700159*C10^2+0.4911836*C10-0.4147475)) -> -19.00758187 | K10: 248.5486257 | L10: =K10*'Generation Summary'!$B$5 -> 12.42743129
A11: Hour 6 | B11: ='Generation Summary'!H$17 -> 0.7222297814 | C11: =('Generation Summary'!$B$8+'Generation Summary'!$B$9+'Generation Summary'!$B$10+'Generation Summary'!$B$11+'Generation Summary'!$B$12+'Generation Summary'!$B$13)*'Rock Island Inflow'!B11 -> 68.90072115 | D11: 0 | E11: 217 | F11: 0 | G11: 3.152097115 | H11: =IF('Rock Island Capability'!X16<(C11-D11-F11)*G11,'Rock Island Capability'!X16,(C11-D11-F11)*G11) -> 217.1817644 | I11: =IF(C11=0, 0, IF(C11<210,-0.00000016176*(C11-D11-F11)^4+0.00010366*(C11-D11-F11)^3-0.024223*(C11-D11-F11)^2+2.4258*(C11-D11-F11)-5.4333,(-0.00000016176*(C11-D11-F11)^4+0.00010366*(C11-D11-F11)^3-0.024223*(C11-D11-F11)^2+2.4258*(C11-D11-F11)-5.4333)-(0.162*(C11-210)))-((18-SUM('Rock Island Capability'!C16:T16))*2)) -> 68.97288241 | J11: -19.90067985 | K11: 266.2539669 | L11: =K11*'Generation Summary'!$B$5 -> 13.31269835
A12: Hour 7 | B12: ='Generation Summary'!I$17 -> 0.7914039801 | C12: =('Generation Summary'!$B$8+'Generation Summary'!$B$9+'Generation Summary'!$B$10+'Generation Summary'!$B$11+'Generation Summary'!$B$12+'Generation Summary'!$B$13)*'Rock Island Inflow'!B12 -> 75.4999397 | D12: 0 | E12: 217 | F12: 0 | G12: 3.125700241 | H12: =IF('Rock Island Capability'!X17<(C12-D12-F12)*G12,'Rock Island Capability'!X17,(C12-D12-F12)*G12) -> 235.9901797 | I12: =IF(C12=0, 0, IF(C12<210,-0.00000016176*(C12-D12-F12)^4+0.00010366*(C12-D12-F12)^3-0.024223*(C12-D12-F12)^2+2.4258*(C12-D12-F12)-5.4333,(-0.00000016176*(C12-D12-F12)^4+0.00010366*(C12-D12-F12)^3-0.024223*(C12-D12-F12)^2+2.4258*(C12-D12-F12)-5.4333)-(0.162*(C12-210)))-((18-SUM('Rock Island Capability'!C17:T17))*2)) -> 70.99342259 | J12: -20.82648969 | K12: 286.1571126 | L12: =K12*'Generation Summary'!$B$5 -> 14.30785563
A13: Hour 8 | B13: ='Generation Summary'!J$17 -> 1.012004952 | C13: =('Generation Summary'!$B$8+'Generation Summary'!$B$9+'Generation Summary'!$B$10+'Generation Summary'!$B$11+'Generation Summary'!$B$12+'Generation Summary'!$B$13)*'Rock Island Inflow'!B13 -> 96.54527239 | D13: 0 | E13: 217 | F13: 0 | G13: 3.04151891 | H13: =IF('Rock Island Capability'!X18<(C13-D13-F13)*G13,'Rock Island Capability'!X18,(C13-D13-F13)*G13) -> 293.6442717 | I13: =IF(C13=0, 0, IF(C13<210,-0.00000016176*(C13-D13-F13)^4+0.00010366*(C13-D13-F13)^3-0.024223*(C13-D13-F13)^2+2.4258*(C13-D13-F13)-5.4333,(-0.00000016176*(C13-D13-F13)^4+0.00010366*(C13-D13-F13)^3-0.024223*(C13-D13-F13)^2+2.4258*(C13-D13-F13)-5.4333)-(0.162*(C13-210)))-((18-SUM('Rock Island Capability'!C18:T18))*2)) -> 74.21341726 | J13: -23.06140139 | K13: 344.7962875 | L13: =K13*'Generation Summary'!$B$5 -> 17.23981438
A14: Hour 9 | B14: ='Generation Summary'!K$17 -> 1.07369851 | C14: =('Generation Summary'!$B$8+'Generation Summary'!$B$9+'Generation Summary'!$B$10+'Generation Summary'!$B$11+'Generation Summary'!$B$12+'Generation Summary'!$B$13)*'Rock Island Inflow'!B14 -> 102.4308379 | D14: 0 | E14: 217 | F14: 0 | G14: 3.017976648 | H14: =IF('Rock Island Capability'!X19<(C14-D14-F14)*G14,'Rock Island Capability'!X19,(C14-D14-F14)*G14) -> 309.1338768 | I14: =IF(C14=0, 0, IF(C14<210,-0.00000016176*(C14-D14-F14)^4+0.00010366*(C14-D14-F14)^3-0.024223*(C14-D14-F14)^2+2.4258*(C14-D14-F14)-5.4333,(-0.00000016176*(C14-D14-F14)^4+0.00010366*(C14-D14-F14)^3-0.024223*(C14-D14-F14)^2+2.4258*(C14-D14-F14)-5.4333)-(0.162*(C14-210)))-((18-SUM('Rock Island Capability'!C19:T19))*2)) -> 74.4913876 | J14: -23.52333137 | K14: 360.1019331 | L14: =K14*'Generation Summary'!$B$5 -> 18.00509665
A15: Hour 10 | B15: ='Generation Summary'!L$17 -> 1.140999905 | C15: =('Generation Summary'!$B$8+'Generation Summary'!$B$9+'Generation Summary'!$B$10+'Generation Summary'!$B$11+'Generation Summary'!$B$12+'Generation Summary'!$B$13)*'Rock Island Inflow'!B15 -> 108.851391 | D15: 0 | E15: 217 | F15: 0 | G15: 2.992294436 | H15: =IF('Rock Island Capability'!X20<(C15-D15-F15)*G15,'Rock Island Capability'!X20,(C15-D15-F15)*G15) -> 325.7154115 | I15: =IF(C15=0, 0, IF(C15<210,-0.00000016176*(C15-D15-F15)^4+0.00010366*(C15-D15-F15)^3-0.024223*(C15-D15-F15)^2+2.4258*(C15-D15-F15)-5.4333,(-0.00000016176*(C15-D15-F15)^4+0.00010366*(C15-D15-F15)^3-0.024223*(C15-D15-F15)^2+2.4258*(C15-D15-F15)-5.4333)-(0.162*(C15-210)))-((18-SUM('Rock Island Capability'!C20:T20))*2)) -> 74.5940601 | J15: -23.95962234 | K15: 376.3498493 | L15: =K15*'Generation Summary'!$B$5 -> 18.81749247
A16: Hour 11 | B16: ='Generation Summary'!M$17 -> 1.134545874 | C16: =('Generation Summary'!$B$8+'Generation Summary'!$B$9+'Generation Summary'!$B$10+'Generation Summary'!$B$11+'Generation Summary'!$B$12+'Generation Summary'!$B$13)*'Rock Island Inflow'!B16 -> 108.2356764 | D16: 0 | E16: 217 | F16: 0 | G16: 2.994757294 | H16: =IF('Rock Island Capability'!X21<(C16-D16-F16)*G16,'Rock Island Capability'!X21,(C16-D16-F16)*G16) -> 324.1395814 | I16: =IF(C16=0, 0, IF(C16<210,-0.00000016176*(C16-D16-F16)^4+0.00010366*(C16-D16-F16)^3-0.024223*(C16-D16-F16)^2+2.4258*(C16-D16-F16)-5.4333,(-0.00000016176*(C16-D16-F16)^4+0.00010366*(C16-D16-F16)^3-0.024223*(C16-D16-F16)^2+2.4258*(C16-D16-F16)-5.4333)-(0.162*(C16-210)))-((18-SUM('Rock Island Capability'!C21:T21))*2)) -> 74.59176753 | J16: -23.9206567 | K16: 374.8106923 | L16: =K16*'Generation Summary'!$B$5 -> 18.74053461
A17: Hour 12 | B17: ='Generation Summary'!N$17 -> 1.067002224 | C17: =('Generation Summary'!$B$8+'Generation Summary'!$B$9+'Generation Summary'!$B$10+'Generation Summary'!$B$11+'Generation Summary'!$B$12+'Generation Summary'!$B$13)*'Rock Island Inflow'!B17 -> 101.7920121 | D17: 0 | E17: 217 | F17: 0 | G17: 3.020531951 | H17: =IF('Rock Island Capability'!X22<(C17-D17-F17)*G17,'Rock Island Capability'!X22,(C17-D17-F17)*G17) -> 307.4660251 | I17: =IF(C17=0, 0, IF(C17<210,-0.00000016176*(C17-D17-F17)^4+0.00010366*(C17-D17-F17)^3-0.024223*(C17-D17-F17)^2+2.4258*(C17-D17-F17)-5.4333,(-0.00000016176*(C17-D17-F17)^4+0.00010366*(C17-D17-F17)^3-0.024223*(C17-D17-F17)^2+2.4258*(C17-D17-F17)-5.4333)-(0.162*(C17-210)))-((18-SUM('Rock Island Capability'!C22:T22))*2)) -> 74.47060944 | J17: -23.47617037 | K17: 358.4604641 | L17: =K17*'Generation Summary'!$B$5 -> 17.92302321
A18: Hour 13 | B18: ='Generation Summary'!O$17 -> 1.002521106 | C18: =('Generation Summary'!$B$8+'Generation Summary'!$B$9+'Generation Summary'!$B$10+'Generation Summary'!$B$11+'Generation Summary'!$B$12+'Generation Summary'!$B$13)*'Rock Island Inflow'!B18 -> 95.64051351 | D18: 0 | E18: 217 | F18: 0 | G18: 3.045137946 | H18: =IF('Rock Island Capability'!X23<(C18-D18-F18)*G18,'Rock Island Capability'!X23,(C18-D18-F18)*G18) -> 291.2385569 | I18: =IF(C18=0, 0, IF(C18<210,-0.00000016176*(C18-D18-F18)^4+0.00010366*(C18-D18-F18)^3-0.024223*(C18-D18-F18)^2+2.4258*(C18-D18-F18)-5.4333,(-0.00000016176*(C18-D18-F18)^4+0.00010366*(C18-D18-F18)^3-0.024223*(C18-D18-F18)^2+2.4258*(C18-D18-F18)-5.4333)-(0.162*(C18-210)))-((18-SUM('Rock Island Capability'!C23:T23))*2)) -> 74.15197504 | J18: -22.98474896 | K18: 342.405783 | L18: =K18*'Generation Summary'!$B$5 -> 17.12028915
A19: Hour 14 | B19: ='Generation Summary'!P$17 -> 0.9594175753 | C19: =('Generation Summary'!$B$8+'Generation Summary'!$B$9+'Generation Summary'!$B$10+'Generation Summary'!$B$11+'Generation Summary'!$B$12+'Generation Summary'!$B$13)*'Rock Island Inflow'!B19 -> 91.52843669 | D19: 0 | E19: 217 | F19: 0 | G19: 3.061586253 | H19: =IF('Rock Island Capability'!X24<(C19-D19-F19)*G19,'Rock Island Capability'!X24,(C19-D19-F19)*G19) -> 280.2222035 | I19: =IF(C19=0, 0, IF(C19<210,-0.00000016176*(C19-D19-F19)^4+0.00010366*(C19-D19-F19)^3-0.024223*(C19-D19-F19)^2+2.4258*(C19-D19-F19)-5.4333,(-0.00000016176*(C19-D19-F19)^4+0.00010366*(C19-D19-F19)^3-0.024223*(C19-D19-F19)^2+2.4258*(C19-D19-F19)-5.4333)-(0.162*(C19-210)))-((18-SUM('Rock Island Capability'!C24:T24))*2)) -> 73.80062762 | J19: -22.61626979 | K19: 331.4065614 | L19: =K19*'Generation Summary'!$B$5 -> 16.57032807
A20: Hour 15 | B20: ='Generation Summary'!Q$17 -> 0.9672682098 | C20: =('Generation Summary'!$B$8+'Generation Summary'!$B$9+'Generation Summary'!$B$10+'Generation Summary'!$B$11+'Generation Summary'!$B$12+'Generation Summary'!$B$13)*'Rock Island Inflow'!B20 -> 92.27738721 | D20: 0 | E20: 217 | F20: 0 | G20: 3.058590451 | H20: =IF('Rock Island Capability'!X25<(C20-D20-F20)*G20,'Rock Island Capability'!X25,(C20-D20-F20)*G20) -> 282.2387354 | I20: =IF(C20=0, 0, IF(C20<210,-0.00000016176*(C20-D20-F20)^4+0.00010366*(C20-D20-F20)^3-0.024223*(C20-D20-F20)^2+2.4258*(C20-D20-F20)-5.4333,(-0.00000016176*(C20-D20-F20)^4+0.00010366*(C20-D20-F20)^3-0.024223*(C20-D20-F20)^2+2.4258*(C20-D20-F20)-5.4333)-(0.162*(C20-210)))-((18-SUM('Rock Island Capability'!C25:T25))*2)) -> 73.87388331 | J20: -22.68589402 | K20: 333.4267247 | L20: =K20*'Generation Summary'!$B$5 -> 16.67133623
A21: Hour 16 | B21: ='Generation Summary'!R$17 -> 0.9997095758 | C21: =('Generation Summary'!$B$8+'Generation Summary'!$B$9+'Generation Summary'!$B$10+'Generation Summary'!$B$11+'Generation Summary'!$B$12+'Generation Summary'!$B$13)*'Rock Island Inflow'!B21 -> 95.37229353 | D21: 0 | E21: 217 | F21: 0 | G21: 3.046210826 | H21: =IF('Rock Island Capability'!X26<(C21-D21-F21)*G21,'Rock Island Capability'!X26,(C21-D21-F21)*G21) -> 290.5241131 | I21: =IF(C21=0, 0, IF(C21<210,-0.00000016176*(C21-D21-F21)^4+0.00010366*(C21-D21-F21)^3-0.024223*(C21-D21-F21)^2+2.4258*(C21-D21-F21)-5.4333,(-0.00000016176*(C21-D21-F21)^4+0.00010366*(C21-D21-F21)^3-0.024223*(C21-D21-F21)^2+2.4258*(C21-D21-F21)-5.4333)-(0.162*(C21-210)))-((18-SUM('Rock Island Capability'!C26:T26))*2)) -> 74.1327119 | J21: -22.96172486 | K21: 341.6951001 | L21: =K21*'Generation Summary'!$B$5 -> 17.084755
A22: Hour 17 | B22: ='Generation Summary'!S$17 -> 1.051736172 | C22: =('Generation Summary'!$B$8+'Generation Summary'!$B$9+'Generation Summary'!$B$10+'Generation Summary'!$B$11+'Generation Summary'!$B$12+'Generation Summary'!$B$13)*'Rock Island Inflow'!B22 -> 100.3356308 | D22: 0 | E22: 217 | F22: 0 | G22: 3.026357477 | H22: =IF('Rock Island Capability'!X27<(C22-D22-F22)*G22,'Rock Island Capability'!X27,(C22-D22-F22)*G22) -> 303.6514865 | I22: =IF(C22=0, 0, IF(C22<210,-0.00000016176*(C22-D22-F22)^4+0.00010366*(C22-D22-F22)^3-0.024223*(C22-D22-F22)^2+2.4258*(C22-D22-F22)-5.4333,(-0.00000016176*(C22-D22-F22)^4+0.00010366*(C22-D22-F22)^3-0.024223*(C22-D22-F22)^2+2.4258*(C22-D22-F22)-5.4333)-(0.162*(C22-210)))-((18-SUM('Rock Island Capability'!C27:T27))*2)) -> 74.41513694 | J22: =IF(D22>0,-(0.000002231361*C22^3-0.001727269*C22^2+0.3686574*C22-0.7627374),-(-0.00000002276714*C22^4+0.00001391477*C22^3-0.003700159*C22^2+0.4911836*C22-0.4147475)) -> -23.36599845 | K22: 354.7006249 | L22: =K22*'Generation Summary'!$B$5 -> 17.73503125
A23: Hour 18 | B23: ='Generation Summary'!T$17 -> 1.114969723 | C23: =('Generation Summary'!$B$8+'Generation Summary'!$B$9+'Generation Summary'!$B$10+'Generation Summary'!$B$11+'Generation Summary'!$B$12+'Generation Summary'!$B$13)*'Rock Island Inflow'!B23 -> 106.3681116 | D23: 0 | E23: 217 | F23: 0 | G23: 3.002227554 | H23: =IF('Rock Island Capability'!X28<(C23-D23-F23)*G23,'Rock Island Capability'!X28,(C23-D23-F23)*G23) -> 319.3412755 | I23: =IF(C23=0, 0, IF(C23<210,-0.00000016176*(C23-D23-F23)^4+0.00010366*(C23-D23-F23)^3-0.024223*(C23-D23-F23)^2+2.4258*(C23-D23-F23)-5.4333,(-0.00000016176*(C23-D23-F23)^4+0.00010366*(C23-D23-F23)^3-0.024223*(C23-D23-F23)^2+2.4258*(C23-D23-F23)-5.4333)-(0.162*(C23-210)))-((18-SUM('Rock Island Capability'!C28:T28))*2)) -> 74.57564748 | J23: =IF(D23>0,-(0.000002231361*C23^3-0.001727269*C23^2+0.3686574*C23-0.7627374),-(-0.00000002276714*C23^4+0.00001391477*C23^3-0.003700159*C23^2+0.4911836*C23-0.4147475)) -> -23.79881581 | K23: 370.1181072 | L23: =K23*'Generation Summary'!$B$5 -> 18.50590536
A24: Hour 19 | B24: ='Generation Summary'!U$17 -> 1.208239306 | C24: =('Generation Summary'!$B$8+'Generation Summary'!$B$9+'Generation Summary'!$B$10+'Generation Summary'!$B$11+'Generation Summary'!$B$12+'Generation Summary'!$B$13)*'Rock Island Inflow'!B24 -> 115.2660298 | D24: 0 | E24: 217 | F24: 0 | G24: 2.966635881 | H24: =IF('Rock Island Capability'!X29<(C24-D24-F24)*G24,'Rock Island Capability'!X29,(C24-D24-F24)*G24) -> 341.9523399 | I24: =IF(C24=0, 0, IF(C24<210,-0.00000016176*(C24-D24-F24)^4+0.00010366*(C24-D24-F24)^3-0.024223*(C24-D24-F24)^2+2.4258*(C24-D24-F24)-5.4333,(-0.00000016176*(C24-D24-F24)^4+0.00010366*(C24-D24-F24)^3-0.024223*(C24-D24-F24)^2+2.4258*(C24-D24-F24)-5.4333)-(0.162*(C24-210)))-((18-SUM('Rock Island Capability'!C29:T29))*2)) -> 74.54192957 | J24: =IF(D24>0,-(0.000002231361*C24^3-0.001727269*C24^2+0.3686574*C24-0.7627374),-(-0.00000002276714*C24^4+0.00001391477*C24^3-0.003700159*C24^2+0.4911836*C24-0.4147475)) -> -24.33164152 | K24: 392.162628 | L24: =K24*'Generation Summary'!$B$5 -> 19.6081314
A25: Hour 20 | B25: ='Generation Summary'!V$17 -> 1.242516402 | C25: =('Generation Summary'!$B$8+'Generation Summary'!$B$9+'Generation Summary'!$B$10+'Generation Summary'!$B$11+'Generation Summary'!$B$12+'Generation Summary'!$B$13)*'Rock Island Inflow'!B25 -> 118.5360648 | D25: 0 | E25: 217 | F25: 0 | G25: 2.953555741 | H25: =IF('Rock Island Capability'!X30<(C25-D25-F25)*G25,'Rock Island Capability'!X30,(C25-D25-F25)*G25) -> 350.1028746 | I25: =IF(C25=0, 0, IF(C25<210,-0.00000016176*(C25-D25-F25)^4+0.00010366*(C25-D25-F25)^3-0.024223*(C25-D25-F25)^2+2.4258*(C25-D25-F25)-5.4333,(-0.00000016176*(C25-D25-F25)^4+0.00010366*(C25-D25-F25)^3-0.024223*(C25-D25-F25)^2+2.4258*(C25-D25-F25)-5.4333)-(0.162*(C25-210)))-((18-SUM('Rock Island Capability'!C30:T30))*2)) -> 74.4719959 | J25: =IF(D25>0,-(0.000002231361*C25^3-0.001727269*C25^2+0.3686574*C25-0.7627374),-(-0.00000002276714*C25^4+0.00001391477*C25^3-0.003700159*C25^2+0.4911836*C25-0.4147475)) -> -24.49864962 | K25: 400.0762209 | L25: =K25*'Generation Summary'!$B$5 -> 20.00381104
A26: Hour 21 | B26: ='Generation Summary'!W$17 -> 1.239873355 | C26: =('Generation Summary'!$B$8+'Generation Summary'!$B$9+'Generation Summary'!$B$10+'Generation Summary'!$B$11+'Generation Summary'!$B$12+'Generation Summary'!$B$13)*'Rock Island Inflow'!B26 -> 118.2839181 | D26: 0 | E26: 217 | F26: 0 | G26: 2.954564328 | H26: =IF('Rock Island Capability'!X31<(C26-D26-F26)*G26,'Rock Island Capability'!X31,(C26-D26-F26)*G26) -> 349.4774449 | I26: =IF(C26=0, 0, IF(C26<210,-0.00000016176*(C26-D26-F26)^4+0.00010366*(C26-D26-F26)^3-0.024223*(C26-D26-F26)^2+2.4258*(C26-D26-F26)-5.4333,(-0.00000016176*(C26-D26-F26)^4+0.00010366*(C26-D26-F26)^3-0.024223*(C26-D26-F26)^2+2.4258*(C26-D26-F26)-5.4333)-(0.162*(C26-210)))-((18-SUM('Rock Island Capability'!C31:T31))*2)) -> 74.47822133 | J26: -24.48629133 | K26: 399.4693749 | L26: =K26*'Generation Summary'!$B$5 -> 19.97346875
A27: Hour 22 | B27: ='Generation Summary'!X$17 -> 1.253528403 | C27: =('Generation Summary'!$B$8+'Generation Summary'!$B$9+'Generation Summary'!$B$10+'Generation Summary'!$B$11+'Generation Summary'!$B$12+'Generation Summary'!$B$13)*'Rock Island Inflow'!B27 -> 119.5866096 | D27: 0 | E27: 217 | F27: 0 | G27: 2.949353562 | H27: =IF('Rock Island Capability'!X32<(C27-D27-F27)*G27,'Rock Island Capability'!X32,(C27-D27-F27)*G27) -> 352.703193 | I27: =IF(C27=0, 0, IF(C27<210,-0.00000016176*(C27-D27-F27)^4+0.00010366*(C27-D27-F27)^3-0.024223*(C27-D27-F27)^2+2.4258*(C27-D27-F27)-5.4333,(-0.00000016176*(C27-D27-F27)^4+0.00010366*(C27-D27-F27)^3-0.024223*(C27-D27-F27)^2+2.4258*(C27-D27-F27)-5.4333)-(0.162*(C27-210)))-((18-SUM('Rock Island Capability'!C32:T32))*2)) -> 74.44472199 | J27: =IF(D27>0,-(0.000002231361*C27^3-0.001727269*C27^2+0.3686574*C27-0.7627374),-(-0.00000002276714*C27^4+0.00001391477*C27^3-0.003700159*C27^2+0.4911836*C27-0.4147475)) -> -24.54922388 | K27: 402.5986911 | L27: =K27*'Generation Summary'!$B$5 -> 20.12993456
A28: Hour 23 | B28: ='Generation Summary'!Y$17 -> 1.227900297 | C28: =('Generation Summary'!$B$8+'Generation Summary'!$B$9+'Generation Summary'!$B$10+'Generation Summary'!$B$11+'Generation Summary'!$B$12+'Generation Summary'!$B$13)*'Rock Island Inflow'!B28 -> 117.1416884 | D28: 0 | E28: 217 | F28: 0 | G28: 2.959133247 | H28: =IF('Rock Island Capability'!X33<(C28-D28-F28)*G28,'Rock Island Capability'!X33,(C28-D28-F28)*G28) -> 346.6378646 | I28: =IF(C28=0, 0, IF(C28<210,-0.00000016176*(C28-D28-F28)^4+0.00010366*(C28-D28-F28)^3-0.024223*(C28-D28-F28)^2+2.4258*(C28-D28-F28)-5.4333,(-0.00000016176*(C28-D28-F28)^4+0.00010366*(C28-D28-F28)^3-0.024223*(C28-D28-F28)^2+2.4258*(C28-D28-F28)-5.4333)-(0.162*(C28-210)))-((18-SUM('Rock Island Capability'!C33:T33))*2)) -> 74.50476214 | J28: =IF(D28>0,-(0.000002231361*C28^3-0.001727269*C28^2+0.3686574*C28-0.7627374),-(-0.00000002276714*C28^4+0.00001391477*C28^3-0.003700159*C28^2+0.4911836*C28-0.4147475)) -> -24.42923052 | K28: 396.7133962 | L28: =K28*'Generation Summary'!$B$5 -> 19.83566981
A29: Hour 24 | B29: ='Generation Summary'!Z$17 -> 1.00159259 | C29: =('Generation Summary'!$B$8+'Generation Summary'!$B$9+'Generation Summary'!$B$10+'Generation Summary'!$B$11+'Generation Summary'!$B$12+'Generation Summary'!$B$13)*'Rock Island Inflow'!B29 -> 95.55193309 | D29: 0 | E29: 217 | F29: 0 | G29: 3.045492268 | H29: =IF('Rock Island Capability'!X34<(C29-D29-F29)*G29,'Rock Island Capability'!X34,(C29-D29-F29)*G29) -> 291.0026734 | I29: =IF(C29=0, 0, IF(C29<210,-0.00000016176*(C29-D29-F29)^4+0.00010366*(C29-D29-F29)^3-0.024223*(C29-D29-F29)^2+2.4258*(C29-D29-F29)-5.4333,(-0.00000016176*(C29-D29-F29)^4+0.00010366*(C29-D29-F29)^3-0.024223*(C29-D29-F29)^2+2.4258*(C29-D29-F29)-5.4333)-(0.162*(C29-210)))-((18-SUM('Rock Island Capability'!C34:T34))*2)) -> 74.14566701 | J29: -22.97716045 | K29: 342.17118 | L29: =K29*'Generation Summary'!$B$5 -> 17.108559
B30: AVG | C30: =AVERAGE(C5:C6,C8:C29) -> 95.41594866 | J30: SUM | K30: =SUM(K5:K29)/2 -> 4077.571949 | L30: =SUM(L5:L29) -> 407.7571949

Sheet Rocky Reach Capability
C1: Rocky Reach Capability Calculations
Q2: Unit outages sent via email (TOAsubscription@chelanpud.org)
B3: Units | C3: C1 | D3: C2 | E3: C3 | F3: C4 | G3: C5 | H3: C6 | I3: C7 | J3: C8 | K3: C9 | L3: C10 | M3: C11 | N3: TOTAL
Q4: Please See Comment for Explanation of Plant Derating Outages
B5: Max Cap (MW) | C5: 105 | D5: 105 | E5: 105 | F5: 105 | G5: 105 | H5: 105 | I5: 105 | J5: 130 | K5: 130 | L5: 130 | M5: 130 | N5: =SUM(C5:M5) -> 1255
B6: Reduce Cap by… | C6: 100 | D6: 100 | E6: 100 | F6: 100 | G6: 100 | H6: 100 | I6: 100 | J6: 125 | K6: 125 | L6: 125 | M6: 125
A7: 1 | B7: = available
A8: 0 | B8: = unavailable
B9: Water (KCFS) | N9: Flows <= 180 KCFS | O9: All Units Avail. | P9: Flows > 180 KCFS | Q9: Plant Capability | R9: RI-RR Encrch | S9: RR-LKCH Encrch | T9: Net Plant Capability | U9: Slice Share Capability before Reserve Requirements | W9: Total Plant Capability modified by... (+ increase /- decrease)
A10: Hour 1 | B10: ='Rocky Reach Inflow'!C5 -> 85.722 | C10: 1 | D10: 1 | E10: 1 | F10: 1 | G10: 1 | H10: 0 | I10: 1 | J10: 1 | K10: 1 | L10: 1 | M10: 0 | N10: =$N$5-COUNTIF(C10,"=0")*C$6-COUNTIF(D10,"=0")*D$6-COUNTIF(E10,"=0")*E$6-COUNTIF(F10,"=0")*F$6-COUNTIF(G10,"=0")*G$6-COUNTIF(H10,"=0")*H$6-COUNTIF(I10,"=0")*I$6-COUNTIF(J10,"=0")*J$6-COUNTIF(K10,"=0")*K$6-COUNTIF(L10,"=0")*L$6-COUNTIF(M10,"=0")*M$6 -> 1030 | O10: =-0.935101*B10+1423.18 -> 1343.021272 | P10: =O10-COUNTIF(C10,"=0")*C$5-COUNTIF(D10,"=0")*D$5-COUNTIF(E10,"=0")*E$5-COUNTIF(F10,"=0")*F$5-COUNTIF(G10,"=0")*G$5-COUNTIF(H10,"=0")*H$5-COUNTIF(I10,"=0")*I$5-COUNTIF(J10,"=0")*J$5-COUNTIF(K10,"=0")*K$5-COUNTIF(L10,"=0")*L$5-COUNTIF(M10,"=0")*M$5 -> 1108.021272 | Q10: =IF(N10<P10,N10+W10,P10+W10) -> 1010 | R10: 25 | S10: =IF((OR('Generation Summary'!$A$3=9,'Generation Summary'!$A$3=10)),-2,IF((OR('Generation Summary'!$A$3=5,'Generation Summary'!$A$3=6,'Generation Summary'!$A$3=7,'Generation Summary'!$A$3=8,'Generation Summary'!$A$3=11)),-3,IF((OR('Generation Summary'!$A$3=1,'Generation Summary'!$A$3=2,'Generation Summary'!$A$3=3,'Generation Summary'!$A$3=4,'Generation Summary'!$A$3=12)),-4,"BLANK"))) -> -4 | T10: =Q10+R10+S10 -> 1031 | U10: =(T10*'Generation Summary'!$B$4) -> 51.55 | V10: Hour 1 | W10: -20
A11: Hour 2 | B11: ='Rocky Reach Inflow'!C6 -> 75.36 | C11: 1 | D11: 1 | E11: 1 | F11: 1 | G11: 1 | H11: 0 | I11: 1 | J11: 1 | K11: 1 | L11: 1 | M11: 0 | N11: =$N$5-COUNTIF(C11,"=0")*C$6-COUNTIF(D11,"=0")*D$6-COUNTIF(E11,"=0")*E$6-COUNTIF(F11,"=0")*F$6-COUNTIF(G11,"=0")*G$6-COUNTIF(H11,"=0")*H$6-COUNTIF(I11,"=0")*I$6-COUNTIF(J11,"=0")*J$6-COUNTIF(K11,"=0")*K$6-COUNTIF(L11,"=0")*L$6-COUNTIF(M11,"=0")*M$6 -> 1030 | O11: 1352.710789 | P11: =O11-COUNTIF(C11,"=0")*C$5-COUNTIF(D11,"=0")*D$5-COUNTIF(E11,"=0")*E$5-COUNTIF(F11,"=0")*F$5-COUNTIF(G11,"=0")*G$5-COUNTIF(H11,"=0")*H$5-COUNTIF(I11,"=0")*I$5-COUNTIF(J11,"=0")*J$5-COUNTIF(K11,"=0")*K$5-COUNTIF(L11,"=0")*L$5-COUNTIF(M11,"=0")*M$5 -> 1117.710789 | Q11: =IF(N11<P11,N11+W11,P11+W11) -> 1010 | R11: 25 | S11: =IF((OR('Generation Summary'!$A$3=9,'Generation Summary'!$A$3=10)),-2,IF((OR('Generation Summary'!$A$3=5,'Generation Summary'!$A$3=6,'Generation Summary'!$A$3=7,'Generation Summary'!$A$3=8,'Generation Summary'!$A$3=11)),-3,IF((OR('Generation Summary'!$A$3=1,'Generation Summary'!$A$3=2,'Generation Summary'!$A$3=3,'Generation Summary'!$A$3=4,'Generation Summary'!$A$3=12)),-4,"BLANK"))) -> -4 | T11: =Q11+R11+S11 -> 1031 | U11: =(T11*'Generation Summary'!$B$4) -> 51.55 | V11: Hour 2 | W11: -20
A12: Hour 2B | B12: ='Rocky Reach Inflow'!C7 -> 0 | C12: 1 | D12: 1 | E12: 1 | F12: 1 | G12: 1 | H12: 0 | I12: 1 | J12: 1 | K12: 1 | L12: 1 | M12: 0 | N12: =$N$5-COUNTIF(C12,"=0")*C$6-COUNTIF(D12,"=0")*D$6-COUNTIF(E12,"=0")*E$6-COUNTIF(F12,"=0")*F$6-COUNTIF(G12,"=0")*G$6-COUNTIF(H12,"=0")*H$6-COUNTIF(I12,"=0")*I$6-COUNTIF(J12,"=0")*J$6-COUNTIF(K12,"=0")*K$6-COUNTIF(L12,"=0")*L$6-COUNTIF(M12,"=0")*M$6 -> 1030 | O12: 1423.18 | P12: 1188.18 | Q12: 1010 | R12: 25 | S12: =IF((OR('Generation Summary'!$A$3=9,'Generation Summary'!$A$3=10)),-2,IF((OR('Generation Summary'!$A$3=5,'Generation Summary'!$A$3=6,'Generation Summary'!$A$3=7,'Generation Summary'!$A$3=8,'Generation Summary'!$A$3=11)),-3,IF((OR('Generation Summary'!$A$3=1,'Generation Summary'!$A$3=2,'Generation Summary'!$A$3=3,'Generation Summary'!$A$3=4,'Generation Summary'!$A$3=12)),-4,"BLANK"))) -> -4 | T12: 1031 | U12: =IF(B12=0,0,(T12*'Generation Summary'!$B$4)) -> 0 | V12: Hour 2B | W12: -20
A13: Hour 3 | B13: ='Rocky Reach Inflow'!C8 -> 67.5499436 | C13: 1 | D13: 1 | E13: 1 | F13: 1 | G13: 1 | H13: 0 | I13: 1 | J13: 1 | K13: 1 | L13: 1 | M13: 0 | N13: =$N$5-COUNTIF(C13,"=0")*C$6-COUNTIF(D13,"=0")*D$6-COUNTIF(E13,"=0")*E$6-COUNTIF(F13,"=0")*F$6-COUNTIF(G13,"=0")*G$6-COUNTIF(H13,"=0")*H$6-COUNTIF(I13,"=0")*I$6-COUNTIF(J13,"=0")*J$6-COUNTIF(K13,"=0")*K$6-COUNTIF(L13,"=0")*L$6-COUNTIF(M13,"=0")*M$6 -> 1030 | O13: 1360.01398 | P13: =O13-COUNTIF(C13,"=0")*C$5-COUNTIF(D13,"=0")*D$5-COUNTIF(E13,"=0")*E$5-COUNTIF(F13,"=0")*F$5-COUNTIF(G13,"=0")*G$5-COUNTIF(H13,"=0")*H$5-COUNTIF(I13,"=0")*I$5-COUNTIF(J13,"=0")*J$5-COUNTIF(K13,"=0")*K$5-COUNTIF(L13,"=0")*L$5-COUNTIF(M13,"=0")*M$5 -> 1125.01398 | Q13: 1010 | R13: 25 | S13: =IF((OR('Generation Summary'!$A$3=9,'Generation Summary'!$A$3=10)),-2,IF((OR('Generation Summary'!$A$3=5,'Generation Summary'!$A$3=6,'Generation Summary'!$A$3=7,'Generation Summary'!$A$3=8,'Generation Summary'!$A$3=11)),-3,IF((OR('Generation Summary'!$A$3=1,'Generation Summary'!$A$3=2,'Generation Summary'!$A$3=3,'Generation Summary'!$A$3=4,'Generation Summary'!$A$3=12)),-4,"BLANK"))) -> -4 | T13: 1031 | U13: =(T13*'Generation Summary'!$B$4) -> 51.55 | V13: Hour 3 | W13: -20
A14: Hour 4 | B14: ='Rocky Reach Inflow'!C9 -> 66.1938567 | C14: 1 | D14: 1 | E14: 1 | F14: 1 | G14: 1 | H14: 0 | I14: 1 | J14: 1 | K14: 1 | L14: 1 | M14: 0 | N14: =$N$5-COUNTIF(C14,"=0")*C$6-COUNTIF(D14,"=0")*D$6-COUNTIF(E14,"=0")*E$6-COUNTIF(F14,"=0")*F$6-COUNTIF(G14,"=0")*G$6-COUNTIF(H14,"=0")*H$6-COUNTIF(I14,"=0")*I$6-COUNTIF(J14,"=0")*J$6-COUNTIF(K14,"=0")*K$6-COUNTIF(L14,"=0")*L$6-COUNTIF(M14,"=0")*M$6 -> 1030 | O14: 1361.282058 | P14: 1126.282058 | Q14: =IF(N14<P14,N14+W14,P14+W14) -> 1010 | R14: 25 | S14: =IF((OR('Generation Summary'!$A$3=9,'Generation Summary'!$A$3=10)),-2,IF((OR('Generation Summary'!$A$3=5,'Generation Summary'!$A$3=6,'Generation Summary'!$A$3=7,'Generation Summary'!$A$3=8,'Generation Summary'!$A$3=11)),-3,IF((OR('Generation Summary'!$A$3=1,'Generation Summary'!$A$3=2,'Generation Summary'!$A$3=3,'Generation Summary'!$A$3=4,'Generation Summary'!$A$3=12)),-4,"BLANK"))) -> -4 | T14: 1031 | U14: =(T14*'Generation Summary'!$B$4) -> 51.55 | V14: Hour 4 | W14: -20
A15: Hour 5 | B15: ='Rocky Reach Inflow'!C10 -> 62.4610746 | C15: 1 | D15: 1 | E15: 1 | F15: 1 | G15: 1 | H15: 0 | I15: 1 | J15: 1 | K15: 1 | L15: 1 | M15: 0 | N15: 1030 | O15: 1364.772587 | P15: 1129.772587 | Q15: 1010 | R15: 25 | S15: =IF((OR('Generation Summary'!$A$3=9,'Generation Summary'!$A$3=10)),-2,IF((OR('Generation Summary'!$A$3=5,'Generation Summary'!$A$3=6,'Generation Summary'!$A$3=7,'Generation Summary'!$A$3=8,'Generation Summary'!$A$3=11)),-3,IF((OR('Generation Summary'!$A$3=1,'Generation Summary'!$A$3=2,'Generation Summary'!$A$3=3,'Generation Summary'!$A$3=4,'Generation Summary'!$A$3=12)),-4,"BLANK"))) -> -4 | T15: 1031 | U15: =(T15*'Generation Summary'!$B$4) -> 51.55 | V15: Hour 5 | W15: -20
A16: Hour 6 | B16: ='Rocky Reach Inflow'!C11 -> 68.03404541 | C16: 1 | D16: 1 | E16: 1 | F16: 1 | G16: 1 | H16: 0 | I16: 1 | J16: 1 | K16: 1 | L16: 1 | M16: 0 | N16: 1030 | O16: 1359.561296 | P16: 1124.561296 | Q16: 1010 | R16: 25 | S16: =IF((OR('Generation Summary'!$A$3=9,'Generation Summary'!$A$3=10)),-2,IF((OR('Generation Summary'!$A$3=5,'Generation Summary'!$A$3=6,'Generation Summary'!$A$3=7,'Generation Summary'!$A$3=8,'Generation Summary'!$A$3=11)),-3,IF((OR('Generation Summary'!$A$3=1,'Generation Summary'!$A$3=2,'Generation Summary'!$A$3=3,'Generation Summary'!$A$3=4,'Generation Summary'!$A$3=12)),-4,"BLANK"))) -> -4 | T16: 1031 | U16: =(T16*'Generation Summary'!$B$4) -> 51.55 | V16: Hour 6 | W16: -20
A17: Hour 7 | B17: ='Rocky Reach Inflow'!C12 -> 74.55025492 | C17: 1 | D17: 1 | E17: 1 | F17: 1 | G17: 1 | H17: 0 | I17: 1 | J17: 1 | K17: 1 | L17: 1 | M17: 0 | N17: 1030 | O17: 1353.467982 | P17: 1118.467982 | Q17: 1010 | R17: 25 | S17: =IF((OR('Generation Summary'!$A$3=9,'Generation Summary'!$A$3=10)),-2,IF((OR('Generation Summary'!$A$3=5,'Generation Summary'!$A$3=6,'Generation Summary'!$A$3=7,'Generation Summary'!$A$3=8,'Generation Summary'!$A$3=11)),-3,IF((OR('Generation Summary'!$A$3=1,'Generation Summary'!$A$3=2,'Generation Summary'!$A$3=3,'Generation Summary'!$A$3=4,'Generation Summary'!$A$3=12)),-4,"BLANK"))) -> -4 | T17: 1031 | U17: =(T17*'Generation Summary'!$B$4) -> 51.55 | V17: Hour 7 | W17: -20
A18: Hour 8 | B18: ='Rocky Reach Inflow'!C13 -> 95.33086644 | C18: 1 | D18: 1 | E18: 1 | F18: 1 | G18: 1 | H18: 0 | I18: 1 | J18: 1 | K18: 1 | L18: 1 | M18: 0 | N18: 1030 | O18: 1334.036011 | P18: 1099.036011 | Q18: 1010 | R18: 25 | S18: =IF((OR('Generation Summary'!$A$3=9,'Generation Summary'!$A$3=10)),-2,IF((OR('Generation Summary'!$A$3=5,'Generation Summary'!$A$3=6,'Generation Summary'!$A$3=7,'Generation Summary'!$A$3=8,'Generation Summary'!$A$3=11)),-3,IF((OR('Generation Summary'!$A$3=1,'Generation Summary'!$A$3=2,'Generation Summary'!$A$3=3,'Generation Summary'!$A$3=4,'Generation Summary'!$A$3=12)),-4,"BLANK"))) -> -4 | T18: 1031 | U18: =(T18*'Generation Summary'!$B$4) -> 51.55 | V18: Hour 8 | W18: -20
A19: Hour 9 | B19: ='Rocky Reach Inflow'!C14 -> 101.1423997 | C19: 1 | D19: 1 | E19: 1 | F19: 1 | G19: 1 | H19: 0 | I19: 1 | J19: 1 | K19: 1 | L19: 1 | M19: 0 | N19: 1030 | O19: 1328.601641 | P19: 1093.601641 | Q19: 1010 | R19: 25 | S19: =IF((OR('Generation Summary'!$A$3=9,'Generation Summary'!$A$3=10)),-2,IF((OR('Generation Summary'!$A$3=5,'Generation Summary'!$A$3=6,'Generation Summary'!$A$3=7,'Generation Summary'!$A$3=8,'Generation Summary'!$A$3=11)),-3,IF((OR('Generation Summary'!$A$3=1,'Generation Summary'!$A$3=2,'Generation Summary'!$A$3=3,'Generation Summary'!$A$3=4,'Generation Summary'!$A$3=12)),-4,"BLANK"))) -> -4 | T19: 1031 | U19: =(T19*'Generation Summary'!$B$4) -> 51.55 | V19: Hour 9 | W19: -20
A20: Hour 10 | B20: ='Rocky Reach Inflow'!C15 -> 107.4821911 | C20: 1 | D20: 1 | E20: 1 | F20: 1 | G20: 1 | H20: 0 | I20: 1 | J20: 1 | K20: 1 | L20: 1 | M20: 0 | N20: 1030 | O20: 1322.673296 | P20: 1087.673296 | Q20: 1010 | R20: 25 | S20: =IF((OR('Generation Summary'!$A$3=9,'Generation Summary'!$A$3=10)),-2,IF((OR('Generation Summary'!$A$3=5,'Generation Summary'!$A$3=6,'Generation Summary'!$A$3=7,'Generation Summary'!$A$3=8,'Generation Summary'!$A$3=11)),-3,IF((OR('Generation Summary'!$A$3=1,'Generation Summary'!$A$3=2,'Generation Summary'!$A$3=3,'Generation Summary'!$A$3=4,'Generation Summary'!$A$3=12)),-4,"BLANK"))) -> -4 | T20: 1031 | U20: =(T20*'Generation Summary'!$B$4) -> 51.55 | V20: Hour 10 | W20: -20
A21: Hour 11 | B21: ='Rocky Reach Inflow'!C16 -> 106.8742214 | C21: 1 | D21: 1 | E21: 1 | F21: 1 | G21: 1 | H21: 0 | I21: 1 | J21: 1 | K21: 1 | L21: 1 | M21: 0 | N21: 1030 | O21: 1323.241809 | P21: 1088.241809 | Q21: 1010 | R21: 25 | S21: =IF((OR('Generation Summary'!$A$3=9,'Generation Summary'!$A$3=10)),-2,IF((OR('Generation Summary'!$A$3=5,'Generation Summary'!$A$3=6,'Generation Summary'!$A$3=7,'Generation Summary'!$A$3=8,'Generation Summary'!$A$3=11)),-3,IF((OR('Generation Summary'!$A$3=1,'Generation Summary'!$A$3=2,'Generation Summary'!$A$3=3,'Generation Summary'!$A$3=4,'Generation Summary'!$A$3=12)),-4,"BLANK"))) -> -4 | T21: 1031 | U21: =(T21*'Generation Summary'!$B$4) -> 51.55 | V21: Hour 11 | W21: -20
A22: Hour 12 | B22: ='Rocky Reach Inflow'!C17 -> 100.5116095 | C22: 1 | D22: 1 | E22: 1 | F22: 1 | G22: 1 | H22: 0 | I22: 1 | J22: 1 | K22: 1 | L22: 1 | M22: 0 | N22: 1030 | O22: 1329.191493 | P22: 1094.191493 | Q22: 1010 | R22: 25 | S22: =IF((OR('Generation Summary'!$A$3=9,'Generation Summary'!$A$3=10)),-2,IF((OR('Generation Summary'!$A$3=5,'Generation Summary'!$A$3=6,'Generation Summary'!$A$3=7,'Generation Summary'!$A$3=8,'Generation Summary'!$A$3=11)),-3,IF((OR('Generation Summary'!$A$3=1,'Generation Summary'!$A$3=2,'Generation Summary'!$A$3=3,'Generation Summary'!$A$3=4,'Generation Summary'!$A$3=12)),-4,"BLANK"))) -> -4 | T22: 1031 | U22: =(T22*'Generation Summary'!$B$4) -> 51.55 | V22: Hour 12 | W22: -20
A23: Hour 13 | B23: ='Rocky Reach Inflow'!C18 -> 94.43748818 | C23: 1 | D23: 1 | E23: 1 | F23: 1 | G23: 1 | H23: 0 | I23: 1 | J23: 1 | K23: 1 | L23: 1 | M23: 0 | N23: 1030 | O23: 1334.87141 | P23: 1099.87141 | Q23: 1010 | R23: 25 | S23: =IF((OR('Generation Summary'!$A$3=9,'Generation Summary'!$A$3=10)),-2,IF((OR('Generation Summary'!$A$3=5,'Generation Summary'!$A$3=6,'Generation Summary'!$A$3=7,'Generation Summary'!$A$3=8,'Generation Summary'!$A$3=11)),-3,IF((OR('Generation Summary'!$A$3=1,'Generation Summary'!$A$3=2,'Generation Summary'!$A$3=3,'Generation Summary'!$A$3=4,'Generation Summary'!$A$3=12)),-4,"BLANK"))) -> -4 | T23: 1031 | U23: =(T23*'Generation Summary'!$B$4) -> 51.55 | V23: Hour 13 | W23: -20
A24: Hour 14 | B24: ='Rocky Reach Inflow'!C19 -> 90.3771356 | C24: 1 | D24: 1 | E24: 1 | F24: 1 | G24: 1 | H24: 0 | I24: 1 | J24: 1 | K24: 1 | L24: 1 | M24: 0 | N24: 1030 | O24: 1338.66825 | P24: 1103.66825 | Q24: 1010 | R24: 25 | S24: =IF((OR('Generation Summary'!$A$3=9,'Generation Summary'!$A$3=10)),-2,IF((OR('Generation Summary'!$A$3=5,'Generation Summary'!$A$3=6,'Generation Summary'!$A$3=7,'Generation Summary'!$A$3=8,'Generation Summary'!$A$3=11)),-3,IF((OR('Generation Summary'!$A$3=1,'Generation Summary'!$A$3=2,'Generation Summary'!$A$3=3,'Generation Summary'!$A$3=4,'Generation Summary'!$A$3=12)),-4,"BLANK"))) -> -4 | T24: 1031 | U24: =(T24*'Generation Summary'!$B$4) -> 51.55 | V24: Hour 14 | W24: -20
A25: Hour 15 | B25: ='Rocky Reach Inflow'!C20 -> 91.11666536 | C25: 1 | D25: 1 | E25: 1 | F25: 1 | G25: 1 | H25: 0 | I25: 1 | J25: 1 | K25: 1 | L25: 1 | M25: 0 | N25: 1030 | O25: 1337.976715 | P25: 1102.976715 | Q25: 1010 | R25: 25 | S25: =IF((OR('Generation Summary'!$A$3=9,'Generation Summary'!$A$3=10)),-2,IF((OR('Generation Summary'!$A$3=5,'Generation Summary'!$A$3=6,'Generation Summary'!$A$3=7,'Generation Summary'!$A$3=8,'Generation Summary'!$A$3=11)),-3,IF((OR('Generation Summary'!$A$3=1,'Generation Summary'!$A$3=2,'Generation Summary'!$A$3=3,'Generation Summary'!$A$3=4,'Generation Summary'!$A$3=12)),-4,"BLANK"))) -> -4 | T25: 1031 | U25: =(T25*'Generation Summary'!$B$4) -> 51.55 | V25: Hour 15 | W25: -20
A26: Hour 16 | B26: ='Rocky Reach Inflow'!C21 -> 94.17264204 | C26: 1 | D26: 1 | E26: 1 | F26: 1 | G26: 1 | H26: 0 | I26: 1 | J26: 1 | K26: 1 | L26: 1 | M26: 0 | N26: 1030 | O26: 1335.119068 | P26: 1100.119068 | Q26: 1010 | R26: 25 | S26: =IF((OR('Generation Summary'!$A$3=9,'Generation Summary'!$A$3=10)),-2,IF((OR('Generation Summary'!$A$3=5,'Generation Summary'!$A$3=6,'Generation Summary'!$A$3=7,'Generation Summary'!$A$3=8,'Generation Summary'!$A$3=11)),-3,IF((OR('Generation Summary'!$A$3=1,'Generation Summary'!$A$3=2,'Generation Summary'!$A$3=3,'Generation Summary'!$A$3=4,'Generation Summary'!$A$3=12)),-4,"BLANK"))) -> -4 | T26: 1031 | U26: =(T26*'Generation Summary'!$B$4) -> 51.55 | V26: Hour 16 | W26: -20
A27: Hour 17 | B27: ='Rocky Reach Inflow'!C22 -> 99.07354739 | C27: 1 | D27: 1 | E27: 1 | F27: 1 | G27: 1 | H27: 0 | I27: 1 | J27: 1 | K27: 1 | L27: 1 | M27: 0 | N27: 1030 | O27: 1330.536227 | P27: 1095.536227 | Q27: 1010 | R27: 25 | S27: =IF((OR('Generation Summary'!$A$3=9,'Generation Summary'!$A$3=10)),-2,IF((OR('Generation Summary'!$A$3=5,'Generation Summary'!$A$3=6,'Generation Summary'!$A$3=7,'Generation Summary'!$A$3=8,'Generation Summary'!$A$3=11)),-3,IF((OR('Generation Summary'!$A$3=1,'Generation Summary'!$A$3=2,'Generation Summary'!$A$3=3,'Generation Summary'!$A$3=4,'Generation Summary'!$A$3=12)),-4,"BLANK"))) -> -4 | T27: 1031 | U27: =(T27*'Generation Summary'!$B$4) -> 51.55 | V27: Hour 17 | W27: -20
A28: Hour 18 | B28: ='Rocky Reach Inflow'!C23 -> 105.0301479 | C28: 1 | D28: 1 | E28: 1 | F28: 1 | G28: 1 | H28: 0 | I28: 1 | J28: 1 | K28: 1 | L28: 1 | M28: 0 | N28: 1030 | O28: 1324.966204 | P28: 1089.966204 | Q28: 1010 | R28: 25 | S28: =IF((OR('Generation Summary'!$A$3=9,'Generation Summary'!$A$3=10)),-2,IF((OR('Generation Summary'!$A$3=5,'Generation Summary'!$A$3=6,'Generation Summary'!$A$3=7,'Generation Summary'!$A$3=8,'Generation Summary'!$A$3=11)),-3,IF((OR('Generation Summary'!$A$3=1,'Generation Summary'!$A$3=2,'Generation Summary'!$A$3=3,'Generation Summary'!$A$3=4,'Generation Summary'!$A$3=12)),-4,"BLANK"))) -> -4 | T28: 1031 | U28: =(T28*'Generation Summary'!$B$4) -> 51.55 | V28: Hour 18 | W28: -20
A29: Hour 19 | B29: ='Rocky Reach Inflow'!C24 -> 113.8161427 | C29: 1 | D29: 1 | E29: 1 | F29: 1 | G29: 1 | H29: 0 | I29: 1 | J29: 1 | K29: 1 | L29: 1 | M29: 0 | N29: 1030 | O29: 1316.750411 | P29: 1081.750411 | Q29: 1010 | R29: 25 | S29: =IF((OR('Generation Summary'!$A$3=9,'Generation Summary'!$A$3=10)),-2,IF((OR('Generation Summary'!$A$3=5,'Generation Summary'!$A$3=6,'Generation Summary'!$A$3=7,'Generation Summary'!$A$3=8,'Generation Summary'!$A$3=11)),-3,IF((OR('Generation Summary'!$A$3=1,'Generation Summary'!$A$3=2,'Generation Summary'!$A$3=3,'Generation Summary'!$A$3=4,'Generation Summary'!$A$3=12)),-4,"BLANK"))) -> -4 | T29: 1031 | U29: =(T29*'Generation Summary'!$B$4) -> 51.55 | V29: Hour 19 | W29: -20
A30: Hour 20 | B30: ='Rocky Reach Inflow'!C25 -> 117.0450451 | C30: 1 | D30: 1 | E30: 1 | F30: 1 | G30: 1 | H30: 0 | I30: 1 | J30: 1 | K30: 1 | L30: 1 | M30: 0 | N30: 1030 | O30: 1313.731061 | P30: 1078.731061 | Q30: 1010 | R30: 25 | S30: =IF((OR('Generation Summary'!$A$3=9,'Generation Summary'!$A$3=10)),-2,IF((OR('Generation Summary'!$A$3=5,'Generation Summary'!$A$3=6,'Generation Summary'!$A$3=7,'Generation Summary'!$A$3=8,'Generation Summary'!$A$3=11)),-3,IF((OR('Generation Summary'!$A$3=1,'Generation Summary'!$A$3=2,'Generation Summary'!$A$3=3,'Generation Summary'!$A$3=4,'Generation Summary'!$A$3=12)),-4,"BLANK"))) -> -4 | T30: 1031 | U30: =(T30*'Generation Summary'!$B$4) -> 51.55 | V30: Hour 20 | W30: -20
A31: Hour 21 | B31: ='Rocky Reach Inflow'!C26 -> 116.7960701 | C31: 1 | D31: 1 | E31: 1 | F31: 1 | G31: 1 | H31: 0 | I31: 1 | J31: 1 | K31: 1 | L31: 1 | M31: 0 | N31: 1030 | O31: 1313.963878 | P31: 1078.963878 | Q31: 1010 | R31: 25 | S31: =IF((OR('Generation Summary'!$A$3=9,'Generation Summary'!$A$3=10)),-2,IF((OR('Generation Summary'!$A$3=5,'Generation Summary'!$A$3=6,'Generation Summary'!$A$3=7,'Generation Summary'!$A$3=8,'Generation Summary'!$A$3=11)),-3,IF((OR('Generation Summary'!$A$3=1,'Generation Summary'!$A$3=2,'Generation Summary'!$A$3=3,'Generation Summary'!$A$3=4,'Generation Summary'!$A$3=12)),-4,"BLANK"))) -> -4 | T31: 1031 | U31: =(T31*'Generation Summary'!$B$4) -> 51.55 | V31: Hour 21 | W31: -20
A32: Hour 22 | B32: ='Rocky Reach Inflow'!C27 -> 118.0823755 | C32: 1 | D32: 1 | E32: 1 | F32: 1 | G32: 1 | H32: 0 | I32: 1 | J32: 1 | K32: 1 | L32: 1 | M32: 0 | N32: 1030 | O32: 1312.761053 | P32: 1077.761053 | Q32: 1010 | R32: 25 | S32: =IF((OR('Generation Summary'!$A$3=9,'Generation Summary'!$A$3=10)),-2,IF((OR('Generation Summary'!$A$3=5,'Generation Summary'!$A$3=6,'Generation Summary'!$A$3=7,'Generation Summary'!$A$3=8,'Generation Summary'!$A$3=11)),-3,IF((OR('Generation Summary'!$A$3=1,'Generation Summary'!$A$3=2,'Generation Summary'!$A$3=3,'Generation Summary'!$A$3=4,'Generation Summary'!$A$3=12)),-4,"BLANK"))) -> -4 | T32: 1031 | U32: =(T32*'Generation Summary'!$B$4) -> 51.55 | V32: Hour 22 | W32: -20
A33: Hour 23 | B33: ='Rocky Reach Inflow'!C28 -> 115.668208 | C33: 1 | D33: 1 | E33: 1 | F33: 1 | G33: 1 | H33: 0 | I33: 1 | J33: 1 | K33: 1 | L33: 1 | M33: 0 | N33: 1030 | O33: 1315.018543 | P33: 1080.018543 | Q33: 1010 | R33: 25 | S33: =IF((OR('Generation Summary'!$A$3=9,'Generation Summary'!$A$3=10)),-2,IF((OR('Generation Summary'!$A$3=5,'Generation Summary'!$A$3=6,'Generation Summary'!$A$3=7,'Generation Summary'!$A$3=8,'Generation Summary'!$A$3=11)),-3,IF((OR('Generation Summary'!$A$3=1,'Generation Summary'!$A$3=2,'Generation Summary'!$A$3=3,'Generation Summary'!$A$3=4,'Generation Summary'!$A$3=12)),-4,"BLANK"))) -> -4 | T33: 1031 | U33: =(T33*'Generation Summary'!$B$4) -> 51.55 | V33: Hour 23 | W33: -20
A34: Hour 24 | B34: ='Rocky Reach Inflow'!C29 -> 94.35002198 | C34: 1 | D34: 1 | E34: 1 | F34: 1 | G34: 1 | H34: 0 | I34: 1 | J34: 1 | K34: 1 | L34: 1 | M34: 0 | N34: 1030 | O34: 1334.9532 | P34: 1099.9532 | Q34: 1010 | R34: 25 | S34: =IF((OR('Generation Summary'!$A$3=9,'Generation Summary'!$A$3=10)),-2,IF((OR('Generation Summary'!$A$3=5,'Generation Summary'!$A$3=6,'Generation Summary'!$A$3=7,'Generation Summary'!$A$3=8,'Generation Summary'!$A$3=11)),-3,IF((OR('Generation Summary'!$A$3=1,'Generation Summary'!$A$3=2,'Generation Summary'!$A$3=3,'Generation Summary'!$A$3=4,'Generation Summary'!$A$3=12)),-4,"BLANK"))) -> -4 | T34: 1031 | U34: =(T34*'Generation Summary'!$B$4) -> 51.55 | V34: Hour 24 | W34: -20

Sheet Rock Island Capability
C1: Rock Island Capability Calculations
B3: Units | C3: B1 | D3: B2 | E3: B3 | F3: B4 | G3: B5 | H3: B6 | I3: B7 | J3: B8 | K3: B9 | L3: B10 | M3: U1 | N3: U2 | O3: U3 | P3: U4 | Q3: U5 | R3: U6 | S3: U7 | T3: U8 | U3: Total | W3: Unit outages sent via email (TOAsubscription@chelanpud.org)
B5: Max Cap (MW) | C5: 15 | D5: 15 | E5: 15.5 | F5: 15 | G5: 17 | H5: 17 | I5: 17 | J5: 17 | K5: 17 | L5: 19.5 | M5: 42 | N5: 42 | O5: 42 | P5: 42 | Q5: 42 | R5: 42 | S5: 42 | T5: 42 | U5: =SUM(C5:T5) -> 501 | W5: Please See Comment for Explanation of Plant Derating Outages
B6: Reduce Cap by… | C6: 12 | D6: 12 | E6: 12.5 | F6: 12 | G6: 15 | H6: 15 | I6: 15 | J6: 15 | K6: 15 | L6: 17.5 | M6: 40 | N6: 40 | O6: 40 | P6: 40 | Q6: 40 | R6: 40 | S6: 40 | T6: 40
A7: 1 | B7: = available
A8: 0 | B8: = unavailable
B9: Water (KCFS) | U9: Flows <= 260 KCFS | V9: All Units Avail. | W9: Flows > 260 KCFS | X9: Plant Capability | Y9: Wan-RI Encrch | Z9: RI-RR Encrch | AA9: Net Plant Capability | AB9: Slice Share Capability before Reserve Requirements | AD9: Total Plant Capability modified by... (+ increase /- decrease)
A10: Hour 1 | B10: ='Rock Island Inflow'!C5 -> 86.814 | C10: 0 | D10: 0 | E10: 0 | F10: 1 | G10: 1 | H10: 1 | I10: 1 | J10: 1 | K10: 0 | L10: 1 | M10: 1 | N10: 1 | O10: 1 | P10: 1 | Q10: 1 | R10: 1 | S10: 1 | T10: 1 | U10: =$U$5-COUNTIF(C10,"=0")*C$6-COUNTIF(D10,"=0")*D$6-COUNTIF(E10,"=0")*E$6-COUNTIF(F10,"=0")*F$6-COUNTIF(G10,"=0")*G$6-COUNTIF(H10,"=0")*H$6-COUNTIF(I10,"=0")*I$6-COUNTIF(J10,"=0")*J$6-COUNTIF(K10,"=0")*K$6-COUNTIF(L10,"=0")*L$6-COUNTIF(M10,"=0")*M$6-COUNTIF(N10,"=0")*N$6-COUNTIF(O10,"=0")*O$6-COUNTIF(P10,"=0")*P$6-COUNTIF(Q10,"=0")*Q$6-COUNTIF(R10,"=0")*R$6-COUNTIF(S10,"=0")*S$6-COUNTIF(T10,"=0")*T$6 -> 449.5 | V10: =-0.905634*B10+730 -> 651.3782899 | W10: =V10-COUNTIF(C10,"=0")*C$5-COUNTIF(D10,"=0")*D$5-COUNTIF(E10,"=0")*E$5-COUNTIF(F10,"=0")*F$5-COUNTIF(G10,"=0")*G$5-COUNTIF(H10,"=0")*H$5-COUNTIF(I10,"=0")*I$5-COUNTIF(J10,"=0")*J$5-COUNTIF(K10,"=0")*K$5-COUNTIF(L10,"=0")*L$5-COUNTIF(M10,"=0")*M$5-COUNTIF(N10,"=0")*N$5-COUNTIF(O10,"=0")*O$5-COUNTIF(P10,"=0")*P$5-COUNTIF(Q10,"=0")*Q$5-COUNTIF(R10,"=0")*R$5-COUNTIF(S10,"=0")*S$5-COUNTIF(T10,"=0")*T$5 -> 588.8782899 | X10: =IF(U10<W10,U10+AD10,W10+AD10) -> 464.5 | Y10: 85 | Z10: =-'Rocky Reach Capability'!R10 -> -25 | AA10: =X10+Y10+Z10 -> 524.5 | AB10: =(AA10*'Generation Summary'!$B$5) -> 26.225 | AC10: Hour 1 | AD10: 15
A11: Hour 2 | B11: ='Rock Island Inflow'!C6 -> 76.32 | C11: 0 | D11: 0 | E11: 0 | F11: 1 | G11: 1 | H11: 1 | I11: 1 | J11: 1 | K11: 0 | L11: 1 | M11: 1 | N11: 1 | O11: 1 | P11: 1 | Q11: 1 | R11: 1 | S11: 1 | T11: 1 | U11: 449.5 | V11: =-0.905634*B11+730 -> 660.8820131 | W11: 598.3820131 | X11: =IF(U11<W11,U11+AD11,W11+AD11) -> 464.5 | Y11: 85 | Z11: =-'Rocky Reach Capability'!R11 -> -25 | AA11: =X11+Y11+Z11 -> 524.5 | AB11: =(AA11*'Generation Summary'!$B$5) -> 26.225 | AC11: Hour 2 | AD11: 15
A12: Hour 2B | B12: ='Rock Island Inflow'!C7 -> 0 | C12: 0 | D12: 0 | E12: 0 | F12: 1 | G12: 1 | H12: 1 | I12: 1 | J12: 1 | K12: 0 | L12: 1 | M12: 1 | N12: 1 | O12: 1 | P12: 1 | Q12: 1 | R12: 1 | S12: 1 | T12: 1 | U12: 449.5 | V12: 730 | W12: 667.5 | X12: 464.5 | Y12: 85 | Z12: =-'Rocky Reach Capability'!R12 -> -25 | AA12: 524.5 | AB12: =IF(B12=0, 0,(AA12*'Generation Summary'!$B$5)) -> 0 | AC12: Hour 2B | AD12: 15
A13: Hour 3 | B13: ='Rock Island Inflow'!C8 -> 68.41045243 | C13: 0 | D13: 0 | E13: 0 | F13: 1 | G13: 1 | H13: 1 | I13: 1 | J13: 1 | K13: 0 | L13: 1 | M13: 1 | N13: 1 | O13: 1 | P13: 1 | Q13: 1 | R13: 1 | S13: 1 | T13: 1 | U13: 449.5 | V13: 668.0451683 | W13: 605.5451683 | X13: 464.5 | Y13: 85 | Z13: =-'Rocky Reach Capability'!R13 -> -25 | AA13: 524.5 | AB13: =(AA13*'Generation Summary'!$B$5) -> 26.225 | AC13: Hour 3 | AD13: 15
A14: Hour 4 | B14: ='Rock Island Inflow'!C9 -> 67.03709055 | C14: 0 | D14: 0 | E14: 0 | F14: 1 | G14: 1 | H14: 1 | I14: 1 | J14: 1 | K14: 0 | L14: 1 | M14: 1 | N14: 1 | O14: 1 | P14: 1 | Q14: 1 | R14: 1 | S14: 1 | T14: 1 | U14: 449.5 | V14: 669.2889315 | W14: 606.7889315 | X14: 464.5 | Y14: 85 | Z14: =-'Rocky Reach Capability'!R14 -> -25 | AA14: 524.5 | AB14: =(AA14*'Generation Summary'!$B$5) -> 26.225 | AC14: Hour 4 | AD14: 15
A15: Hour 5 | B15: ='Rock Island Inflow'!C10 -> 63.25675708 | C15: 0 | D15: 0 | E15: 0 | F15: 1 | G15: 1 | H15: 1 | I15: 1 | J15: 1 | K15: 0 | L15: 1 | M15: 1 | N15: 1 | O15: 1 | P15: 1 | Q15: 1 | R15: 1 | S15: 1 | T15: 1 | U15: 449.5 | V15: 672.7125301 | W15: 610.2125301 | X15: 464.5 | Y15: 85 | Z15: =-'Rocky Reach Capability'!R15 -> -25 | AA15: 524.5 | AB15: =(AA15*'Generation Summary'!$B$5) -> 26.225 | AC15: Hour 5 | AD15: 15
A16: Hour 6 | B16: ='Rock Island Inflow'!C11 -> 68.90072115 | C16: 0 | D16: 0 | E16: 0 | F16: 1 | G16: 1 | H16: 1 | I16: 1 | J16: 1 | K16: 0 | L16: 1 | M16: 1 | N16: 1 | O16: 1 | P16: 1 | Q16: 1 | R16: 1 | S16: 1 | T16: 1 | U16: 449.5 | V16: 667.6011643 | W16: 605.1011643 | X16: 464.5 | Y16: 85 | Z16: =-'Rocky Reach Capability'!R16 -> -25 | AA16: 524.5 | AB16: =(AA16*'Generation Summary'!$B$5) -> 26.225 | AC16: Hour 6 | AD16: 15
A17: Hour 7 | B17: ='Rock Island Inflow'!C12 -> 75.4999397 | C17: 0 | D17: 0 | E17: 0 | F17: 1 | G17: 1 | H17: 1 | I17: 1 | J17: 1 | K17: 0 | L17: 1 | M17: 1 | N17: 1 | O17: 1 | P17: 1 | Q17: 1 | R17: 1 | S17: 1 | T17: 1 | U17: 449.5 | V17: 661.6246876 | W17: 599.1246876 | X17: 464.5 | Y17: 85 | Z17: =-'Rocky Reach Capability'!R17 -> -25 | AA17: 524.5 | AB17: =(AA17*'Generation Summary'!$B$5) -> 26.225 | AC17: Hour 7 | AD17: 15
A18: Hour 8 | B18: ='Rock Island Inflow'!C13 -> 96.54527239 | C18: 0 | D18: 0 | E18: 0 | F18: 1 | G18: 1 | H18: 1 | I18: 1 | J18: 1 | K18: 0 | L18: 1 | M18: 1 | N18: 1 | O18: 1 | P18: 1 | Q18: 1 | R18: 1 | S18: 1 | T18: 1 | U18: 449.5 | V18: 642.5653188 | W18: 580.0653188 | X18: 464.5 | Y18: 85 | Z18: =-'Rocky Reach Capability'!R18 -> -25 | AA18: 524.5 | AB18: =(AA18*'Generation Summary'!$B$5) -> 26.225 | AC18: Hour 8 | AD18: 15
A19: Hour 9 | B19: ='Rock Island Inflow'!C14 -> 102.4308379 | C19: 0 | D19: 0 | E19: 0 | F19: 1 | G19: 1 | H19: 1 | I19: 1 | J19: 1 | K19: 0 | L19: 1 | M19: 1 | N19: 1 | O19: 1 | P19: 1 | Q19: 1 | R19: 1 | S19: 1 | T19: 1 | U19: 449.5 | V19: 637.2351506 | W19: 574.7351506 | X19: 464.5 | Y19: 85 | Z19: =-'Rocky Reach Capability'!R19 -> -25 | AA19: 524.5 | AB19: =(AA19*'Generation Summary'!$B$5) -> 26.225 | AC19: Hour 9 | AD19: 15
A20: Hour 10 | B20: ='Rock Island Inflow'!C15 -> 108.851391 | C20: 0 | D20: 0 | E20: 0 | F20: 1 | G20: 1 | H20: 1 | I20: 1 | J20: 1 | K20: 0 | L20: 1 | M20: 1 | N20: 1 | O20: 1 | P20: 1 | Q20: 1 | R20: 1 | S20: 1 | T20: 1 | U20: 449.5 | V20: 631.4204794 | W20: 568.9204794 | X20: 464.5 | Y20: 85 | Z20: =-'Rocky Reach Capability'!R20 -> -25 | AA20: 524.5 | AB20: =(AA20*'Generation Summary'!$B$5) -> 26.225 | AC20: Hour 10 | AD20: 15
A21: Hour 11 | B21: ='Rock Island Inflow'!C16 -> 108.2356764 | C21: 0 | D21: 0 | E21: 0 | F21: 1 | G21: 1 | H21: 1 | I21: 1 | J21: 1 | K21: 0 | L21: 1 | M21: 1 | N21: 1 | O21: 1 | P21: 1 | Q21: 1 | R21: 1 | S21: 1 | T21: 1 | U21: 449.5 | V21: 631.9780914 | W21: 569.4780914 | X21: 464.5 | Y21: 85 | Z21: =-'Rocky Reach Capability'!R21 -> -25 | AA21: 524.5 | AB21: =(AA21*'Generation Summary'!$B$5) -> 26.225 | AC21: Hour 11 | AD21: 15
A22: Hour 12 | B22: ='Rock Island Inflow'!C17 -> 101.7920121 | C22: 0 | D22: 0 | E22: 0 | F22: 1 | G22: 1 | H22: 1 | I22: 1 | J22: 1 | K22: 0 | L22: 1 | M22: 1 | N22: 1 | O22: 1 | P22: 1 | Q22: 1 | R22: 1 | S22: 1 | T22: 1 | U22: 449.5 | V22: 637.8136929 | W22: 575.3136929 | X22: 464.5 | Y22: 85 | Z22: =-'Rocky Reach Capability'!R22 -> -25 | AA22: 524.5 | AB22: =(AA22*'Generation Summary'!$B$5) -> 26.225 | AC22: Hour 12 | AD22: 15
A23: Hour 13 | B23: ='Rock Island Inflow'!C18 -> 95.64051351 | C23: 0 | D23: 0 | E23: 0 | F23: 1 | G23: 1 | H23: 1 | I23: 1 | J23: 1 | K23: 0 | L23: 1 | M23: 1 | N23: 1 | O23: 1 | P23: 1 | Q23: 1 | R23: 1 | S23: 1 | T23: 1 | U23: 449.5 | V23: 643.3846992 | W23: 580.8846992 | X23: 464.5 | Y23: 85 | Z23: =-'Rocky Reach Capability'!R23 -> -25 | AA23: 524.5 | AB23: =(AA23*'Generation Summary'!$B$5) -> 26.225 | AC23: Hour 13 | AD23: 15
A24: Hour 14 | B24: ='Rock Island Inflow'!C19 -> 91.52843669 | C24: 0 | D24: 0 | E24: 0 | F24: 1 | G24: 1 | H24: 1 | I24: 1 | J24: 1 | K24: 0 | L24: 1 | M24: 1 | N24: 1 | O24: 1 | P24: 1 | Q24: 1 | R24: 1 | S24: 1 | T24: 1 | U24: 449.5 | V24: 647.1087358 | W24: 584.6087358 | X24: 464.5 | Y24: 85 | Z24: =-'Rocky Reach Capability'!R24 -> -25 | AA24: 524.5 | AB24: =(AA24*'Generation Summary'!$B$5) -> 26.225 | AC24: Hour 14 | AD24: 15
A25: Hour 15 | B25: ='Rock Island Inflow'!C20 -> 92.27738721 | C25: 0 | D25: 0 | E25: 0 | F25: 1 | G25: 1 | H25: 1 | I25: 1 | J25: 1 | K25: 0 | L25: 1 | M25: 1 | N25: 1 | O25: 1 | P25: 1 | Q25: 1 | R25: 1 | S25: 1 | T25: 1 | U25: 449.5 | V25: 646.4304607 | W25: 583.9304607 | X25: 464.5 | Y25: 85 | Z25: =-'Rocky Reach Capability'!R25 -> -25 | AA25: 524.5 | AB25: =(AA25*'Generation Summary'!$B$5) -> 26.225 | AC25: Hour 15 | AD25: 15
A26: Hour 16 | B26: ='Rock Island Inflow'!C21 -> 95.37229353 | C26: 0 | D26: 0 | E26: 0 | F26: 1 | G26: 1 | H26: 1 | I26: 1 | J26: 1 | K26: 0 | L26: 1 | M26: 1 | N26: 1 | O26: 1 | P26: 1 | Q26: 1 | R26: 1 | S26: 1 | T26: 1 | U26: 449.5 | V26: 643.6276083 | W26: 581.1276083 | X26: 464.5 | Y26: 85 | Z26: =-'Rocky Reach Capability'!R26 -> -25 | AA26: 524.5 | AB26: =(AA26*'Generation Summary'!$B$5) -> 26.225 | AC26: Hour 16 | AD26: 15
A27: Hour 17 | B27: ='Rock Island Inflow'!C22 -> 100.3356308 | C27: 0 | D27: 0 | E27: 0 | F27: 1 | G27: 1 | H27: 1 | I27: 1 | J27: 1 | K27: 0 | L27: 1 | M27: 1 | N27: 1 | O27: 1 | P27: 1 | Q27: 1 | R27: 1 | S27: 1 | T27: 1 | U27: 449.5 | V27: 639.1326413 | W27: 576.6326413 | X27: 464.5 | Y27: 85 | Z27: =-'Rocky Reach Capability'!R27 -> -25 | AA27: 524.5 | AB27: =(AA27*'Generation Summary'!$B$5) -> 26.225 | AC27: Hour 17 | AD27: 15
A28: Hour 18 | B28: ='Rock Island Inflow'!C23 -> 106.3681116 | C28: 0 | D28: 0 | E28: 0 | F28: 1 | G28: 1 | H28: 1 | I28: 1 | J28: 1 | K28: 0 | L28: 1 | M28: 1 | N28: 1 | O28: 1 | P28: 1 | Q28: 1 | R28: 1 | S28: 1 | T28: 1 | U28: 449.5 | V28: 633.6694216 | W28: 571.1694216 | X28: 464.5 | Y28: 85 | Z28: =-'Rocky Reach Capability'!R28 -> -25 | AA28: 524.5 | AB28: =(AA28*'Generation Summary'!$B$5) -> 26.225 | AC28: Hour 18 | AD28: 15
A29: Hour 19 | B29: ='Rock Island Inflow'!C24 -> 115.2660298 | C29: 0 | D29: 0 | E29: 0 | F29: 1 | G29: 1 | H29: 1 | I29: 1 | J29: 1 | K29: 0 | L29: 1 | M29: 1 | N29: 1 | O29: 1 | P29: 1 | Q29: 1 | R29: 1 | S29: 1 | T29: 1 | U29: 449.5 | V29: 625.6111643 | W29: 563.1111643 | X29: 464.5 | Y29: 85 | Z29: =-'Rocky Reach Capability'!R29 -> -25 | AA29: 524.5 | AB29: =(AA29*'Generation Summary'!$B$5) -> 26.225 | AC29: Hour 19 | AD29: 15
A30: Hour 20 | B30: ='Rock Island Inflow'!C25 -> 118.5360648 | C30: 0 | D30: 0 | E30: 0 | F30: 1 | G30: 1 | H30: 1 | I30: 1 | J30: 1 | K30: 0 | L30: 1 | M30: 1 | N30: 1 | O30: 1 | P30: 1 | Q30: 1 | R30: 1 | S30: 1 | T30: 1 | U30: 449.5 | V30: 622.6497095 | W30: 560.1497095 | X30: 464.5 | Y30: 85 | Z30: =-'Rocky Reach Capability'!R30 -> -25 | AA30: 524.5 | AB30: =(AA30*'Generation Summary'!$B$5) -> 26.225 | AC30: Hour 20 | AD30: 15
A31: Hour 21 | B31: ='Rock Island Inflow'!C26 -> 118.2839181 | C31: 0 | D31: 0 | E31: 0 | F31: 1 | G31: 1 | H31: 1 | I31: 1 | J31: 1 | K31: 0 | L31: 1 | M31: 1 | N31: 1 | O31: 1 | P31: 1 | Q31: 1 | R31: 1 | S31: 1 | T31: 1 | U31: 449.5 | V31: 622.8780621 | W31: 560.3780621 | X31: 464.5 | Y31: 85 | Z31: =-'Rocky Reach Capability'!R31 -> -25 | AA31: 524.5 | AB31: =(AA31*'Generation Summary'!$B$5) -> 26.225 | AC31: Hour 21 | AD31: 15
A32: Hour 22 | B32: ='Rock Island Inflow'!C27 -> 119.5866096 | C32: 0 | D32: 0 | E32: 0 | F32: 1 | G32: 1 | H32: 1 | I32: 1 | J32: 1 | K32: 0 | L32: 1 | M32: 1 | N32: 1 | O32: 1 | P32: 1 | Q32: 1 | R32: 1 | S32: 1 | T32: 1 | U32: 449.5 | V32: 621.6983004 | W32: 559.1983004 | X32: 464.5 | Y32: 85 | Z32: =-'Rocky Reach Capability'!R32 -> -25 | AA32: 524.5 | AB32: =(AA32*'Generation Summary'!$B$5) -> 26.225 | AC32: Hour 22 | AD32: 15
A33: Hour 23 | B33: ='Rock Island Inflow'!C28 -> 117.1416884 | C33: 0 | D33: 0 | E33: 0 | F33: 1 | G33: 1 | H33: 1 | I33: 1 | J33: 1 | K33: 0 | L33: 1 | M33: 1 | N33: 1 | O33: 1 | P33: 1 | Q33: 1 | R33: 1 | S33: 1 | T33: 1 | U33: 449.5 | V33: 623.9125042 | W33: 561.4125042 | X33: 464.5 | Y33: 85 | Z33: =-'Rocky Reach Capability'!R33 -> -25 | AA33: 524.5 | AB33: =(AA33*'Generation Summary'!$B$5) -> 26.225 | AC33: Hour 23 | AD33: 15
A34: Hour 24 | B34: ='Rock Island Inflow'!C29 -> 95.55193309 | C34: 0 | D34: 0 | E34: 0 | F34: 1 | G34: 1 | H34: 1 | I34: 1 | J34: 1 | K34: 0 | L34: 1 | M34: 1 | N34: 1 | O34: 1 | P34: 1 | Q34: 1 | R34: 1 | S34: 1 | T34: 1 | U34: 449.5 | V34: =-0.905634*B34+730 -> 643.4649206 | W34: 580.9649206 | X34: 464.5 | Y34: 85 | Z34: =-'Rocky Reach Capability'!R34 -> -25 | AA34: 524.5 | AB34: =(AA34*'Generation Summary'!$B$5) -> 26.225 | AC34: Hour 24 | AD34: 15

Sheet RR CEAEA
A2: Canadian | C2: **Please note 3/15/2022 is an adjustment day with a different schedule and schedule for 4/1/22 and beyond have not yet been established. Below are estimates.
A3: Entitlement | C3: 1 | D3: 2 | E3: 2B | F3: 3 | G3: 4 | H3: 5 | I3: 6 | J3: 7 | K3: 8 | L3: 9 | M3: 10 | N3: 11 | O3: 12 | P3: 13 | Q3: 14 | R3: 15 | S3: 16 | T3: 17 | U3: 18 | V3: 19 | W3: 20 | X3: 21 | Y3: 22 | Z3: 23 | AA3: 24 | AB3: Day
A5: Rocky Reach CEAEA
A7: 2022-01-01 | B7: =A7 -> 2022-01-01 | J7: 3 | K7: 3 | L7: 3 | M7: 4 | N7: 4 | O7: 4 | P7: 3 | Q7: 3 | R7: 3 | S7: 3 | T7: 4 | U7: 3 | V7: 3 | W7: 3 | X7: 3 | Y7: 3 | AB7: =SUM(C7:AA7) -> 52
A8: 2022-01-02 | B8: =A8 -> 2022-01-02 | AB8: =SUM(C8:AA8) -> 0
A9: 2022-01-03 | B9: 2022-01-03 | J9: 3 | K9: 3 | L9: 3 | M9: 4 | N9: 4 | O9: 3 | P9: 3 | Q9: 3 | R9: 3 | S9: 3 | T9: 4 | U9: 3 | V9: 3 | W9: 3 | X9: 3 | Y9: 3 | AB9: 51
A10: 2022-01-04 | B10: 2022-01-04 | J10: 3 | K10: 3 | L10: 3 | M10: 4 | N10: 4 | O10: 3 | P10: 3 | Q10: 3 | R10: 3 | S10: 3 | T10: 4 | U10: 3 | V10: 3 | W10: 3 | X10: 3 | Y10: 3 | AB10: 51
A11: 2022-01-05 | B11: 2022-01-05 | J11: 3 | K11: 3 | L11: 3 | M11: 4 | N11: 4 | O11: 3 | P11: 3 | Q11: 3 | R11: 3 | S11: 3 | T11: 4 | U11: 3 | V11: 3 | W11: 3 | X11: 3 | Y11: 3 | AB11: 51
A12: 2022-01-06 | B12: 2022-01-06 | J12: 3 | K12: 3 | L12: 3 | M12: 4 | N12: 4 | O12: 3 | P12: 3 | Q12: 3 | R12: 3 | S12: 3 | T12: 4 | U12: 3 | V12: 3 | W12: 3 | X12: 3 | Y12: 3 | AB12: 51
A13: 2022-01-07 | B13: 2022-01-07 | J13: 3 | K13: 3 | L13: 3 | M13: 4 | N13: 4 | O13: 3 | P13: 3 | Q13: 3 | R13: 3 | S13: 3 | T13: 4 | U13: 3 | V13: 3 | W13: 3 | X13: 3 | Y13: 3 | AB13: 51
A14: 2022-01-08 | B14: 2022-01-08 | J14: 3 | K14: 3 | L14: 3 | M14: 4 | N14: 4 | O14: 4 | P14: 3 | Q14: 3 | R14: 3 | S14: 3 | T14: 4 | U14: 3 | V14: 3 | W14: 3 | X14: 3 | Y14: 3 | AB14: 52
A15: 2022-01-09 | B15: 2022-01-09 | AB15: 0
A16: 2022-01-10 | B16: 2022-01-10 | J16: 3 | K16: 3 | L16: 3 | M16: 4 | N16: 4 | O16: 3 | P16: 3 | Q16: 3 | R16: 3 | S16: 3 | T16: 4 | U16: 3 | V16: 3 | W16: 3 | X16: 3 | Y16: 3 | AB16: 51
A17: 2022-01-11 | B17: 2022-01-11 | J17: 3 | K17: 3 | L17: 3 | M17: 4 | N17: 4 | O17: 3 | P17: 3 | Q17: 3 | R17: 3 | S17: 3 | T17: 4 | U17: 3 | V17: 3 | W17: 3 | X17: 3 | Y17: 3 | AB17: 51
A18: 2022-01-12 | B18: 2022-01-12 | J18: 3 | K18: 3 | L18: 3 | M18: 4 | N18: 4 | O18: 3 | P18: 3 | Q18: 3 | R18: 3 | S18: 3 | T18: 4 | U18: 3 | V18: 3 | W18: 3 | X18: 3 | Y18: 3 | AB18: 51
A19: 2022-01-13 | B19: 2022-01-13 | J19: 3 | K19: 3 | L19: 3 | M19: 4 | N19: 4 | O19: 3 | P19: 3 | Q19: 3 | R19: 3 | S19: 3 | T19: 4 | U19: 3 | V19: 3 | W19: 3 | X19: 3 | Y19: 3 | AB19: 51
A20: 2022-01-14 | B20: 2022-01-14 | J20: 3 | K20: 3 | L20: 3 | M20: 4 | N20: 4 | O20: 3 | P20: 3 | Q20: 3 | R20: 3 | S20: 3 | T20: 4 | U20: 3 | V20: 3 | W20: 3 | X20: 3 | Y20: 3 | AB20: 51
A21: 2022-01-15 | B21: 2022-01-15 | J21: 3 | K21: 3 | L21: 3 | M21: 4 | N21: 4 | O21: 4 | P21: 3 | Q21: 3 | R21: 3 | S21: 3 | T21: 4 | U21: 3 | V21: 3 | W21: 3 | X21: 3 | Y21: 3 | AB21: 52
A22: 2022-01-16 | B22: 2022-01-16 | AB22: 0
A23: 2022-01-17 | B23: 2022-01-17 | J23: 3 | K23: 3 | L23: 3 | M23: 4 | N23: 4 | O23: 3 | P23: 3 | Q23: 3 | R23: 3 | S23: 3 | T23: 4 | U23: 3 | V23: 3 | W23: 3 | X23: 3 | Y23: 3 | AB23: 51
A24: 2022-01-18 | B24: 2022-01-18 | J24: 3 | K24: 3 | L24: 3 | M24: 4 | N24: 4 | O24: 3 | P24: 3 | Q24: 3 | R24: 3 | S24: 3 | T24: 4 | U24: 3 | V24: 3 | W24: 3 | X24: 3 | Y24: 3 | AB24: 51
A25: 2022-01-19 | B25: 2022-01-19 | J25: 3 | K25: 3 | L25: 3 | M25: 4 | N25: 4 | O25: 3 | P25: 3 | Q25: 3 | R25: 3 | S25: 3 | T25: 4 | U25: 3 | V25: 3 | W25: 3 | X25: 3 | Y25: 3 | AB25: 51
A26: 2022-01-20 | B26: 2022-01-20 | J26: 3 | K26: 3 | L26: 3 | M26: 4 | N26: 4 | O26: 3 | P26: 3 | Q26: 3 | R26: 3 | S26: 3 | T26: 4 | U26: 3 | V26: 3 | W26: 3 | X26: 3 | Y26: 3 | AB26: 51
A27: 2022-01-21 | B27: 2022-01-21 | J27: 3 | K27: 3 | L27: 3 | M27: 4 | N27: 4 | O27: 3 | P27: 3 | Q27: 3 | R27: 3 | S27: 3 | T27: 4 | U27: 3 | V27: 3 | W27: 3 | X27: 3 | Y27: 3 | AB27: 51
A28: 2022-01-22 | B28: 2022-01-22 | J28: 3 | K28: 3 | L28: 3 | M28: 4 | N28: 4 | O28: 4 | P28: 3 | Q28: 3 | R28: 3 | S28: 3 | T28: 4 | U28: 3 | V28: 3 | W28: 3 | X28: 3 | Y28: 3 | AB28: 52
A29: 2022-01-23 | B29: 2022-01-23 | AB29: 0
A30: 2022-01-24 | B30: 2022-01-24 | J30: 3 | K30: 3 | L30: 3 | M30: 4 | N30: 4 | O30: 3 | P30: 3 | Q30: 3 | R30: 3 | S30: 3 | T30: 4 | U30: 3 | V30: 3 | W30: 3 | X30: 3 | Y30: 3 | AB30: 51
A31: 2022-01-25 | B31: 2022-01-25 | J31: 3 | K31: 3 | L31: 3 | M31: 4 | N31: 4 | O31: 3 | P31: 3 | Q31: 3 | R31: 3 | S31: 3 | T31: 4 | U31: 3 | V31: 3 | W31: 3 | X31: 3 | Y31: 3 | AB31: 51
A32: 2022-01-26 | B32: 2022-01-26 | J32: 3 | K32: 3 | L32: 3 | M32: 4 | N32: 4 | O32: 3 | P32: 3 | Q32: 3 | R32: 3 | S32: 3 | T32: 4 | U32: 3 | V32: 3 | W32: 3 | X32: 3 | Y32: 3 | AB32: 51
A33: 2022-01-27 | B33: 2022-01-27 | J33: 3 | K33: 3 | L33: 3 | M33: 4 | N33: 4 | O33: 3 | P33: 3 | Q33: 3 | R33: 3 | S33: 3 | T33: 4 | U33: 3 | V33: 3 | W33: 3 | X33: 3 | Y33: 3 | AB33: 51
A34: 2022-01-28 | B34: 2022-01-28 | J34: 3 | K34: 3 | L34: 3 | M34: 4 | N34: 4 | O34: 3 | P34: 3 | Q34: 3 | R34: 3 | S34: 3 | T34: 4 | U34: 3 | V34: 3 | W34: 3 | X34: 3 | Y34: 3 | AB34: 51
A35: 2022-01-29 | B35: 2022-01-29 | J35: 3 | K35: 3 | L35: 3 | M35: 4 | N35: 4 | O35: 4 | P35: 3 | Q35: 3 | R35: 3 | S35: 3 | T35: 4 | U35: 3 | V35: 3 | W35: 3 | X35: 3 | Y35: 3 | AB35: 52
A36: 2022-01-30 | B36: 2022-01-30 | AB36: 0
A37: 2022-01-31 | B37: 2022-01-31 | J37: 3 | K37: 3 | L37: 3 | M37: 4 | N37: 4 | O37: 3 | P37: 3 | Q37: 3 | R37: 3 | S37: 3 | T37: 4 | U37: 3 | V37: 3 | W37: 3 | X37: 3 | Y37: 3 | AB37: 51
A38: 2022-02-01 | B38: 2022-02-01 | J38: 3 | K38: 3 | L38: 3 | M38: 4 | N38: 4 | O38: 3 | P38: 3 | Q38: 3 | R38: 3 | S38: 3 | T38: 4 | U38: 3 | V38: 3 | W38: 3 | X38: 3 | Y38: 3 | AB38: 51
A39: 2022-02-02 | B39: 2022-02-02 | J39: 3 | K39: 3 | L39: 3 | M39: 4 | N39: 4 | O39: 3 | P39: 3 | Q39: 3 | R39: 3 | S39: 3 | T39: 4 | U39: 3 | V39: 3 | W39: 3 | X39: 3 | Y39: 3 | AB39: 51
A40: 2022-02-03 | B40: 2022-02-03 | J40: 3 | K40: 3 | L40: 3 | M40: 4 | N40: 4 | O40: 3 | P40: 3 | Q40: 3 | R40: 3 | S40: 3 | T40: 4 | U40: 3 | V40: 3 | W40: 3 | X40: 3 | Y40: 3 | AB40: 51
A41: 2022-02-04 | B41: 2022-02-04 | J41: 3 | K41: 3 | L41: 3 | M41: 4 | N41: 4 | O41: 3 | P41: 3 | Q41: 3 | R41: 3 | S41: 3 | T41: 4 | U41: 3 | V41: 3 | W41: 3 | X41: 3 | Y41: 3 | AB41: 51
A42: 2022-02-05 | B42: 2022-02-05 | J42: 3 | K42: 3 | L42: 3 | M42: 4 | N42: 4 | O42: 4 | P42: 3 | Q42: 3 | R42: 3 | S42: 3 | T42: 4 | U42: 3 | V42: 3 | W42: 3 | X42: 3 | Y42: 3 | AB42: 52
A43: 2022-02-06 | B43: 2022-02-06 | AB43: 0
A44: 2022-02-07 | B44: 2022-02-07 | J44: 3 | K44: 3 | L44: 3 | M44: 4 | N44: 4 | O44: 3 | P44: 3 | Q44: 3 | R44: 3 | S44: 3 | T44: 4 | U44: 3 | V44: 3 | W44: 3 | X44: 3 | Y44: 3 | AB44: 51
A45: 2022-02-08 | B45: 2022-02-08 | J45: 3 | K45: 3 | L45: 3 | M45: 4 | N45: 4 | O45: 3 | P45: 3 | Q45: 3 | R45: 3 | S45: 3 | T45: 4 | U45: 3 | V45: 3 | W45: 3 | X45: 3 | Y45: 3 | AB45: 51
A46: 2022-02-09 | B46: 2022-02-09 | J46: 3 | K46: 3 | L46: 3 | M46: 4 | N46: 4 | O46: 3 | P46: 3 | Q46: 3 | R46: 3 | S46: 3 | T46: 4 | U46: 3 | V46: 3 | W46: 3 | X46: 3 | Y46: 3 | AB46: 51
A47: 2022-02-10 | B47: 2022-02-10 | J47: 3 | K47: 3 | L47: 3 | M47: 4 | N47: 4 | O47: 3 | P47: 3 | Q47: 3 | R47: 3 | S47: 3 | T47: 4 | U47: 3 | V47: 3 | W47: 3 | X47: 3 | Y47: 3 | AB47: 51
A48: 2022-02-11 | B48: 2022-02-11 | J48: 3 | K48: 3 | L48: 3 | M48: 4 | N48: 4 | O48: 3 | P48: 3 | Q48: 3 | R48: 3 | S48: 3 | T48: 4 | U48: 3 | V48: 3 | W48: 3 | X48: 3 | Y48: 3 | AB48: 51
A49: 2022-02-12 | B49: 2022-02-12 | J49: 3 | K49: 3 | L49: 3 | M49: 4 | N49: 4 | O49: 4 | P49: 3 | Q49: 3 | R49: 3 | S49: 3 | T49: 4 | U49: 3 | V49: 3 | W49: 3 | X49: 3 | Y49: 3 | AB49: 52
A50: 2022-02-13 | B50: 2022-02-13 | AB50: 0
A51: 2022-02-14 | B51: 2022-02-14 | J51: 3 | K51: 3 | L51: 3 | M51: 4 | N51: 4 | O51: 3 | P51: 3 | Q51: 3 | R51: 3 | S51: 3 | T51: 4 | U51: 3 | V51: 3 | W51: 3 | X51: 3 | Y51: 3 | AB51: 51
A52: 2022-02-15 | B52: 2022-02-15 | J52: 3 | K52: 3 | L52: 3 | M52: 4 | N52: 4 | O52: 3 | P52: 3 | Q52: 3 | R52: 3 | S52: 3 | T52: 4 | U52: 3 | V52: 3 | W52: 3 | X52: 3 | Y52: 3 | AB52: 51
A53: 2022-02-16 | B53: 2022-02-16 | J53: 3 | K53: 3 | L53: 3 | M53: 4 | N53: 4 | O53: 3 | P53: 3 | Q53: 3 | R53: 3 | S53: 3 | T53: 4 | U53: 3 | V53: 3 | W53: 3 | X53: 3 | Y53: 3 | AB53: 51
A54: 2022-02-17 | B54: 2022-02-17 | J54: 3 | K54: 3 | L54: 3 | M54: 4 | N54: 4 | O54: 3 | P54: 3 | Q54: 3 | R54: 3 | S54: 3 | T54: 4 | U54: 3 | V54: 3 | W54: 3 | X54: 3 | Y54: 3 | AB54: 51
A55: 2022-02-18 | B55: 2022-02-18 | J55: 3 | K55: 3 | L55: 3 | M55: 4 | N55: 4 | O55: 3 | P55: 3 | Q55: 3 | R55: 3 | S55: 3 | T55: 4 | U55: 3 | V55: 3 | W55: 3 | X55: 3 | Y55: 3 | AB55: 51
A56: 2022-02-19 | B56: 2022-02-19 | J56: 3 | K56: 3 | L56: 3 | M56: 4 | N56: 4 | O56: 4 | P56: 3 | Q56: 3 | R56: 3 | S56: 3 | T56: 4 | U56: 3 | V56: 3 | W56: 3 | X56: 3 | Y56: 3 | AB56: 52
A57: 2022-02-20 | B57: 2022-02-20 | AB57: 0
A58: 2022-02-21 | B58: 2022-02-21 | J58: 3 | K58: 3 | L58: 3 | M58: 4 | N58: 4 | O58: 3 | P58: 3 | Q58: 3 | R58: 3 | S58: 3 | T58: 4 | U58: 3 | V58: 3 | W58: 3 | X58: 3 | Y58: 3 | AB58: 51
A59: 2022-02-22 | B59: 2022-02-22 | J59: 3 | K59: 3 | L59: 3 | M59: 4 | N59: 4 | O59: 3 | P59: 3 | Q59: 3 | R59: 3 | S59: 3 | T59: 4 | U59: 3 | V59: 3 | W59: 3 | X59: 3 | Y59: 3 | AB59: 51
A60: 2022-02-23 | B60: 2022-02-23 | J60: 3 | K60: 3 | L60: 3 | M60: 4 | N60: 4 | O60: 3 | P60: 3 | Q60: 3 | R60: 3 | S60: 3 | T60: 4 | U60: 3 | V60: 3 | W60: 3 | X60: 3 | Y60: 3 | AB60: 51
A61: 2022-02-24 | B61: 2022-02-24 | J61: 3 | K61: 3 | L61: 3 | M61: 4 | N61: 4 | O61: 3 | P61: 3 | Q61: 3 | R61: 3 | S61: 3 | T61: 4 | U61: 3 | V61: 3 | W61: 3 | X61: 3 | Y61: 3 | AB61: 51
A62: 2022-02-25 | B62: 2022-02-25 | J62: 3 | K62: 3 | L62: 3 | M62: 4 | N62: 4 | O62: 3 | P62: 3 | Q62: 3 | R62: 3 | S62: 3 | T62: 4 | U62: 3 | V62: 3 | W62: 3 | X62: 3 | Y62: 3 | AB62: 51
A63: 2022-02-26 | B63: 2022-02-26 | J63: 3 | K63: 3 | L63: 3 | M63: 4 | N63: 4 | O63: 4 | P63: 3 | Q63: 3 | R63: 3 | S63: 3 | T63: 4 | U63: 3 | V63: 3 | W63: 3 | X63: 3 | Y63: 3 | AB63: 52
A64: 2022-02-27 | B64: 2022-02-27 | AB64: 0
A65: 2022-02-28 | B65: 2022-02-28 | J65: 3 | K65: 3 | L65: 3 | M65: 4 | N65: 4 | O65: 3 | P65: 3 | Q65: 3 | R65: 3 | S65: 3 | T65: 4 | U65: 3 | V65: 3 | W65: 3 | X65: 3 | Y65: 3 | AB65: 51
A66: 2022-03-01 | B66: 2022-03-01 | J66: 3 | K66: 3 | L66: 3 | M66: 4 | N66: 4 | O66: 3 | P66: 3 | Q66: 3 | R66: 3 | S66: 3 | T66: 4 | U66: 3 | V66: 3 | W66: 3 | X66: 3 | Y66: 3 | AB66: 51
A67: 2022-03-02 | B67: 2022-03-02 | J67: 3 | K67: 3 | L67: 3 | M67: 4 | N67: 4 | O67: 3 | P67: 3 | Q67: 3 | R67: 3 | S67: 3 | T67: 4 | U67: 3 | V67: 3 | W67: 3 | X67: 3 | Y67: 3 | AB67: 51
A68: 2022-03-03 | B68: 2022-03-03 | J68: 3 | K68: 3 | L68: 3 | M68: 4 | N68: 4 | O68: 3 | P68: 3 | Q68: 3 | R68: 3 | S68: 3 | T68: 4 | U68: 3 | V68: 3 | W68: 3 | X68: 3 | Y68: 3 | AB68: 51
A69: 2022-03-04 | B69: 2022-03-04 | J69: 3 | K69: 3 | L69: 3 | M69: 4 | N69: 4 | O69: 3 | P69: 3 | Q69: 3 | R69: 3 | S69: 3 | T69: 4 | U69: 3 | V69: 3 | W69: 3 | X69: 3 | Y69: 3 | AB69: 51
A70: 2022-03-05 | B70: 2022-03-05 | J70: 3 | K70: 3 | L70: 3 | M70: 4 | N70: 4 | O70: 4 | P70: 3 | Q70: 3 | R70: 3 | S70: 3 | T70: 4 | U70: 3 | V70: 3 | W70: 3 | X70: 3 | Y70: 3 | AB70: 52
A71: 2022-03-06 | B71: 2022-03-06 | AB71: 0
A72: 2022-03-07 | B72: =A72 -> 2022-03-07 | J72: 3 | K72: 3 | L72: 3 | M72: 4 | N72: 4 | O72: 3 | P72: 3 | Q72: 3 | R72: 3 | S72: 3 | T72: 4 | U72: 3 | V72: 3 | W72: 3 | X72: 3 | Y72: 3 | AB72: =SUM(C72:AA72) -> 51
A73: 2022-03-08 | B73: 2022-03-08 | J73: 3 | K73: 3 | L73: 3 | M73: 4 | N73: 4 | O73: 3 | P73: 3 | Q73: 3 | R73: 3 | S73: 3 | T73: 4 | U73: 3 | V73: 3 | W73: 3 | X73: 3 | Y73: 3 | AB73: 51
A74: 2022-03-09 | B74: 2022-03-09 | J74: 3 | K74: 3 | L74: 3 | M74: 4 | N74: 4 | O74: 3 | P74: 3 | Q74: 3 | R74: 3 | S74: 3 | T74: 4 | U74: 3 | V74: 3 | W74: 3 | X74: 3 | Y74: 3 | AB74: 51
A75: 2022-03-10 | B75: 2022-03-10 | J75: 3 | K75: 3 | L75: 3 | M75: 4 | N75: 4 | O75: 3 | P75: 3 | Q75: 3 | R75: 3 | S75: 3 | T75: 4 | U75: 3 | V75: 3 | W75: 3 | X75: 3 | Y75: 3 | AB75: 51
A76: 2022-03-11 | B76: 2022-03-11 | J76: 3 | K76: 3 | L76: 3 | M76: 4 | N76: 4 | O76: 3 | P76: 3 | Q76: 3 | R76: 3 | S76: 3 | T76: 4 | U76: 3 | V76: 3 | W76: 3 | X76: 3 | Y76: 3 | AB76: 51
A77: 2022-03-12 | B77: 2022-03-12 | J77: 3 | K77: 3 | L77: 3 | M77: 4 | N77: 4 | O77: 4 | P77: 3 | Q77: 3 | R77: 3 | S77: 3 | T77: 4 | U77: 3 | V77: 3 | W77: 3 | X77: 3 | Y77: 3 | AB77: 52
A78: 2022-03-13 | B78: 2022-03-13 | AB78: 0
A79: 2022-03-14 | B79: 2022-03-14 | J79: 3 | K79: 3 | L79: 3 | M79: 4 | N79: 4 | O79: 3 | P79: 3 | Q79: 3 | R79: 3 | S79: 3 | T79: 4 | U79: 3 | V79: 3 | W79: 3 | X79: 3 | Y79: 3 | AB79: 51
A80: 2022-03-15 | B80: 2022-03-15 | J80: 4 | K80: 3 | L80: 3 | M80: 4 | N80: 4 | O80: 3 | P80: 3 | Q80: 3 | R80: 3 | S80: 3 | T80: 4 | U80: 3 | V80: 3 | W80: 3 | X80: 3 | Y80: 4 | AB80: 53
A81: 2022-03-16 | B81: 2022-03-16 | J81: 3 | K81: 3 | L81: 3 | M81: 4 | N81: 4 | O81: 3 | P81: 3 | Q81: 3 | R81: 3 | S81: 3 | T81: 4 | U81: 3 | V81: 3 | W81: 3 | X81: 3 | Y81: 3 | AB81: 51
A82: 2022-03-17 | B82: 2022-03-17 | J82: 3 | K82: 3 | L82: 3 | M82: 4 | N82: 4 | O82: 3 | P82: 3 | Q82: 3 | R82: 3 | S82: 3 | T82: 4 | U82: 3 | V82: 3 | W82: 3 | X82: 3 | Y82: 3 | AB82: 51
A83: 2022-03-18 | B83: 2022-03-18 | J83: 3 | K83: 3 | L83: 3 | M83: 4 | N83: 4 | O83: 3 | P83: 3 | Q83: 3 | R83: 3 | S83: 3 | T83: 4 | U83: 3 | V83: 3 | W83: 3 | X83: 3 | Y83: 3 | AB83: 51
A84: 2022-03-19 | B84: 2022-03-19 | J84: 3 | K84: 3 | L84: 3 | M84: 4 | N84: 4 | O84: 4 | P84: 3 | Q84: 3 | R84: 3 | S84: 3 | T84: 4 | U84: 3 | V84: 3 | W84: 3 | X84: 3 | Y84: 3 | AB84: 52
A85: 2022-03-20 | B85: 2022-03-20 | AB85: 0
A86: 2022-03-21 | B86: 2022-03-21 | J86: 3 | K86: 3 | L86: 3 | M86: 4 | N86: 4 | O86: 3 | P86: 3 | Q86: 3 | R86: 3 | S86: 3 | T86: 4 | U86: 3 | V86: 3 | W86: 3 | X86: 3 | Y86: 3 | AB86: 51
A87: 2022-03-22 | B87: 2022-03-22 | J87: 3 | K87: 3 | L87: 3 | M87: 4 | N87: 4 | O87: 3 | P87: 3 | Q87: 3 | R87: 3 | S87: 3 | T87: 4 | U87: 3 | V87: 3 | W87: 3 | X87: 3 | Y87: 3 | AB87: 51
A88: 2022-03-23 | B88: 2022-03-23 | J88: 3 | K88: 3 | L88: 3 | M88: 4 | N88: 4 | O88: 3 | P88: 3 | Q88: 3 | R88: 3 | S88: 3 | T88: 4 | U88: 3 | V88: 3 | W88: 3 | X88: 3 | Y88: 3 | AB88: 51
A89: 2022-03-24 | B89: 2022-03-24 | J89: 3 | K89: 3 | L89: 3 | M89: 4 | N89: 4 | O89: 3 | P89: 3 | Q89: 3 | R89: 3 | S89: 3 | T89: 4 | U89: 3 | V89: 3 | W89: 3 | X89: 3 | Y89: 3 | AB89: 51
A90: 2022-03-25 | B90: 2022-03-25 | J90: 3 | K90: 3 | L90: 3 | M90: 4 | N90: 4 | O90: 3 | P90: 3 | Q90: 3 | R90: 3 | S90: 3 | T90: 4 | U90: 3 | V90: 3 | W90: 3 | X90: 3 | Y90: 3 | AB90: 51
A91: 2022-03-26 | B91: 2022-03-26 | J91: 3 | K91: 3 | L91: 3 | M91: 4 | N91: 4 | O91: 4 | P91: 3 | Q91: 3 | R91: 3 | S91: 3 | T91: 4 | U91: 3 | V91: 3 | W91: 3 | X91: 3 | Y91: 3 | AB91: 52
A92: 2022-03-27 | B92: 2022-03-27 | AB92: 0
A93: 2022-03-28 | B93: 2022-03-28 | J93: 3 | K93: 3 | L93: 3 | M93: 4 | N93: 4 | O93: 3 | P93: 3 | Q93: 3 | R93: 3 | S93: 3 | T93: 4 | U93: 3 | V93: 3 | W93: 3 | X93: 3 | Y93: 3 | AB93: 51
A94: 2022-03-29 | B94: 2022-03-29 | J94: 3 | K94: 3 | L94: 3 | M94: 4 | N94: 4 | O94: 3 | P94: 3 | Q94: 3 | R94: 3 | S94: 3 | T94: 4 | U94: 3 | V94: 3 | W94: 3 | X94: 3 | Y94: 3 | AB94: 51
A95: 2022-03-30 | B95: 2022-03-30 | J95: 3 | K95: 3 | L95: 3 | M95: 4 | N95: 4 | O95: 3 | P95: 3 | Q95: 3 | R95: 3 | S95: 3 | T95: 4 | U95: 3 | V95: 3 | W95: 3 | X95: 3 | Y95: 3 | AB95: 51
A96: 2022-03-31 | B96: 2022-03-31 | J96: 3 | K96: 3 | L96: 3 | M96: 4 | N96: 4 | O96: 3 | P96: 3 | Q96: 3 | R96: 3 | S96: 3 | T96: 4 | U96: 3 | V96: 3 | W96: 3 | X96: 3 | Y96: 3 | AB96: 51
A97: 2022-04-01 | B97: 2022-04-01 | J97: 3 | K97: 3 | L97: 3 | M97: 4 | N97: 4 | O97: 3 | P97: 3 | Q97: 3 | R97: 3 | S97: 3 | T97: 4 | U97: 3 | V97: 3 | W97: 3 | X97: 3 | Y97: 3 | AB97: 51
A98: 2022-04-02 | B98: 2022-04-02 | J98: 3 | K98: 3 | L98: 3 | M98: 4 | N98: 4 | O98: 4 | P98: 3 | Q98: 3 | R98: 3 | S98: 3 | T98: 4 | U98: 3 | V98: 3 | W98: 3 | X98: 3 | Y98: 3 | AB98: 52
A99: 2022-04-03 | B99: 2022-04-03 | AB99: 0
A100: 2022-04-04 | B100: 2022-04-04 | J100: 3 | K100: 3 | L100: 3 | M100: 4 | N100: 4 | O100: 3 | P100: 3 | Q100: 3 | R100: 3 | S100: 3 | T100: 4 | U100: 3 | V100: 3 | W100: 3 | X100: 3 | Y100: 3 | AB100: 51
A101: 2022-04-05 | B101: 2022-04-05 | J101: 3 | K101: 3 | L101: 3 | M101: 4 | N101: 4 | O101: 3 | P101: 3 | Q101: 3 | R101: 3 | S101: 3 | T101: 4 | U101: 3 | V101: 3 | W101: 3 | X101: 3 | Y101: 3 | AB101: 51
A102: 2022-04-06 | B102: 2022-04-06 | J102: 3 | K102: 3 | L102: 3 | M102: 4 | N102: 4 | O102: 3 | P102: 3 | Q102: 3 | R102: 3 | S102: 3 | T102: 4 | U102: 3 | V102: 3 | W102: 3 | X102: 3 | Y102: 3 | AB102: 51
A103: 2022-04-07 | B103: 2022-04-07 | J103: 3 | K103: 3 | L103: 3 | M103: 4 | N103: 4 | O103: 3 | P103: 3 | Q103: 3 | R103: 3 | S103: 3 | T103: 4 | U103: 3 | V103: 3 | W103: 3 | X103: 3 | Y103: 3 | AB103: 51
A104: 2022-04-08 | B104: 2022-04-08 | J104: 3 | K104: 3 | L104: 3 | M104: 4 | N104: 4 | O104: 3 | P104: 3 | Q104: 3 | R104: 3 | S104: 3 | T104: 4 | U104: 3 | V104: 3 | W104: 3 | X104: 3 | Y104: 3 | AB104: 51
A105: 2022-04-09 | B105: 2022-04-09 | J105: 3 | K105: 3 | L105: 3 | M105: 4 | N105: 4 | O105: 4 | P105: 3 | Q105: 3 | R105: 3 | S105: 3 | T105: 4 | U105: 3 | V105: 3 | W105: 3 | X105: 3 | Y105: 3 | AB105: 52
A106: 2022-04-10 | B106: 2022-04-10 | AB106: 0
A107: 2022-04-11 | B107: 2022-04-11 | J107: 3 | K107: 3 | L107: 3 | M107: 4 | N107: 4 | O107: 3 | P107: 3 | Q107: 3 | R107: 3 | S107: 3 | T107: 4 | U107: 3 | V107: 3 | W107: 3 | X107: 3 | Y107: 3 | AB107: 51
A108: 2022-04-12 | B108: 2022-04-12 | J108: 3 | K108: 3 | L108: 3 | M108: 4 | N108: 4 | O108: 3 | P108: 3 | Q108: 3 | R108: 3 | S108: 3 | T108: 4 | U108: 3 | V108: 3 | W108: 3 | X108: 3 | Y108: 3 | AB108: 51
A109: 2022-04-13 | B109: 2022-04-13 | J109: 3 | K109: 3 | L109: 3 | M109: 4 | N109: 4 | O109: 3 | P109: 3 | Q109: 3 | R109: 3 | S109: 3 | T109: 4 | U109: 3 | V109: 3 | W109: 3 | X109: 3 | Y109: 3 | AB109: 51
A110: 2022-04-14 | B110: 2022-04-14 | J110: 3 | K110: 3 | L110: 3 | M110: 4 | N110: 4 | O110: 3 | P110: 3 | Q110: 3 | R110: 3 | S110: 3 | T110: 4 | U110: 3 | V110: 3 | W110: 3 | X110: 3 | Y110: 3 | AB110: 51
A111: 2022-04-15 | B111: 2022-04-15 | J111: 3 | K111: 3 | L111: 3 | M111: 4 | N111: 4 | O111: 3 | P111: 3 | Q111: 3 | R111: 3 | S111: 3 | T111: 4 | U111: 3 | V111: 3 | W111: 3 | X111: 3 | Y111: 3 | AB111: 51
A112: 2022-04-16 | B112: 2022-04-16 | J112: 3 | K112: 3 | L112: 3 | M112: 4 | N112: 4 | O112: 4 | P112: 3 | Q112: 3 | R112: 3 | S112: 3 | T112: 4 | U112: 3 | V112: 3 | W112: 3 | X112: 3 | Y112: 3 | AB112: 52
A113: 2022-04-17 | B113: 2022-04-17 | AB113: 0
A114: 2022-04-18 | B114: 2022-04-18 | J114: 3 | K114: 3 | L114: 3 | M114: 4 | N114: 4 | O114: 3 | P114: 3 | Q114: 3 | R114: 3 | S114: 3 | T114: 4 | U114: 3 | V114: 3 | W114: 3 | X114: 3 | Y114: 3 | AB114: 51
A115: 2022-04-19 | B115: 2022-04-19 | J115: 3 | K115: 3 | L115: 3 | M115: 4 | N115: 4 | O115: 3 | P115: 3 | Q115: 3 | R115: 3 | S115: 3 | T115: 4 | U115: 3 | V115: 3 | W115: 3 | X115: 3 | Y115: 3 | AB115: 51
A116: 2022-04-20 | B116: 2022-04-20 | J116: 3 | K116: 3 | L116: 3 | M116: 4 | N116: 4 | O116: 3 | P116: 3 | Q116: 3 | R116: 3 | S116: 3 | T116: 4 | U116: 3 | V116: 3 | W116: 3 | X116: 3 | Y116: 3 | AB116: 51
A117: 2022-04-21 | B117: 2022-04-21 | J117: 3 | K117: 3 | L117: 3 | M117: 4 | N117: 4 | O117: 3 | P117: 3 | Q117: 3 | R117: 3 | S117: 3 | T117: 4 | U117: 3 | V117: 3 | W117: 3 | X117: 3 | Y117: 3 | AB117: 51
A118: 2022-04-22 | B118: 2022-04-22 | J118: 3 | K118: 3 | L118: 3 | M118: 4 | N118: 4 | O118: 3 | P118: 3 | Q118: 3 | R118: 3 | S118: 3 | T118: 4 | U118: 3 | V118: 3 | W118: 3 | X118: 3 | Y118: 3 | AB118: 51
A119: 2022-04-23 | B119: 2022-04-23 | J119: 3 | K119: 3 | L119: 3 | M119: 4 | N119: 4 | O119: 4 | P119: 3 | Q119: 3 | R119: 3 | S119: 3 | T119: 4 | U119: 3 | V119: 3 | W119: 3 | X119: 3 | Y119: 3 | AB119: 52
A120: 2022-04-24 | B120: 2022-04-24 | AB120: 0
A121: 2022-04-25 | B121: 2022-04-25 | J121: 3 | K121: 3 | L121: 3 | M121: 4 | N121: 4 | O121: 3 | P121: 3 | Q121: 3 | R121: 3 | S121: 3 | T121: 4 | U121: 3 | V121: 3 | W121: 3 | X121: 3 | Y121: 3 | AB121: 51
A122: 2022-04-26 | B122: 2022-04-26 | J122: 3 | K122: 3 | L122: 3 | M122: 4 | N122: 4 | O122: 3 | P122: 3 | Q122: 3 | R122: 3 | S122: 3 | T122: 4 | U122: 3 | V122: 3 | W122: 3 | X122: 3 | Y122: 3 | AB122: 51
A123: 2022-04-27 | B123: 2022-04-27 | J123: 3 | K123: 3 | L123: 3 | M123: 4 | N123: 4 | O123: 3 | P123: 3 | Q123: 3 | R123: 3 | S123: 3 | T123: 4 | U123: 3 | V123: 3 | W123: 3 | X123: 3 | Y123: 3 | AB123: 51
A124: 2022-04-28 | B124: 2022-04-28 | J124: 3 | K124: 3 | L124: 3 | M124: 4 | N124: 4 | O124: 3 | P124: 3 | Q124: 3 | R124: 3 | S124: 3 | T124: 4 | U124: 3 | V124: 3 | W124: 3 | X124: 3 | Y124: 3 | AB124: 51
A125: 2022-04-29 | B125: 2022-04-29 | J125: 3 | K125: 3 | L125: 3 | M125: 4 | N125: 4 | O125: 3 | P125: 3 | Q125: 3 | R125: 3 | S125: 3 | T125: 4 | U125: 3 | V125: 3 | W125: 3 | X125: 3 | Y125: 3 | AB125: 51
A126: 2022-04-30 | B126: 2022-04-30 | J126: 3 | K126: 3 | L126: 3 | M126: 4 | N126: 4 | O126: 4 | P126: 3 | Q126: 3 | R126: 3 | S126: 3 | T126: 4 | U126: 3 | V126: 3 | W126: 3 | X126: 3 | Y126: 3 | AB126: 52
A127: 2022-05-01 | B127: 2022-05-01 | AB127: 0
A128: 2022-05-02 | B128: 2022-05-02 | J128: 3 | K128: 3 | L128: 3 | M128: 4 | N128: 4 | O128: 3 | P128: 3 | Q128: 3 | R128: 3 | S128: 3 | T128: 4 | U128: 3 | V128: 3 | W128: 3 | X128: 3 | Y128: 3 | AB128: 51
A129: 2022-05-03 | B129: 2022-05-03 | J129: 3 | K129: 3 | L129: 3 | M129: 4 | N129: 4 | O129: 3 | P129: 3 | Q129: 3 | R129: 3 | S129: 3 | T129: 4 | U129: 3 | V129: 3 | W129: 3 | X129: 3 | Y129: 3 | AB129: 51
A130: 2022-05-04 | B130: 2022-05-04 | J130: 3 | K130: 3 | L130: 3 | M130: 4 | N130: 4 | O130: 3 | P130: 3 | Q130: 3 | R130: 3 | S130: 3 | T130: 4 | U130: 3 | V130: 3 | W130: 3 | X130: 3 | Y130: 3 | AB130: 51
A131: 2022-05-05 | B131: 2022-05-05 | J131: 3 | K131: 3 | L131: 3 | M131: 4 | N131: 4 | O131: 3 | P131: 3 | Q131: 3 | R131: 3 | S131: 3 | T131: 4 | U131: 3 | V131: 3 | W131: 3 | X131: 3 | Y131: 3 | AB131: 51
A132: 2022-05-06 | B132: 2022-05-06 | J132: 3 | K132: 3 | L132: 3 | M132: 4 | N132: 4 | O132: 3 | P132: 3 | Q132: 3 | R132: 3 | S132: 3 | T132: 4 | U132: 3 | V132: 3 | W132: 3 | X132: 3 | Y132: 3 | AB132: 51
A133: 2022-05-07 | B133: 2022-05-07 | J133: 3 | K133: 3 | L133: 3 | M133: 4 | N133: 4 | O133: 4 | P133: 3 | Q133: 3 | R133: 3 | S133: 3 | T133: 4 | U133: 3 | V133: 3 | W133: 3 | X133: 3 | Y133: 3 | AB133: 52
A134: 2022-05-08 | B134: 2022-05-08 | AB134: 0
A135: 2022-05-09 | B135: 2022-05-09 | J135: 3 | K135: 3 | L135: 3 | M135: 4 | N135: 4 | O135: 3 | P135: 3 | Q135: 3 | R135: 3 | S135: 3 | T135: 4 | U135: 3 | V135: 3 | W135: 3 | X135: 3 | Y135: 3 | AB135: 51
A136: 2022-05-10 | B136: =A136 -> 2022-05-10 | J136: 3 | K136: 3 | L136: 3 | M136: 4 | N136: 4 | O136: 3 | P136: 3 | Q136: 3 | R136: 3 | S136: 3 | T136: 4 | U136: 3 | V136: 3 | W136: 3 | X136: 3 | Y136: 3 | AB136: =SUM(C136:AA136) -> 51
A137: 2022-05-11 | B137: 2022-05-11 | J137: 3 | K137: 3 | L137: 3 | M137: 4 | N137: 4 | O137: 3 | P137: 3 | Q137: 3 | R137: 3 | S137: 3 | T137: 4 | U137: 3 | V137: 3 | W137: 3 | X137: 3 | Y137: 3 | AB137: 51
A138: 2022-05-12 | B138: 2022-05-12 | J138: 3 | K138: 3 | L138: 3 | M138: 4 | N138: 4 | O138: 3 | P138: 3 | Q138: 3 | R138: 3 | S138: 3 | T138: 4 | U138: 3 | V138: 3 | W138: 3 | X138: 3 | Y138: 3 | AB138: 51
A139: 2022-05-13 | B139: 2022-05-13 | J139: 3 | K139: 3 | L139: 3 | M139: 4 | N139: 4 | O139: 3 | P139: 3 | Q139: 3 | R139: 3 | S139: 3 | T139: 4 | U139: 3 | V139: 3 | W139: 3 | X139: 3 | Y139: 3 | AB139: 51
A140: 2022-05-14 | B140: 2022-05-14 | J140: 3 | K140: 3 | L140: 3 | M140: 4 | N140: 4 | O140: 4 | P140: 3 | Q140: 3 | R140: 3 | S140: 3 | T140: 4 | U140: 3 | V140: 3 | W140: 3 | X140: 3 | Y140: 3 | AB140: 52
A141: 2022-05-15 | B141: 2022-05-15 | AB141: 0
A142: 2022-05-16 | B142: 2022-05-16 | J142: 3 | K142: 3 | L142: 3 | M142: 4 | N142: 4 | O142: 3 | P142: 3 | Q142: 3 | R142: 3 | S142: 3 | T142: 4 | U142: 3 | V142: 3 | W142: 3 | X142: 3 | Y142: 3 | AB142: 51
A143: 2022-05-17 | B143: 2022-05-17 | J143: 3 | K143: 3 | L143: 3 | M143: 4 | N143: 4 | O143: 3 | P143: 3 | Q143: 3 | R143: 3 | S143: 3 | T143: 4 | U143: 3 | V143: 3 | W143: 3 | X143: 3 | Y143: 3 | AB143: 51
A144: 2022-05-18 | B144: 2022-05-18 | J144: 3 | K144: 3 | L144: 3 | M144: 4 | N144: 4 | O144: 3 | P144: 3 | Q144: 3 | R144: 3 | S144: 3 | T144: 4 | U144: 3 | V144: 3 | W144: 3 | X144: 3 | Y144: 3 | AB144: 51
A145: 2022-05-19 | B145: 2022-05-19 | J145: 3 | K145: 3 | L145: 3 | M145: 4 | N145: 4 | O145: 3 | P145: 3 | Q145: 3 | R145: 3 | S145: 3 | T145: 4 | U145: 3 | V145: 3 | W145: 3 | X145: 3 | Y145: 3 | AB145: 51
A146: 2022-05-20 | B146: 2022-05-20 | J146: 3 | K146: 3 | L146: 3 | M146: 4 | N146: 4 | O146: 3 | P146: 3 | Q146: 3 | R146: 3 | S146: 3 | T146: 4 | U146: 3 | V146: 3 | W146: 3 | X146: 3 | Y146: 3 | AB146: 51
A147: 2022-05-21 | B147: 2022-05-21 | J147: 3 | K147: 3 | L147: 3 | M147: 4 | N147: 4 | O147: 4 | P147: 3 | Q147: 3 | R147: 3 | S147: 3 | T147: 4 | U147: 3 | V147: 3 | W147: 3 | X147: 3 | Y147: 3 | AB147: 52
A148: 2022-05-22 | B148: 2022-05-22 | AB148: 0
A149: 2022-05-23 | B149: 2022-05-23 | J149: 3 | K149: 3 | L149: 3 | M149: 4 | N149: 4 | O149: 3 | P149: 3 | Q149: 3 | R149: 3 | S149: 3 | T149: 4 | U149: 3 | V149: 3 | W149: 3 | X149: 3 | Y149: 3 | AB149: 51
A150: 2022-05-24 | B150: 2022-05-24 | J150: 3 | K150: 3 | L150: 3 | M150: 4 | N150: 4 | O150: 3 | P150: 3 | Q150: 3 | R150: 3 | S150: 3 | T150: 4 | U150: 3 | V150: 3 | W150: 3 | X150: 3 | Y150: 3 | AB150: 51
A151: 2022-05-25 | B151: 2022-05-25 | J151: 3 | K151: 3 | L151: 3 | M151: 4 | N151: 4 | O151: 3 | P151: 3 | Q151: 3 | R151: 3 | S151: 3 | T151: 4 | U151: 3 | V151: 3 | W151: 3 | X151: 3 | Y151: 3 | AB151: 51
A152: 2022-05-26 | B152: 2022-05-26 | J152: 3 | K152: 3 | L152: 3 | M152: 4 | N152: 4 | O152: 3 | P152: 3 | Q152: 3 | R152: 3 | S152: 3 | T152: 4 | U152: 3 | V152: 3 | W152: 3 | X152: 3 | Y152: 3 | AB152: 51
A153: 2022-05-27 | B153: 2022-05-27 | J153: 3 | K153: 3 | L153: 3 | M153: 4 | N153: 4 | O153: 3 | P153: 3 | Q153: 3 | R153: 3 | S153: 3 | T153: 4 | U153: 3 | V153: 3 | W153: 3 | X153: 3 | Y153: 3 | AB153: 51
A154: 2022-05-28 | B154: 2022-05-28 | J154: 3 | K154: 3 | L154: 3 | M154: 4 | N154: 4 | O154: 4 | P154: 3 | Q154: 3 | R154: 3 | S154: 3 | T154: 4 | U154: 3 | V154: 3 | W154: 3 | X154: 3 | Y154: 3 | AB154: 52
A155: 2022-05-29 | B155: 2022-05-29 | AB155: 0
A156: 2022-05-30 | B156: 2022-05-30 | J156: 3 | K156: 3 | L156: 3 | M156: 4 | N156: 4 | O156: 3 | P156: 3 | Q156: 3 | R156: 3 | S156: 3 | T156: 4 | U156: 3 | V156: 3 | W156: 3 | X156: 3 | Y156: 3 | AB156: 51
A157: 2022-05-31 | B157: 2022-05-31 | J157: 3 | K157: 3 | L157: 3 | M157: 4 | N157: 4 | O157: 3 | P157: 3 | Q157: 3 | R157: 3 | S157: 3 | T157: 4 | U157: 3 | V157: 3 | W157: 3 | X157: 3 | Y157: 3 | AB157: 51
A158: 2022-06-01 | B158: 2022-06-01 | J158: 3 | K158: 3 | L158: 3 | M158: 4 | N158: 4 | O158: 3 | P158: 3 | Q158: 3 | R158: 3 | S158: 3 | T158: 4 | U158: 3 | V158: 3 | W158: 3 | X158: 3 | Y158: 3 | AB158: 51
A159: 2022-06-02 | B159: 2022-06-02 | J159: 3 | K159: 3 | L159: 3 | M159: 4 | N159: 4 | O159: 3 | P159: 3 | Q159: 3 | R159: 3 | S159: 3 | T159: 4 | U159: 3 | V159: 3 | W159: 3 | X159: 3 | Y159: 3 | AB159: 51
A160: 2022-06-03 | B160: 2022-06-03 | J160: 3 | K160: 3 | L160: 3 | M160: 4 | N160: 4 | O160: 3 | P160: 3 | Q160: 3 | R160: 3 | S160: 3 | T160: 4 | U160: 3 | V160: 3 | W160: 3 | X160: 3 | Y160: 3 | AB160: 51
A161: 2022-06-04 | B161: 2022-06-04 | J161: 3 | K161: 3 | L161: 3 | M161: 4 | N161: 4 | O161: 4 | P161: 3 | Q161: 3 | R161: 3 | S161: 3 | T161: 4 | U161: 3 | V161: 3 | W161: 3 | X161: 3 | Y161: 3 | AB161: 52
A162: 2022-06-05 | B162: 2022-06-05 | AB162: 0
A163: 2022-06-06 | B163: 2022-06-06 | J163: 3 | K163: 3 | L163: 3 | M163: 4 | N163: 4 | O163: 3 | P163: 3 | Q163: 3 | R163: 3 | S163: 3 | T163: 4 | U163: 3 | V163: 3 | W163: 3 | X163: 3 | Y163: 3 | AB163: 51
A164: 2022-06-07 | B164: 2022-06-07 | J164: 3 | K164: 3 | L164: 3 | M164: 4 | N164: 4 | O164: 3 | P164: 3 | Q164: 3 | R164: 3 | S164: 3 | T164: 4 | U164: 3 | V164: 3 | W164: 3 | X164: 3 | Y164: 3 | AB164: 51
A165: 2022-06-08 | B165: 2022-06-08 | J165: 3 | K165: 3 | L165: 3 | M165: 4 | N165: 4 | O165: 3 | P165: 3 | Q165: 3 | R165: 3 | S165: 3 | T165: 4 | U165: 3 | V165: 3 | W165: 3 | X165: 3 | Y165: 3 | AB165: 51
A166: 2022-06-09 | B166: 2022-06-09 | J166: 3 | K166: 3 | L166: 3 | M166: 4 | N166: 4 | O166: 3 | P166: 3 | Q166: 3 | R166: 3 | S166: 3 | T166: 4 | U166: 3 | V166: 3 | W166: 3 | X166: 3 | Y166: 3 | AB166: 51
A167: 2022-06-10 | B167: 2022-06-10 | J167: 3 | K167: 3 | L167: 3 | M167: 4 | N167: 4 | O167: 3 | P167: 3 | Q167: 3 | R167: 3 | S167: 3 | T167: 4 | U167: 3 | V167: 3 | W167: 3 | X167: 3 | Y167: 3 | AB167: 51
A168: 2022-06-11 | B168: 2022-06-11 | J168: 3 | K168: 3 | L168: 3 | M168: 4 | N168: 4 | O168: 4 | P168: 3 | Q168: 3 | R168: 3 | S168: 3 | T168: 4 | U168: 3 | V168: 3 | W168: 3 | X168: 3 | Y168: 3 | AB168: 52
A169: 2022-06-12 | B169: 2022-06-12 | AB169: 0
A170: 2022-06-13 | B170: 2022-06-13 | J170: 3 | K170: 3 | L170: 3 | M170: 4 | N170: 4 | O170: 3 | P170: 3 | Q170: 3 | R170: 3 | S170: 3 | T170: 4 | U170: 3 | V170: 3 | W170: 3 | X170: 3 | Y170: 3 | AB170: 51
A171: 2022-06-14 | B171: 2022-06-14 | J171: 3 | K171: 3 | L171: 3 | M171: 4 | N171: 4 | O171: 3 | P171: 3 | Q171: 3 | R171: 3 | S171: 3 | T171: 4 | U171: 3 | V171: 3 | W171: 3 | X171: 3 | Y171: 3 | AB171: 51
A172: 2022-06-15 | B172: 2022-06-15 | J172: 3 | K172: 3 | L172: 3 | M172: 4 | N172: 4 | O172: 3 | P172: 3 | Q172: 3 | R172: 3 | S172: 3 | T172: 4 | U172: 3 | V172: 3 | W172: 3 | X172: 3 | Y172: 3 | AB172: 51
A173: 2022-06-16 | B173: 2022-06-16 | J173: 3 | K173: 3 | L173: 3 | M173: 4 | N173: 4 | O173: 3 | P173: 3 | Q173: 3 | R173: 3 | S173: 3 | T173: 4 | U173: 3 | V173: 3 | W173: 3 | X173: 3 | Y173: 3 | AB173: 51
A174: 2022-06-17 | B174: 2022-06-17 | J174: 3 | K174: 3 | L174: 3 | M174: 4 | N174: 4 | O174: 3 | P174: 3 | Q174: 3 | R174: 3 | S174: 3 | T174: 4 | U174: 3 | V174: 3 | W174: 3 | X174: 3 | Y174: 3 | AB174: 51
A175: 2022-06-18 | B175: 2022-06-18 | J175: 3 | K175: 3 | L175: 3 | M175: 4 | N175: 4 | O175: 4 | P175: 3 | Q175: 3 | R175: 3 | S175: 3 | T175: 4 | U175: 3 | V175: 3 | W175: 3 | X175: 3 | Y175: 3 | AB175: 52
A176: 2022-06-19 | B176: 2022-06-19 | AB176: 0
A177: 2022-06-20 | B177: 2022-06-20 | J177: 3 | K177: 3 | L177: 3 | M177: 4 | N177: 4 | O177: 3 | P177: 3 | Q177: 3 | R177: 3 | S177: 3 | T177: 4 | U177: 3 | V177: 3 | W177: 3 | X177: 3 | Y177: 3 | AB177: 51
A178: 2022-06-21 | B178: 2022-06-21 | J178: 3 | K178: 3 | L178: 3 | M178: 4 | N178: 4 | O178: 3 | P178: 3 | Q178: 3 | R178: 3 | S178: 3 | T178: 4 | U178: 3 | V178: 3 | W178: 3 | X178: 3 | Y178: 3 | AB178: 51
A179: 2022-06-22 | B179: 2022-06-22 | J179: 3 | K179: 3 | L179: 3 | M179: 4 | N179: 4 | O179: 3 | P179: 3 | Q179: 3 | R179: 3 | S179: 3 | T179: 4 | U179: 3 | V179: 3 | W179: 3 | X179: 3 | Y179: 3 | AB179: 51
A180: 2022-06-23 | B180: 2022-06-23 | J180: 3 | K180: 3 | L180: 3 | M180: 4 | N180: 4 | O180: 3 | P180: 3 | Q180: 3 | R180: 3 | S180: 3 | T180: 4 | U180: 3 | V180: 3 | W180: 3 | X180: 3 | Y180: 3 | AB180: 51
A181: 2022-06-24 | B181: 2022-06-24 | J181: 3 | K181: 3 | L181: 3 | M181: 4 | N181: 4 | O181: 3 | P181: 3 | Q181: 3 | R181: 3 | S181: 3 | T181: 4 | U181: 3 | V181: 3 | W181: 3 | X181: 3 | Y181: 3 | AB181: 51
A182: 2022-06-25 | B182: 2022-06-25 | J182: 3 | K182: 3 | L182: 3 | M182: 4 | N182: 4 | O182: 4 | P182: 3 | Q182: 3 | R182: 3 | S182: 3 | T182: 4 | U182: 3 | V182: 3 | W182: 3 | X182: 3 | Y182: 3 | AB182: 52
A183: 2022-06-26 | B183: 2022-06-26 | AB183: 0
A184: 2022-06-27 | B184: 2022-06-27 | J184: 3 | K184: 3 | L184: 3 | M184: 4 | N184: 4 | O184: 3 | P184: 3 | Q184: 3 | R184: 3 | S184: 3 | T184: 4 | U184: 3 | V184: 3 | W184: 3 | X184: 3 | Y184: 3 | AB184: 51
A185: 2022-06-28 | B185: 2022-06-28 | J185: 3 | K185: 3 | L185: 3 | M185: 4 | N185: 4 | O185: 3 | P185: 3 | Q185: 3 | R185: 3 | S185: 3 | T185: 4 | U185: 3 | V185: 3 | W185: 3 | X185: 3 | Y185: 3 | AB185: 51
A186: 2022-06-29 | B186: 2022-06-29 | J186: 3 | K186: 3 | L186: 3 | M186: 4 | N186: 4 | O186: 3 | P186: 3 | Q186: 3 | R186: 3 | S186: 3 | T186: 4 | U186: 3 | V186: 3 | W186: 3 | X186: 3 | Y186: 3 | AB186: 51
A187: 2022-06-30 | B187: 2022-06-30 | J187: 3 | K187: 3 | L187: 3 | M187: 4 | N187: 4 | O187: 3 | P187: 3 | Q187: 3 | R187: 3 | S187: 3 | T187: 4 | U187: 3 | V187: 3 | W187: 3 | X187: 3 | Y187: 3 | AB187: 51
A188: 2022-07-01 | B188: 2022-07-01 | J188: 3 | K188: 3 | L188: 3 | M188: 4 | N188: 4 | O188: 3 | P188: 3 | Q188: 3 | R188: 3 | S188: 3 | T188: 4 | U188: 3 | V188: 3 | W188: 3 | X188: 3 | Y188: 3 | AB188: 51
A189: 2022-07-02 | B189: 2022-07-02 | J189: 3 | K189: 3 | L189: 3 | M189: 4 | N189: 4 | O189: 4 | P189: 3 | Q189: 3 | R189: 3 | S189: 3 | T189: 4 | U189: 3 | V189: 3 | W189: 3 | X189: 3 | Y189: 3 | AB189: 52
A190: 2022-07-03 | B190: 2022-07-03 | AB190: 0
A191: 2022-07-04 | B191: 2022-07-04 | J191: 3 | K191: 3 | L191: 3 | M191: 4 | N191: 4 | O191: 3 | P191: 3 | Q191: 3 | R191: 3 | S191: 3 | T191: 4 | U191: 3 | V191: 3 | W191: 3 | X191: 3 | Y191: 3 | AB191: 51
A192: 2022-07-05 | B192: 2022-07-05 | J192: 3 | K192: 3 | L192: 3 | M192: 4 | N192: 4 | O192: 3 | P192: 3 | Q192: 3 | R192: 3 | S192: 3 | T192: 4 | U192: 3 | V192: 3 | W192: 3 | X192: 3 | Y192: 3 | AB192: 51
A193: 2022-07-06 | B193: 2022-07-06 | J193: 3 | K193: 3 | L193: 3 | M193: 4 | N193: 4 | O193: 3 | P193: 3 | Q193: 3 | R193: 3 | S193: 3 | T193: 4 | U193: 3 | V193: 3 | W193: 3 | X193: 3 | Y193: 3 | AB193: 51
A194: 2022-07-07 | B194: 2022-07-07 | J194: 3 | K194: 3 | L194: 3 | M194: 4 | N194: 4 | O194: 3 | P194: 3 | Q194: 3 | R194: 3 | S194: 3 | T194: 4 | U194: 3 | V194: 3 | W194: 3 | X194: 3 | Y194: 3 | AB194: 51
A195: 2022-07-08 | B195: 2022-07-08 | J195: 3 | K195: 3 | L195: 3 | M195: 4 | N195: 4 | O195: 3 | P195: 3 | Q195: 3 | R195: 3 | S195: 3 | T195: 4 | U195: 3 | V195: 3 | W195: 3 | X195: 3 | Y195: 3 | AB195: 51
A196: 2022-07-09 | B196: 2022-07-09 | J196: 3 | K196: 3 | L196: 3 | M196: 4 | N196: 4 | O196: 4 | P196: 3 | Q196: 3 | R196: 3 | S196: 3 | T196: 4 | U196: 3 | V196: 3 | W196: 3 | X196: 3 | Y196: 3 | AB196: 52
A197: 2022-07-10 | B197: 2022-07-10 | AB197: 0
A198: 2022-07-11 | B198: 2022-07-11 | J198: 3 | K198: 3 | L198: 3 | M198: 4 | N198: 4 | O198: 3 | P198: 3 | Q198: 3 | R198: 3 | S198: 3 | T198: 4 | U198: 3 | V198: 3 | W198: 3 | X198: 3 | Y198: 3 | AB198: 51
A199: 2022-07-12 | B199: 2022-07-12 | J199: 3 | K199: 3 | L199: 3 | M199: 4 | N199: 4 | O199: 3 | P199: 3 | Q199: 3 | R199: 3 | S199: 3 | T199: 4 | U199: 3 | V199: 3 | W199: 3 | X199: 3 | Y199: 3 | AB199: 51
A200: 2022-07-13 | B200: =A200 -> 2022-07-13 | J200: 3 | K200: 3 | L200: 3 | M200: 4 | N200: 4 | O200: 3 | P200: 3 | Q200: 3 | R200: 3 | S200: 3 | T200: 4 | U200: 3 | V200: 3 | W200: 3 | X200: 3 | Y200: 3 | AB200: =SUM(C200:AA200) -> 51
A201: 2022-07-14 | B201: 2022-07-14 | J201: 3 | K201: 3 | L201: 3 | M201: 4 | N201: 4 | O201: 3 | P201: 3 | Q201: 3 | R201: 3 | S201: 3 | T201: 4 | U201: 3 | V201: 3 | W201: 3 | X201: 3 | Y201: 3 | AB201: 51
A202: 2022-07-15 | B202: 2022-07-15 | J202: 3 | K202: 3 | L202: 3 | M202: 4 | N202: 4 | O202: 3 | P202: 3 | Q202: 3 | R202: 3 | S202: 3 | T202: 4 | U202: 3 | V202: 3 | W202: 3 | X202: 3 | Y202: 3 | AB202: 51
A203: 2022-07-16 | B203: 2022-07-16 | J203: 3 | K203: 3 | L203: 3 | M203: 4 | N203: 4 | O203: 4 | P203: 3 | Q203: 3 | R203: 3 | S203: 3 | T203: 4 | U203: 3 | V203: 3 | W203: 3 | X203: 3 | Y203: 3 | AB203: 52
... 168 more rows

Sheet RI CEAEA
A2: Canadian | C2: **Please note 2/5/2022 is an adjustment day with a different schedule and schedule for 4/1/22 and beyond have not yet been established. Below are estimates.
A3: Entitlement | C3: 1 | D3: 2 | E3: 2B | F3: 3 | G3: 4 | H3: 5 | I3: 6 | J3: 7 | K3: 8 | L3: 9 | M3: 10 | N3: 11 | O3: 12 | P3: 13 | Q3: 14 | R3: 15 | S3: 16 | T3: 17 | U3: 18 | V3: 19 | W3: 20 | X3: 21 | Y3: 22 | Z3: 23 | AA3: 24 | AB3: Day
A5: Rock Island CEAEA
A7: 2022-01-01 | B7: =A7 -> 2022-01-01 | J7: 1 | K7: 2 | L7: 2 | M7: 1 | N7: 2 | O7: 1 | P7: 1 | Q7: 1 | R7: 2 | S7: 1 | T7: 2 | U7: 1 | V7: 1 | W7: 2 | X7: 2 | Y7: 2 | AB7: =SUM(C7:AA7) -> 24
A8: 2022-01-02 | B8: =A8 -> 2022-01-02 | AB8: =SUM(C8:AA8) -> 0
A9: 2022-01-03 | B9: 2022-01-03 | J9: 2 | K9: 2 | L9: 2 | M9: 2 | N9: 2 | O9: 1 | P9: 2 | Q9: 1 | R9: 2 | S9: 1 | T9: 2 | U9: 1 | V9: 1 | W9: 1 | X9: 1 | Y9: 2 | AB9: 25
A10: 2022-01-04 | B10: 2022-01-04 | J10: 2 | K10: 2 | L10: 2 | M10: 2 | N10: 2 | O10: 1 | P10: 2 | Q10: 1 | R10: 2 | S10: 1 | T10: 2 | U10: 1 | V10: 1 | W10: 1 | X10: 1 | Y10: 2 | AB10: 25
A11: 2022-01-05 | B11: 2022-01-05 | J11: 2 | K11: 2 | L11: 2 | M11: 2 | N11: 2 | O11: 1 | P11: 2 | Q11: 1 | R11: 2 | S11: 1 | T11: 2 | U11: 1 | V11: 1 | W11: 1 | X11: 1 | Y11: 2 | AB11: 25
A12: 2022-01-06 | B12: 2022-01-06 | J12: 2 | K12: 2 | L12: 2 | M12: 2 | N12: 2 | O12: 1 | P12: 2 | Q12: 1 | R12: 2 | S12: 1 | T12: 2 | U12: 1 | V12: 1 | W12: 1 | X12: 1 | Y12: 2 | AB12: 25
A13: 2022-01-07 | B13: 2022-01-07 | J13: 2 | K13: 2 | L13: 2 | M13: 2 | N13: 2 | O13: 1 | P13: 2 | Q13: 1 | R13: 2 | S13: 1 | T13: 2 | U13: 1 | V13: 1 | W13: 1 | X13: 1 | Y13: 2 | AB13: 25
A14: 2022-01-08 | B14: 2022-01-08 | J14: 1 | K14: 2 | L14: 2 | M14: 1 | N14: 2 | O14: 1 | P14: 1 | Q14: 1 | R14: 2 | S14: 1 | T14: 2 | U14: 1 | V14: 1 | W14: 2 | X14: 2 | Y14: 2 | AB14: 24
A15: 2022-01-09 | B15: 2022-01-09 | AB15: 0
A16: 2022-01-10 | B16: 2022-01-10 | J16: 2 | K16: 2 | L16: 2 | M16: 2 | N16: 2 | O16: 1 | P16: 2 | Q16: 1 | R16: 2 | S16: 1 | T16: 2 | U16: 1 | V16: 1 | W16: 1 | X16: 1 | Y16: 2 | AB16: 25
A17: 2022-01-11 | B17: 2022-01-11 | J17: 2 | K17: 2 | L17: 2 | M17: 2 | N17: 2 | O17: 1 | P17: 2 | Q17: 1 | R17: 2 | S17: 1 | T17: 2 | U17: 1 | V17: 1 | W17: 1 | X17: 1 | Y17: 2 | AB17: 25
A18: 2022-01-12 | B18: 2022-01-12 | J18: 2 | K18: 2 | L18: 2 | M18: 2 | N18: 2 | O18: 1 | P18: 2 | Q18: 1 | R18: 2 | S18: 1 | T18: 2 | U18: 1 | V18: 1 | W18: 1 | X18: 1 | Y18: 2 | AB18: 25
A19: 2022-01-13 | B19: 2022-01-13 | J19: 2 | K19: 2 | L19: 2 | M19: 2 | N19: 2 | O19: 1 | P19: 2 | Q19: 1 | R19: 2 | S19: 1 | T19: 2 | U19: 1 | V19: 1 | W19: 1 | X19: 1 | Y19: 2 | AB19: 25
A20: 2022-01-14 | B20: 2022-01-14 | J20: 2 | K20: 2 | L20: 2 | M20: 2 | N20: 2 | O20: 1 | P20: 2 | Q20: 1 | R20: 2 | S20: 1 | T20: 2 | U20: 1 | V20: 1 | W20: 1 | X20: 1 | Y20: 2 | AB20: 25
A21: 2022-01-15 | B21: 2022-01-15 | J21: 1 | K21: 2 | L21: 2 | M21: 1 | N21: 2 | O21: 1 | P21: 1 | Q21: 1 | R21: 2 | S21: 1 | T21: 2 | U21: 1 | V21: 1 | W21: 2 | X21: 2 | Y21: 2 | AB21: 24
A22: 2022-01-16 | B22: 2022-01-16 | AB22: 0
A23: 2022-01-17 | B23: 2022-01-17 | J23: 2 | K23: 2 | L23: 2 | M23: 2 | N23: 2 | O23: 1 | P23: 2 | Q23: 1 | R23: 2 | S23: 1 | T23: 2 | U23: 1 | V23: 1 | W23: 1 | X23: 1 | Y23: 2 | AB23: 25
A24: 2022-01-18 | B24: 2022-01-18 | J24: 2 | K24: 2 | L24: 2 | M24: 2 | N24: 2 | O24: 1 | P24: 2 | Q24: 1 | R24: 2 | S24: 1 | T24: 2 | U24: 1 | V24: 1 | W24: 1 | X24: 1 | Y24: 2 | AB24: 25
A25: 2022-01-19 | B25: 2022-01-19 | J25: 2 | K25: 2 | L25: 2 | M25: 2 | N25: 2 | O25: 1 | P25: 2 | Q25: 1 | R25: 2 | S25: 1 | T25: 2 | U25: 1 | V25: 1 | W25: 1 | X25: 1 | Y25: 2 | AB25: 25
A26: 2022-01-20 | B26: 2022-01-20 | J26: 2 | K26: 2 | L26: 2 | M26: 2 | N26: 2 | O26: 1 | P26: 2 | Q26: 1 | R26: 2 | S26: 1 | T26: 2 | U26: 1 | V26: 1 | W26: 1 | X26: 1 | Y26: 2 | AB26: 25
A27: 2022-01-21 | B27: 2022-01-21 | J27: 2 | K27: 2 | L27: 2 | M27: 2 | N27: 2 | O27: 1 | P27: 2 | Q27: 1 | R27: 2 | S27: 1 | T27: 2 | U27: 1 | V27: 1 | W27: 1 | X27: 1 | Y27: 2 | AB27: 25
A28: 2022-01-22 | B28: 2022-01-22 | J28: 1 | K28: 2 | L28: 2 | M28: 1 | N28: 2 | O28: 1 | P28: 1 | Q28: 1 | R28: 2 | S28: 1 | T28: 2 | U28: 1 | V28: 1 | W28: 2 | X28: 2 | Y28: 2 | AB28: 24
A29: 2022-01-23 | B29: 2022-01-23 | AB29: 0
A30: 2022-01-24 | B30: 2022-01-24 | J30: 2 | K30: 2 | L30: 2 | M30: 2 | N30: 2 | O30: 1 | P30: 2 | Q30: 1 | R30: 2 | S30: 1 | T30: 2 | U30: 1 | V30: 1 | W30: 1 | X30: 1 | Y30: 2 | AB30: 25
A31: 2022-01-25 | B31: 2022-01-25 | J31: 2 | K31: 2 | L31: 2 | M31: 2 | N31: 2 | O31: 1 | P31: 2 | Q31: 1 | R31: 2 | S31: 1 | T31: 2 | U31: 1 | V31: 1 | W31: 1 | X31: 1 | Y31: 2 | AB31: 25
A32: 2022-01-26 | B32: 2022-01-26 | J32: 2 | K32: 2 | L32: 2 | M32: 2 | N32: 2 | O32: 1 | P32: 2 | Q32: 1 | R32: 2 | S32: 1 | T32: 2 | U32: 1 | V32: 1 | W32: 1 | X32: 1 | Y32: 2 | AB32: 25
A33: 2022-01-27 | B33: 2022-01-27 | J33: 2 | K33: 2 | L33: 2 | M33: 2 | N33: 2 | O33: 1 | P33: 2 | Q33: 1 | R33: 2 | S33: 1 | T33: 2 | U33: 1 | V33: 1 | W33: 1 | X33: 1 | Y33: 2 | AB33: 25
A34: 2022-01-28 | B34: 2022-01-28 | J34: 2 | K34: 2 | L34: 2 | M34: 2 | N34: 2 | O34: 1 | P34: 2 | Q34: 1 | R34: 2 | S34: 1 | T34: 2 | U34: 1 | V34: 1 | W34: 1 | X34: 1 | Y34: 2 | AB34: 25
A35: 2022-01-29 | B35: 2022-01-29 | J35: 1 | K35: 2 | L35: 2 | M35: 1 | N35: 2 | O35: 1 | P35: 1 | Q35: 1 | R35: 2 | S35: 1 | T35: 2 | U35: 1 | V35: 1 | W35: 2 | X35: 2 | Y35: 2 | AB35: 24
A36: 2022-01-30 | B36: 2022-01-30 | AB36: 0
A37: 2022-01-31 | B37: 2022-01-31 | J37: 2 | K37: 2 | L37: 2 | M37: 2 | N37: 2 | O37: 1 | P37: 2 | Q37: 1 | R37: 2 | S37: 1 | T37: 2 | U37: 1 | V37: 1 | W37: 1 | X37: 1 | Y37: 2 | AB37: 25
A38: 2022-02-01 | B38: 2022-02-01 | J38: 2 | K38: 2 | L38: 2 | M38: 2 | N38: 2 | O38: 1 | P38: 2 | Q38: 1 | R38: 2 | S38: 1 | T38: 2 | U38: 1 | V38: 1 | W38: 1 | X38: 1 | Y38: 2 | AB38: 25
A39: 2022-02-02 | B39: 2022-02-02 | J39: 2 | K39: 2 | L39: 2 | M39: 2 | N39: 2 | O39: 1 | P39: 2 | Q39: 1 | R39: 2 | S39: 1 | T39: 2 | U39: 1 | V39: 1 | W39: 1 | X39: 1 | Y39: 2 | AB39: 25
A40: 2022-02-03 | B40: 2022-02-03 | J40: 2 | K40: 2 | L40: 2 | M40: 2 | N40: 2 | O40: 1 | P40: 2 | Q40: 1 | R40: 2 | S40: 1 | T40: 2 | U40: 1 | V40: 1 | W40: 1 | X40: 1 | Y40: 2 | AB40: 25
A41: 2022-02-04 | B41: 2022-02-04 | J41: 2 | K41: 2 | L41: 2 | M41: 2 | N41: 2 | O41: 1 | P41: 2 | Q41: 1 | R41: 2 | S41: 1 | T41: 2 | U41: 1 | V41: 1 | W41: 1 | X41: 1 | Y41: 2 | AB41: 25
A42: 2022-02-05 | B42: 2022-02-05 | J42: 1 | K42: 1 | L42: 2 | M42: 1 | N42: 1 | O42: 2 | P42: 1 | Q42: 2 | R42: 2 | S42: 1 | T42: 2 | U42: 1 | V42: 2 | W42: 1 | X42: 1 | Y42: 2 | AB42: 23
A43: 2022-02-06 | B43: 2022-02-06 | AB43: 0
A44: 2022-02-07 | B44: 2022-02-07 | J44: 2 | K44: 2 | L44: 2 | M44: 2 | N44: 2 | O44: 1 | P44: 2 | Q44: 1 | R44: 2 | S44: 1 | T44: 2 | U44: 1 | V44: 1 | W44: 1 | X44: 1 | Y44: 2 | AB44: 25
A45: 2022-02-08 | B45: 2022-02-08 | J45: 2 | K45: 2 | L45: 2 | M45: 2 | N45: 2 | O45: 1 | P45: 2 | Q45: 1 | R45: 2 | S45: 1 | T45: 2 | U45: 1 | V45: 1 | W45: 1 | X45: 1 | Y45: 2 | AB45: 25
A46: 2022-02-09 | B46: 2022-02-09 | J46: 2 | K46: 2 | L46: 2 | M46: 2 | N46: 2 | O46: 1 | P46: 2 | Q46: 1 | R46: 2 | S46: 1 | T46: 2 | U46: 1 | V46: 1 | W46: 1 | X46: 1 | Y46: 2 | AB46: 25
A47: 2022-02-10 | B47: 2022-02-10 | J47: 2 | K47: 2 | L47: 2 | M47: 2 | N47: 2 | O47: 1 | P47: 2 | Q47: 1 | R47: 2 | S47: 1 | T47: 2 | U47: 1 | V47: 1 | W47: 1 | X47: 1 | Y47: 2 | AB47: 25
A48: 2022-02-11 | B48: 2022-02-11 | J48: 2 | K48: 2 | L48: 2 | M48: 2 | N48: 2 | O48: 1 | P48: 2 | Q48: 1 | R48: 2 | S48: 1 | T48: 2 | U48: 1 | V48: 1 | W48: 1 | X48: 1 | Y48: 2 | AB48: 25
A49: 2022-02-12 | B49: 2022-02-12 | J49: 1 | K49: 2 | L49: 2 | M49: 1 | N49: 2 | O49: 1 | P49: 1 | Q49: 1 | R49: 2 | S49: 1 | T49: 2 | U49: 1 | V49: 1 | W49: 2 | X49: 2 | Y49: 2 | AB49: 24
A50: 2022-02-13 | B50: 2022-02-13 | AB50: 0
A51: 2022-02-14 | B51: 2022-02-14 | J51: 2 | K51: 2 | L51: 2 | M51: 2 | N51: 2 | O51: 1 | P51: 2 | Q51: 1 | R51: 2 | S51: 1 | T51: 2 | U51: 1 | V51: 1 | W51: 1 | X51: 1 | Y51: 2 | AB51: 25
A52: 2022-02-15 | B52: 2022-02-15 | J52: 2 | K52: 2 | L52: 2 | M52: 2 | N52: 2 | O52: 1 | P52: 2 | Q52: 1 | R52: 2 | S52: 1 | T52: 2 | U52: 1 | V52: 1 | W52: 1 | X52: 1 | Y52: 2 | AB52: 25
A53: 2022-02-16 | B53: 2022-02-16 | J53: 2 | K53: 2 | L53: 2 | M53: 2 | N53: 2 | O53: 1 | P53: 2 | Q53: 1 | R53: 2 | S53: 1 | T53: 2 | U53: 1 | V53: 1 | W53: 1 | X53: 1 | Y53: 2 | AB53: 25
A54: 2022-02-17 | B54: 2022-02-17 | J54: 2 | K54: 2 | L54: 2 | M54: 2 | N54: 2 | O54: 1 | P54: 2 | Q54: 1 | R54: 2 | S54: 1 | T54: 2 | U54: 1 | V54: 1 | W54: 1 | X54: 1 | Y54: 2 | AB54: 25
A55: 2022-02-18 | B55: 2022-02-18 | J55: 2 | K55: 2 | L55: 2 | M55: 2 | N55: 2 | O55: 1 | P55: 2 | Q55: 1 | R55: 2 | S55: 1 | T55: 2 | U55: 1 | V55: 1 | W55: 1 | X55: 1 | Y55: 2 | AB55: 25
A56: 2022-02-19 | B56: 2022-02-19 | J56: 1 | K56: 2 | L56: 2 | M56: 1 | N56: 2 | O56: 1 | P56: 1 | Q56: 1 | R56: 2 | S56: 1 | T56: 2 | U56: 1 | V56: 1 | W56: 2 | X56: 2 | Y56: 2 | AB56: 24
A57: 2022-02-20 | B57: 2022-02-20 | AB57: 0
A58: 2022-02-21 | B58: 2022-02-21 | J58: 2 | K58: 2 | L58: 2 | M58: 2 | N58: 2 | O58: 1 | P58: 2 | Q58: 1 | R58: 2 | S58: 1 | T58: 2 | U58: 1 | V58: 1 | W58: 1 | X58: 1 | Y58: 2 | AB58: 25
A59: 2022-02-22 | B59: 2022-02-22 | J59: 2 | K59: 2 | L59: 2 | M59: 2 | N59: 2 | O59: 1 | P59: 2 | Q59: 1 | R59: 2 | S59: 1 | T59: 2 | U59: 1 | V59: 1 | W59: 1 | X59: 1 | Y59: 2 | AB59: 25
A60: 2022-02-23 | B60: 2022-02-23 | J60: 2 | K60: 2 | L60: 2 | M60: 2 | N60: 2 | O60: 1 | P60: 2 | Q60: 1 | R60: 2 | S60: 1 | T60: 2 | U60: 1 | V60: 1 | W60: 1 | X60: 1 | Y60: 2 | AB60: 25
A61: 2022-02-24 | B61: 2022-02-24 | J61: 2 | K61: 2 | L61: 2 | M61: 2 | N61: 2 | O61: 1 | P61: 2 | Q61: 1 | R61: 2 | S61: 1 | T61: 2 | U61: 1 | V61: 1 | W61: 1 | X61: 1 | Y61: 2 | AB61: 25
A62: 2022-02-25 | B62: 2022-02-25 | J62: 2 | K62: 2 | L62: 2 | M62: 2 | N62: 2 | O62: 1 | P62: 2 | Q62: 1 | R62: 2 | S62: 1 | T62: 2 | U62: 1 | V62: 1 | W62: 1 | X62: 1 | Y62: 2 | AB62: 25
A63: 2022-02-26 | B63: 2022-02-26 | J63: 1 | K63: 2 | L63: 2 | M63: 1 | N63: 2 | O63: 1 | P63: 1 | Q63: 1 | R63: 2 | S63: 1 | T63: 2 | U63: 1 | V63: 1 | W63: 2 | X63: 2 | Y63: 2 | AB63: 24
A64: 2022-02-27 | B64: 2022-02-27 | AB64: 0
A65: 2022-02-28 | B65: 2022-02-28 | J65: 2 | K65: 2 | L65: 2 | M65: 2 | N65: 2 | O65: 1 | P65: 2 | Q65: 1 | R65: 2 | S65: 1 | T65: 2 | U65: 1 | V65: 1 | W65: 1 | X65: 1 | Y65: 2 | AB65: 25
A66: 2022-03-01 | B66: 2022-03-01 | J66: 2 | K66: 2 | L66: 2 | M66: 2 | N66: 2 | O66: 1 | P66: 2 | Q66: 1 | R66: 2 | S66: 1 | T66: 2 | U66: 1 | V66: 1 | W66: 1 | X66: 1 | Y66: 2 | AB66: 25
A67: 2022-03-02 | B67: 2022-03-02 | J67: 2 | K67: 2 | L67: 2 | M67: 2 | N67: 2 | O67: 1 | P67: 2 | Q67: 1 | R67: 2 | S67: 1 | T67: 2 | U67: 1 | V67: 1 | W67: 1 | X67: 1 | Y67: 2 | AB67: 25
A68: 2022-03-03 | B68: 2022-03-03 | J68: 2 | K68: 2 | L68: 2 | M68: 2 | N68: 2 | O68: 1 | P68: 2 | Q68: 1 | R68: 2 | S68: 1 | T68: 2 | U68: 1 | V68: 1 | W68: 1 | X68: 1 | Y68: 2 | AB68: 25
A69: 2022-03-04 | B69: 2022-03-04 | J69: 2 | K69: 2 | L69: 2 | M69: 2 | N69: 2 | O69: 1 | P69: 2 | Q69: 1 | R69: 2 | S69: 1 | T69: 2 | U69: 1 | V69: 1 | W69: 1 | X69: 1 | Y69: 2 | AB69: 25
A70: 2022-03-05 | B70: 2022-03-05 | J70: 1 | K70: 2 | L70: 2 | M70: 1 | N70: 2 | O70: 1 | P70: 1 | Q70: 1 | R70: 2 | S70: 1 | T70: 2 | U70: 1 | V70: 1 | W70: 2 | X70: 2 | Y70: 2 | AB70: 24
A71: 2022-03-06 | B71: 2022-03-06 | AB71: 0
A72: 2022-03-07 | B72: =A72 -> 2022-03-07 | J72: 2 | K72: 2 | L72: 2 | M72: 2 | N72: 2 | O72: 1 | P72: 2 | Q72: 1 | R72: 2 | S72: 1 | T72: 2 | U72: 1 | V72: 1 | W72: 1 | X72: 1 | Y72: 2 | AB72: =SUM(C72:AA72) -> 25
A73: 2022-03-08 | B73: 2022-03-08 | J73: 2 | K73: 2 | L73: 2 | M73: 2 | N73: 2 | O73: 1 | P73: 2 | Q73: 1 | R73: 2 | S73: 1 | T73: 2 | U73: 1 | V73: 1 | W73: 1 | X73: 1 | Y73: 2 | AB73: 25
A74: 2022-03-09 | B74: 2022-03-09 | J74: 2 | K74: 2 | L74: 2 | M74: 2 | N74: 2 | O74: 1 | P74: 2 | Q74: 1 | R74: 2 | S74: 1 | T74: 2 | U74: 1 | V74: 1 | W74: 1 | X74: 1 | Y74: 2 | AB74: 25
A75: 2022-03-10 | B75: 2022-03-10 | J75: 2 | K75: 2 | L75: 2 | M75: 2 | N75: 2 | O75: 1 | P75: 2 | Q75: 1 | R75: 2 | S75: 1 | T75: 2 | U75: 1 | V75: 1 | W75: 1 | X75: 1 | Y75: 2 | AB75: 25
A76: 2022-03-11 | B76: 2022-03-11 | J76: 2 | K76: 2 | L76: 2 | M76: 2 | N76: 2 | O76: 1 | P76: 2 | Q76: 1 | R76: 2 | S76: 1 | T76: 2 | U76: 1 | V76: 1 | W76: 1 | X76: 1 | Y76: 2 | AB76: 25
A77: 2022-03-12 | B77: 2022-03-12 | J77: 1 | K77: 2 | L77: 2 | M77: 1 | N77: 2 | O77: 1 | P77: 1 | Q77: 1 | R77: 2 | S77: 1 | T77: 2 | U77: 1 | V77: 1 | W77: 2 | X77: 2 | Y77: 2 | AB77: 24
A78: 2022-03-13 | B78: 2022-03-13 | AB78: 0
A79: 2022-03-14 | B79: 2022-03-14 | J79: 2 | K79: 2 | L79: 2 | M79: 2 | N79: 2 | O79: 1 | P79: 2 | Q79: 1 | R79: 2 | S79: 1 | T79: 2 | U79: 1 | V79: 1 | W79: 1 | X79: 1 | Y79: 2 | AB79: 25
A80: 2022-03-15 | B80: 2022-03-15 | J80: 2 | K80: 2 | L80: 2 | M80: 2 | N80: 2 | O80: 1 | P80: 2 | Q80: 1 | R80: 2 | S80: 1 | T80: 2 | U80: 1 | V80: 1 | W80: 1 | X80: 1 | Y80: 2 | AB80: 25
A81: 2022-03-16 | B81: 2022-03-16 | J81: 2 | K81: 2 | L81: 2 | M81: 2 | N81: 2 | O81: 1 | P81: 2 | Q81: 1 | R81: 2 | S81: 1 | T81: 2 | U81: 1 | V81: 1 | W81: 1 | X81: 1 | Y81: 2 | AB81: 25
A82: 2022-03-17 | B82: 2022-03-17 | J82: 2 | K82: 2 | L82: 2 | M82: 2 | N82: 2 | O82: 1 | P82: 2 | Q82: 1 | R82: 2 | S82: 1 | T82: 2 | U82: 1 | V82: 1 | W82: 1 | X82: 1 | Y82: 2 | AB82: 25
A83: 2022-03-18 | B83: 2022-03-18 | J83: 2 | K83: 2 | L83: 2 | M83: 2 | N83: 2 | O83: 1 | P83: 2 | Q83: 1 | R83: 2 | S83: 1 | T83: 2 | U83: 1 | V83: 1 | W83: 1 | X83: 1 | Y83: 2 | AB83: 25
A84: 2022-03-19 | B84: 2022-03-19 | J84: 1 | K84: 2 | L84: 2 | M84: 1 | N84: 2 | O84: 1 | P84: 1 | Q84: 1 | R84: 2 | S84: 1 | T84: 2 | U84: 1 | V84: 1 | W84: 2 | X84: 2 | Y84: 2 | AB84: 24
A85: 2022-03-20 | B85: 2022-03-20 | AB85: 0
A86: 2022-03-21 | B86: 2022-03-21 | J86: 2 | K86: 2 | L86: 2 | M86: 2 | N86: 2 | O86: 1 | P86: 2 | Q86: 1 | R86: 2 | S86: 1 | T86: 2 | U86: 1 | V86: 1 | W86: 1 | X86: 1 | Y86: 2 | AB86: 25
A87: 2022-03-22 | B87: 2022-03-22 | J87: 2 | K87: 2 | L87: 2 | M87: 2 | N87: 2 | O87: 1 | P87: 2 | Q87: 1 | R87: 2 | S87: 1 | T87: 2 | U87: 1 | V87: 1 | W87: 1 | X87: 1 | Y87: 2 | AB87: 25
A88: 2022-03-23 | B88: 2022-03-23 | J88: 2 | K88: 2 | L88: 2 | M88: 2 | N88: 2 | O88: 1 | P88: 2 | Q88: 1 | R88: 2 | S88: 1 | T88: 2 | U88: 1 | V88: 1 | W88: 1 | X88: 1 | Y88: 2 | AB88: 25
A89: 2022-03-24 | B89: 2022-03-24 | J89: 2 | K89: 2 | L89: 2 | M89: 2 | N89: 2 | O89: 1 | P89: 2 | Q89: 1 | R89: 2 | S89: 1 | T89: 2 | U89: 1 | V89: 1 | W89: 1 | X89: 1 | Y89: 2 | AB89: 25
A90: 2022-03-25 | B90: 2022-03-25 | J90: 2 | K90: 2 | L90: 2 | M90: 2 | N90: 2 | O90: 1 | P90: 2 | Q90: 1 | R90: 2 | S90: 1 | T90: 2 | U90: 1 | V90: 1 | W90: 1 | X90: 1 | Y90: 2 | AB90: 25
A91: 2022-03-26 | B91: 2022-03-26 | J91: 1 | K91: 2 | L91: 2 | M91: 1 | N91: 2 | O91: 1 | P91: 1 | Q91: 1 | R91: 2 | S91: 1 | T91: 2 | U91: 1 | V91: 1 | W91: 2 | X91: 2 | Y91: 2 | AB91: 24
A92: 2022-03-27 | B92: 2022-03-27 | AB92: 0
A93: 2022-03-28 | B93: 2022-03-28 | J93: 2 | K93: 2 | L93: 2 | M93: 2 | N93: 2 | O93: 1 | P93: 2 | Q93: 1 | R93: 2 | S93: 1 | T93: 2 | U93: 1 | V93: 1 | W93: 1 | X93: 1 | Y93: 2 | AB93: 25
A94: 2022-03-29 | B94: 2022-03-29 | J94: 2 | K94: 2 | L94: 2 | M94: 2 | N94: 2 | O94: 1 | P94: 2 | Q94: 1 | R94: 2 | S94: 1 | T94: 2 | U94: 1 | V94: 1 | W94: 1 | X94: 1 | Y94: 2 | AB94: 25
A95: 2022-03-30 | B95: 2022-03-30 | J95: 2 | K95: 2 | L95: 2 | M95: 2 | N95: 2 | O95: 1 | P95: 2 | Q95: 1 | R95: 2 | S95: 1 | T95: 2 | U95: 1 | V95: 1 | W95: 1 | X95: 1 | Y95: 2 | AB95: 25
A96: 2022-03-31 | B96: 2022-03-31 | J96: 2 | K96: 2 | L96: 2 | M96: 2 | N96: 2 | O96: 1 | P96: 2 | Q96: 1 | R96: 2 | S96: 1 | T96: 2 | U96: 1 | V96: 1 | W96: 1 | X96: 1 | Y96: 2 | AB96: 25
A97: 2022-04-01 | B97: 2022-04-01 | J97: 2 | K97: 2 | L97: 2 | M97: 2 | N97: 2 | O97: 1 | P97: 2 | Q97: 1 | R97: 2 | S97: 1 | T97: 2 | U97: 1 | V97: 1 | W97: 1 | X97: 1 | Y97: 2 | AB97: 25
A98: 2022-04-02 | B98: 2022-04-02 | J98: 1 | K98: 2 | L98: 2 | M98: 1 | N98: 2 | O98: 1 | P98: 1 | Q98: 1 | R98: 2 | S98: 1 | T98: 2 | U98: 1 | V98: 1 | W98: 2 | X98: 2 | Y98: 2 | AB98: 24
A99: 2022-04-03 | B99: 2022-04-03 | AB99: 0
A100: 2022-04-04 | B100: 2022-04-04 | J100: 2 | K100: 2 | L100: 2 | M100: 2 | N100: 2 | O100: 1 | P100: 2 | Q100: 1 | R100: 2 | S100: 1 | T100: 2 | U100: 1 | V100: 1 | W100: 1 | X100: 1 | Y100: 2 | AB100: 25
A101: 2022-04-05 | B101: 2022-04-05 | J101: 2 | K101: 2 | L101: 2 | M101: 2 | N101: 2 | O101: 1 | P101: 2 | Q101: 1 | R101: 2 | S101: 1 | T101: 2 | U101: 1 | V101: 1 | W101: 1 | X101: 1 | Y101: 2 | AB101: 25
A102: 2022-04-06 | B102: 2022-04-06 | J102: 2 | K102: 2 | L102: 2 | M102: 2 | N102: 2 | O102: 1 | P102: 2 | Q102: 1 | R102: 2 | S102: 1 | T102: 2 | U102: 1 | V102: 1 | W102: 1 | X102: 1 | Y102: 2 | AB102: 25
A103: 2022-04-07 | B103: 2022-04-07 | J103: 2 | K103: 2 | L103: 2 | M103: 2 | N103: 2 | O103: 1 | P103: 2 | Q103: 1 | R103: 2 | S103: 1 | T103: 2 | U103: 1 | V103: 1 | W103: 1 | X103: 1 | Y103: 2 | AB103: 25
A104: 2022-04-08 | B104: 2022-04-08 | J104: 2 | K104: 2 | L104: 2 | M104: 2 | N104: 2 | O104: 1 | P104: 2 | Q104: 1 | R104: 2 | S104: 1 | T104: 2 | U104: 1 | V104: 1 | W104: 1 | X104: 1 | Y104: 2 | AB104: 25
A105: 2022-04-09 | B105: 2022-04-09 | J105: 1 | K105: 2 | L105: 2 | M105: 1 | N105: 2 | O105: 1 | P105: 1 | Q105: 1 | R105: 2 | S105: 1 | T105: 2 | U105: 1 | V105: 1 | W105: 2 | X105: 2 | Y105: 2 | AB105: 24
A106: 2022-04-10 | B106: 2022-04-10 | AB106: 0
A107: 2022-04-11 | B107: 2022-04-11 | J107: 2 | K107: 2 | L107: 2 | M107: 2 | N107: 2 | O107: 1 | P107: 2 | Q107: 1 | R107: 2 | S107: 1 | T107: 2 | U107: 1 | V107: 1 | W107: 1 | X107: 1 | Y107: 2 | AB107: 25
A108: 2022-04-12 | B108: 2022-04-12 | J108: 2 | K108: 2 | L108: 2 | M108: 2 | N108: 2 | O108: 1 | P108: 2 | Q108: 1 | R108: 2 | S108: 1 | T108: 2 | U108: 1 | V108: 1 | W108: 1 | X108: 1 | Y108: 2 | AB108: 25
A109: 2022-04-13 | B109: 2022-04-13 | J109: 2 | K109: 2 | L109: 2 | M109: 2 | N109: 2 | O109: 1 | P109: 2 | Q109: 1 | R109: 2 | S109: 1 | T109: 2 | U109: 1 | V109: 1 | W109: 1 | X109: 1 | Y109: 2 | AB109: 25
A110: 2022-04-14 | B110: 2022-04-14 | J110: 2 | K110: 2 | L110: 2 | M110: 2 | N110: 2 | O110: 1 | P110: 2 | Q110: 1 | R110: 2 | S110: 1 | T110: 2 | U110: 1 | V110: 1 | W110: 1 | X110: 1 | Y110: 2 | AB110: 25
A111: 2022-04-15 | B111: 2022-04-15 | J111: 2 | K111: 2 | L111: 2 | M111: 2 | N111: 2 | O111: 1 | P111: 2 | Q111: 1 | R111: 2 | S111: 1 | T111: 2 | U111: 1 | V111: 1 | W111: 1 | X111: 1 | Y111: 2 | AB111: 25
A112: 2022-04-16 | B112: 2022-04-16 | J112: 1 | K112: 2 | L112: 2 | M112: 1 | N112: 2 | O112: 1 | P112: 1 | Q112: 1 | R112: 2 | S112: 1 | T112: 2 | U112: 1 | V112: 1 | W112: 2 | X112: 2 | Y112: 2 | AB112: 24
A113: 2022-04-17 | B113: 2022-04-17 | AB113: 0
A114: 2022-04-18 | B114: 2022-04-18 | J114: 2 | K114: 2 | L114: 2 | M114: 2 | N114: 2 | O114: 1 | P114: 2 | Q114: 1 | R114: 2 | S114: 1 | T114: 2 | U114: 1 | V114: 1 | W114: 1 | X114: 1 | Y114: 2 | AB114: 25
A115: 2022-04-19 | B115: 2022-04-19 | J115: 2 | K115: 2 | L115: 2 | M115: 2 | N115: 2 | O115: 1 | P115: 2 | Q115: 1 | R115: 2 | S115: 1 | T115: 2 | U115: 1 | V115: 1 | W115: 1 | X115: 1 | Y115: 2 | AB115: 25
A116: 2022-04-20 | B116: 2022-04-20 | J116: 2 | K116: 2 | L116: 2 | M116: 2 | N116: 2 | O116: 1 | P116: 2 | Q116: 1 | R116: 2 | S116: 1 | T116: 2 | U116: 1 | V116: 1 | W116: 1 | X116: 1 | Y116: 2 | AB116: 25
A117: 2022-04-21 | B117: 2022-04-21 | J117: 2 | K117: 2 | L117: 2 | M117: 2 | N117: 2 | O117: 1 | P117: 2 | Q117: 1 | R117: 2 | S117: 1 | T117: 2 | U117: 1 | V117: 1 | W117: 1 | X117: 1 | Y117: 2 | AB117: 25
A118: 2022-04-22 | B118: 2022-04-22 | J118: 2 | K118: 2 | L118: 2 | M118: 2 | N118: 2 | O118: 1 | P118: 2 | Q118: 1 | R118: 2 | S118: 1 | T118: 2 | U118: 1 | V118: 1 | W118: 1 | X118: 1 | Y118: 2 | AB118: 25
A119: 2022-04-23 | B119: 2022-04-23 | J119: 1 | K119: 2 | L119: 2 | M119: 1 | N119: 2 | O119: 1 | P119: 1 | Q119: 1 | R119: 2 | S119: 1 | T119: 2 | U119: 1 | V119: 1 | W119: 2 | X119: 2 | Y119: 2 | AB119: 24
A120: 2022-04-24 | B120: 2022-04-24 | AB120: 0
A121: 2022-04-25 | B121: 2022-04-25 | J121: 2 | K121: 2 | L121: 2 | M121: 2 | N121: 2 | O121: 1 | P121: 2 | Q121: 1 | R121: 2 | S121: 1 | T121: 2 | U121: 1 | V121: 1 | W121: 1 | X121: 1 | Y121: 2 | AB121: 25
A122: 2022-04-26 | B122: 2022-04-26 | J122: 2 | K122: 2 | L122: 2 | M122: 2 | N122: 2 | O122: 1 | P122: 2 | Q122: 1 | R122: 2 | S122: 1 | T122: 2 | U122: 1 | V122: 1 | W122: 1 | X122: 1 | Y122: 2 | AB122: 25
A123: 2022-04-27 | B123: 2022-04-27 | J123: 2 | K123: 2 | L123: 2 | M123: 2 | N123: 2 | O123: 1 | P123: 2 | Q123: 1 | R123: 2 | S123: 1 | T123: 2 | U123: 1 | V123: 1 | W123: 1 | X123: 1 | Y123: 2 | AB123: 25
A124: 2022-04-28 | B124: 2022-04-28 | J124: 2 | K124: 2 | L124: 2 | M124: 2 | N124: 2 | O124: 1 | P124: 2 | Q124: 1 | R124: 2 | S124: 1 | T124: 2 | U124: 1 | V124: 1 | W124: 1 | X124: 1 | Y124: 2 | AB124: 25
A125: 2022-04-29 | B125: 2022-04-29 | J125: 2 | K125: 2 | L125: 2 | M125: 2 | N125: 2 | O125: 1 | P125: 2 | Q125: 1 | R125: 2 | S125: 1 | T125: 2 | U125: 1 | V125: 1 | W125: 1 | X125: 1 | Y125: 2 | AB125: 25
A126: 2022-04-30 | B126: 2022-04-30 | J126: 1 | K126: 2 | L126: 2 | M126: 1 | N126: 2 | O126: 1 | P126: 1 | Q126: 1 | R126: 2 | S126: 1 | T126: 2 | U126: 1 | V126: 1 | W126: 2 | X126: 2 | Y126: 2 | AB126: 24
A127: 2022-05-01 | B127: 2022-05-01 | AB127: 0
A128: 2022-05-02 | B128: 2022-05-02 | J128: 2 | K128: 2 | L128: 2 | M128: 2 | N128: 2 | O128: 1 | P128: 2 | Q128: 1 | R128: 2 | S128: 1 | T128: 2 | U128: 1 | V128: 1 | W128: 1 | X128: 1 | Y128: 2 | AB128: 25
A129: 2022-05-03 | B129: 2022-05-03 | J129: 2 | K129: 2 | L129: 2 | M129: 2 | N129: 2 | O129: 1 | P129: 2 | Q129: 1 | R129: 2 | S129: 1 | T129: 2 | U129: 1 | V129: 1 | W129: 1 | X129: 1 | Y129: 2 | AB129: 25
A130: 2022-05-04 | B130: 2022-05-04 | J130: 2 | K130: 2 | L130: 2 | M130: 2 | N130: 2 | O130: 1 | P130: 2 | Q130: 1 | R130: 2 | S130: 1 | T130: 2 | U130: 1 | V130: 1 | W130: 1 | X130: 1 | Y130: 2 | AB130: 25
A131: 2022-05-05 | B131: 2022-05-05 | J131: 2 | K131: 2 | L131: 2 | M131: 2 | N131: 2 | O131: 1 | P131: 2 | Q131: 1 | R131: 2 | S131: 1 | T131: 2 | U131: 1 | V131: 1 | W131: 1 | X131: 1 | Y131: 2 | AB131: 25
A132: 2022-05-06 | B132: 2022-05-06 | J132: 2 | K132: 2 | L132: 2 | M132: 2 | N132: 2 | O132: 1 | P132: 2 | Q132: 1 | R132: 2 | S132: 1 | T132: 2 | U132: 1 | V132: 1 | W132: 1 | X132: 1 | Y132: 2 | AB132: 25
A133: 2022-05-07 | B133: 2022-05-07 | J133: 1 | K133: 2 | L133: 2 | M133: 1 | N133: 2 | O133: 1 | P133: 1 | Q133: 1 | R133: 2 | S133: 1 | T133: 2 | U133: 1 | V133: 1 | W133: 2 | X133: 2 | Y133: 2 | AB133: 24
A134: 2022-05-08 | B134: 2022-05-08 | AB134: 0
A135: 2022-05-09 | B135: 2022-05-09 | J135: 2 | K135: 2 | L135: 2 | M135: 2 | N135: 2 | O135: 1 | P135: 2 | Q135: 1 | R135: 2 | S135: 1 | T135: 2 | U135: 1 | V135: 1 | W135: 1 | X135: 1 | Y135: 2 | AB135: 25
A136: 2022-05-10 | B136: =A136 -> 2022-05-10 | J136: 2 | K136: 2 | L136: 2 | M136: 2 | N136: 2 | O136: 1 | P136: 2 | Q136: 1 | R136: 2 | S136: 1 | T136: 2 | U136: 1 | V136: 1 | W136: 1 | X136: 1 | Y136: 2 | AB136: =SUM(C136:AA136) -> 25
A137: 2022-05-11 | B137: 2022-05-11 | J137: 2 | K137: 2 | L137: 2 | M137: 2 | N137: 2 | O137: 1 | P137: 2 | Q137: 1 | R137: 2 | S137: 1 | T137: 2 | U137: 1 | V137: 1 | W137: 1 | X137: 1 | Y137: 2 | AB137: 25
A138: 2022-05-12 | B138: 2022-05-12 | J138: 2 | K138: 2 | L138: 2 | M138: 2 | N138: 2 | O138: 1 | P138: 2 | Q138: 1 | R138: 2 | S138: 1 | T138: 2 | U138: 1 | V138: 1 | W138: 1 | X138: 1 | Y138: 2 | AB138: 25
A139: 2022-05-13 | B139: 2022-05-13 | J139: 2 | K139: 2 | L139: 2 | M139: 2 | N139: 2 | O139: 1 | P139: 2 | Q139: 1 | R139: 2 | S139: 1 | T139: 2 | U139: 1 | V139: 1 | W139: 1 | X139: 1 | Y139: 2 | AB139: 25
A140: 2022-05-14 | B140: 2022-05-14 | J140: 1 | K140: 2 | L140: 2 | M140: 1 | N140: 2 | O140: 1 | P140: 1 | Q140: 1 | R140: 2 | S140: 1 | T140: 2 | U140: 1 | V140: 1 | W140: 2 | X140: 2 | Y140: 2 | AB140: 24
A141: 2022-05-15 | B141: 2022-05-15 | AB141: 0
A142: 2022-05-16 | B142: 2022-05-16 | J142: 2 | K142: 2 | L142: 2 | M142: 2 | N142: 2 | O142: 1 | P142: 2 | Q142: 1 | R142: 2 | S142: 1 | T142: 2 | U142: 1 | V142: 1 | W142: 1 | X142: 1 | Y142: 2 | AB142: 25
A143: 2022-05-17 | B143: 2022-05-17 | J143: 2 | K143: 2 | L143: 2 | M143: 2 | N143: 2 | O143: 1 | P143: 2 | Q143: 1 | R143: 2 | S143: 1 | T143: 2 | U143: 1 | V143: 1 | W143: 1 | X143: 1 | Y143: 2 | AB143: 25
A144: 2022-05-18 | B144: 2022-05-18 | J144: 2 | K144: 2 | L144: 2 | M144: 2 | N144: 2 | O144: 1 | P144: 2 | Q144: 1 | R144: 2 | S144: 1 | T144: 2 | U144: 1 | V144: 1 | W144: 1 | X144: 1 | Y144: 2 | AB144: 25
A145: 2022-05-19 | B145: 2022-05-19 | J145: 2 | K145: 2 | L145: 2 | M145: 2 | N145: 2 | O145: 1 | P145: 2 | Q145: 1 | R145: 2 | S145: 1 | T145: 2 | U145: 1 | V145: 1 | W145: 1 | X145: 1 | Y145: 2 | AB145: 25
A146: 2022-05-20 | B146: 2022-05-20 | J146: 2 | K146: 2 | L146: 2 | M146: 2 | N146: 2 | O146: 1 | P146: 2 | Q146: 1 | R146: 2 | S146: 1 | T146: 2 | U146: 1 | V146: 1 | W146: 1 | X146: 1 | Y146: 2 | AB146: 25
A147: 2022-05-21 | B147: 2022-05-21 | J147: 1 | K147: 2 | L147: 2 | M147: 1 | N147: 2 | O147: 1 | P147: 1 | Q147: 1 | R147: 2 | S147: 1 | T147: 2 | U147: 1 | V147: 1 | W147: 2 | X147: 2 | Y147: 2 | AB147: 24
A148: 2022-05-22 | B148: 2022-05-22 | AB148: 0
A149: 2022-05-23 | B149: 2022-05-23 | J149: 2 | K149: 2 | L149: 2 | M149: 2 | N149: 2 | O149: 1 | P149: 2 | Q149: 1 | R149: 2 | S149: 1 | T149: 2 | U149: 1 | V149: 1 | W149: 1 | X149: 1 | Y149: 2 | AB149: 25
A150: 2022-05-24 | B150: 2022-05-24 | J150: 2 | K150: 2 | L150: 2 | M150: 2 | N150: 2 | O150: 1 | P150: 2 | Q150: 1 | R150: 2 | S150: 1 | T150: 2 | U150: 1 | V150: 1 | W150: 1 | X150: 1 | Y150: 2 | AB150: 25
A151: 2022-05-25 | B151: 2022-05-25 | J151: 2 | K151: 2 | L151: 2 | M151: 2 | N151: 2 | O151: 1 | P151: 2 | Q151: 1 | R151: 2 | S151: 1 | T151: 2 | U151: 1 | V151: 1 | W151: 1 | X151: 1 | Y151: 2 | AB151: 25
A152: 2022-05-26 | B152: 2022-05-26 | J152: 2 | K152: 2 | L152: 2 | M152: 2 | N152: 2 | O152: 1 | P152: 2 | Q152: 1 | R152: 2 | S152: 1 | T152: 2 | U152: 1 | V152: 1 | W152: 1 | X152: 1 | Y152: 2 | AB152: 25
A153: 2022-05-27 | B153: 2022-05-27 | J153: 2 | K153: 2 | L153: 2 | M153: 2 | N153: 2 | O153: 1 | P153: 2 | Q153: 1 | R153: 2 | S153: 1 | T153: 2 | U153: 1 | V153: 1 | W153: 1 | X153: 1 | Y153: 2 | AB153: 25
A154: 2022-05-28 | B154: 2022-05-28 | J154: 1 | K154: 2 | L154: 2 | M154: 1 | N154: 2 | O154: 1 | P154: 1 | Q154: 1 | R154: 2 | S154: 1 | T154: 2 | U154: 1 | V154: 1 | W154: 2 | X154: 2 | Y154: 2 | AB154: 24
A155: 2022-05-29 | B155: 2022-05-29 | AB155: 0
A156: 2022-05-30 | B156: 2022-05-30 | J156: 2 | K156: 2 | L156: 2 | M156: 2 | N156: 2 | O156: 1 | P156: 2 | Q156: 1 | R156: 2 | S156: 1 | T156: 2 | U156: 1 | V156: 1 | W156: 1 | X156: 1 | Y156: 2 | AB156: 25
A157: 2022-05-31 | B157: 2022-05-31 | J157: 2 | K157: 2 | L157: 2 | M157: 2 | N157: 2 | O157: 1 | P157: 2 | Q157: 1 | R157: 2 | S157: 1 | T157: 2 | U157: 1 | V157: 1 | W157: 1 | X157: 1 | Y157: 2 | AB157: 25
A158: 2022-06-01 | B158: 2022-06-01 | J158: 2 | K158: 2 | L158: 2 | M158: 2 | N158: 2 | O158: 1 | P158: 2 | Q158: 1 | R158: 2 | S158: 1 | T158: 2 | U158: 1 | V158: 1 | W158: 1 | X158: 1 | Y158: 2 | AB158: 25
A159: 2022-06-02 | B159: 2022-06-02 | J159: 2 | K159: 2 | L159: 2 | M159: 2 | N159: 2 | O159: 1 | P159: 2 | Q159: 1 | R159: 2 | S159: 1 | T159: 2 | U159: 1 | V159: 1 | W159: 1 | X159: 1 | Y159: 2 | AB159: 25
A160: 2022-06-03 | B160: 2022-06-03 | J160: 2 | K160: 2 | L160: 2 | M160: 2 | N160: 2 | O160: 1 | P160: 2 | Q160: 1 | R160: 2 | S160: 1 | T160: 2 | U160: 1 | V160: 1 | W160: 1 | X160: 1 | Y160: 2 | AB160: 25
A161: 2022-06-04 | B161: 2022-06-04 | J161: 1 | K161: 2 | L161: 2 | M161: 1 | N161: 2 | O161: 1 | P161: 1 | Q161: 1 | R161: 2 | S161: 1 | T161: 2 | U161: 1 | V161: 1 | W161: 2 | X161: 2 | Y161: 2 | AB161: 24
A162: 2022-06-05 | B162: 2022-06-05 | AB162: 0
A163: 2022-06-06 | B163: 2022-06-06 | J163: 2 | K163: 2 | L163: 2 | M163: 2 | N163: 2 | O163: 1 | P163: 2 | Q163: 1 | R163: 2 | S163: 1 | T163: 2 | U163: 1 | V163: 1 | W163: 1 | X163: 1 | Y163: 2 | AB163: 25
A164: 2022-06-07 | B164: 2022-06-07 | J164: 2 | K164: 2 | L164: 2 | M164: 2 | N164: 2 | O164: 1 | P164: 2 | Q164: 1 | R164: 2 | S164: 1 | T164: 2 | U164: 1 | V164: 1 | W164: 1 | X164: 1 | Y164: 2 | AB164: 25
A165: 2022-06-08 | B165: 2022-06-08 | J165: 2 | K165: 2 | L165: 2 | M165: 2 | N165: 2 | O165: 1 | P165: 2 | Q165: 1 | R165: 2 | S165: 1 | T165: 2 | U165: 1 | V165: 1 | W165: 1 | X165: 1 | Y165: 2 | AB165: 25
A166: 2022-06-09 | B166: 2022-06-09 | J166: 2 | K166: 2 | L166: 2 | M166: 2 | N166: 2 | O166: 1 | P166: 2 | Q166: 1 | R166: 2 | S166: 1 | T166: 2 | U166: 1 | V166: 1 | W166: 1 | X166: 1 | Y166: 2 | AB166: 25
A167: 2022-06-10 | B167: 2022-06-10 | J167: 2 | K167: 2 | L167: 2 | M167: 2 | N167: 2 | O167: 1 | P167: 2 | Q167: 1 | R167: 2 | S167: 1 | T167: 2 | U167: 1 | V167: 1 | W167: 1 | X167: 1 | Y167: 2 | AB167: 25
A168: 2022-06-11 | B168: 2022-06-11 | J168: 1 | K168: 2 | L168: 2 | M168: 1 | N168: 2 | O168: 1 | P168: 1 | Q168: 1 | R168: 2 | S168: 1 | T168: 2 | U168: 1 | V168: 1 | W168: 2 | X168: 2 | Y168: 2 | AB168: 24
A169: 2022-06-12 | B169: 2022-06-12 | AB169: 0
A170: 2022-06-13 | B170: 2022-06-13 | J170: 2 | K170: 2 | L170: 2 | M170: 2 | N170: 2 | O170: 1 | P170: 2 | Q170: 1 | R170: 2 | S170: 1 | T170: 2 | U170: 1 | V170: 1 | W170: 1 | X170: 1 | Y170: 2 | AB170: 25
A171: 2022-06-14 | B171: 2022-06-14 | J171: 2 | K171: 2 | L171: 2 | M171: 2 | N171: 2 | O171: 1 | P171: 2 | Q171: 1 | R171: 2 | S171: 1 | T171: 2 | U171: 1 | V171: 1 | W171: 1 | X171: 1 | Y171: 2 | AB171: 25
A172: 2022-06-15 | B172: 2022-06-15 | J172: 2 | K172: 2 | L172: 2 | M172: 2 | N172: 2 | O172: 1 | P172: 2 | Q172: 1 | R172: 2 | S172: 1 | T172: 2 | U172: 1 | V172: 1 | W172: 1 | X172: 1 | Y172: 2 | AB172: 25
A173: 2022-06-16 | B173: 2022-06-16 | J173: 2 | K173: 2 | L173: 2 | M173: 2 | N173: 2 | O173: 1 | P173: 2 | Q173: 1 | R173: 2 | S173: 1 | T173: 2 | U173: 1 | V173: 1 | W173: 1 | X173: 1 | Y173: 2 | AB173: 25
A174: 2022-06-17 | B174: 2022-06-17 | J174: 2 | K174: 2 | L174: 2 | M174: 2 | N174: 2 | O174: 1 | P174: 2 | Q174: 1 | R174: 2 | S174: 1 | T174: 2 | U174: 1 | V174: 1 | W174: 1 | X174: 1 | Y174: 2 | AB174: 25
A175: 2022-06-18 | B175: 2022-06-18 | J175: 1 | K175: 2 | L175: 2 | M175: 1 | N175: 2 | O175: 1 | P175: 1 | Q175: 1 | R175: 2 | S175: 1 | T175: 2 | U175: 1 | V175: 1 | W175: 2 | X175: 2 | Y175: 2 | AB175: 24
A176: 2022-06-19 | B176: 2022-06-19 | AB176: 0
A177: 2022-06-20 | B177: 2022-06-20 | J177: 2 | K177: 2 | L177: 2 | M177: 2 | N177: 2 | O177: 1 | P177: 2 | Q177: 1 | R177: 2 | S177: 1 | T177: 2 | U177: 1 | V177: 1 | W177: 1 | X177: 1 | Y177: 2 | AB177: 25
A178: 2022-06-21 | B178: 2022-06-21 | J178: 2 | K178: 2 | L178: 2 | M178: 2 | N178: 2 | O178: 1 | P178: 2 | Q178: 1 | R178: 2 | S178: 1 | T178: 2 | U178: 1 | V178: 1 | W178: 1 | X178: 1 | Y178: 2 | AB178: 25
A179: 2022-06-22 | B179: 2022-06-22 | J179: 2 | K179: 2 | L179: 2 | M179: 2 | N179: 2 | O179: 1 | P179: 2 | Q179: 1 | R179: 2 | S179: 1 | T179: 2 | U179: 1 | V179: 1 | W179: 1 | X179: 1 | Y179: 2 | AB179: 25
A180: 2022-06-23 | B180: 2022-06-23 | J180: 2 | K180: 2 | L180: 2 | M180: 2 | N180: 2 | O180: 1 | P180: 2 | Q180: 1 | R180: 2 | S180: 1 | T180: 2 | U180: 1 | V180: 1 | W180: 1 | X180: 1 | Y180: 2 | AB180: 25
A181: 2022-06-24 | B181: 2022-06-24 | J181: 2 | K181: 2 | L181: 2 | M181: 2 | N181: 2 | O181: 1 | P181: 2 | Q181: 1 | R181: 2 | S181: 1 | T181: 2 | U181: 1 | V181: 1 | W181: 1 | X181: 1 | Y181: 2 | AB181: 25
A182: 2022-06-25 | B182: 2022-06-25 | J182: 1 | K182: 2 | L182: 2 | M182: 1 | N182: 2 | O182: 1 | P182: 1 | Q182: 1 | R182: 2 | S182: 1 | T182: 2 | U182: 1 | V182: 1 | W182: 2 | X182: 2 | Y182: 2 | AB182: 24
A183: 2022-06-26 | B183: 2022-06-26 | AB183: 0
A184: 2022-06-27 | B184: 2022-06-27 | J184: 2 | K184: 2 | L184: 2 | M184: 2 | N184: 2 | O184: 1 | P184: 2 | Q184: 1 | R184: 2 | S184: 1 | T184: 2 | U184: 1 | V184: 1 | W184: 1 | X184: 1 | Y184: 2 | AB184: 25
A185: 2022-06-28 | B185: 2022-06-28 | J185: 2 | K185: 2 | L185: 2 | M185: 2 | N185: 2 | O185: 1 | P185: 2 | Q185: 1 | R185: 2 | S185: 1 | T185: 2 | U185: 1 | V185: 1 | W185: 1 | X185: 1 | Y185: 2 | AB185: 25
A186: 2022-06-29 | B186: 2022-06-29 | J186: 2 | K186: 2 | L186: 2 | M186: 2 | N186: 2 | O186: 1 | P186: 2 | Q186: 1 | R186: 2 | S186: 1 | T186: 2 | U186: 1 | V186: 1 | W186: 1 | X186: 1 | Y186: 2 | AB186: 25
A187: 2022-06-30 | B187: 2022-06-30 | J187: 2 | K187: 2 | L187: 2 | M187: 2 | N187: 2 | O187: 1 | P187: 2 | Q187: 1 | R187: 2 | S187: 1 | T187: 2 | U187: 1 | V187: 1 | W187: 1 | X187: 1 | Y187: 2 | AB187: 25
A188: 2022-07-01 | B188: 2022-07-01 | J188: 2 | K188: 2 | L188: 2 | M188: 2 | N188: 2 | O188: 1 | P188: 2 | Q188: 1 | R188: 2 | S188: 1 | T188: 2 | U188: 1 | V188: 1 | W188: 1 | X188: 1 | Y188: 2 | AB188: 25
A189: 2022-07-02 | B189: 2022-07-02 | J189: 1 | K189: 2 | L189: 2 | M189: 1 | N189: 2 | O189: 1 | P189: 1 | Q189: 1 | R189: 2 | S189: 1 | T189: 2 | U189: 1 | V189: 1 | W189: 2 | X189: 2 | Y189: 2 | AB189: 24
A190: 2022-07-03 | B190: 2022-07-03 | AB190: 0
A191: 2022-07-04 | B191: 2022-07-04 | J191: 2 | K191: 2 | L191: 2 | M191: 2 | N191: 2 | O191: 1 | P191: 2 | Q191: 1 | R191: 2 | S191: 1 | T191: 2 | U191: 1 | V191: 1 | W191: 1 | X191: 1 | Y191: 2 | AB191: 25
A192: 2022-07-05 | B192: 2022-07-05 | J192: 2 | K192: 2 | L192: 2 | M192: 2 | N192: 2 | O192: 1 | P192: 2 | Q192: 1 | R192: 2 | S192: 1 | T192: 2 | U192: 1 | V192: 1 | W192: 1 | X192: 1 | Y192: 2 | AB192: 25
A193: 2022-07-06 | B193: 2022-07-06 | J193: 2 | K193: 2 | L193: 2 | M193: 2 | N193: 2 | O193: 1 | P193: 2 | Q193: 1 | R193: 2 | S193: 1 | T193: 2 | U193: 1 | V193: 1 | W193: 1 | X193: 1 | Y193: 2 | AB193: 25
A194: 2022-07-07 | B194: 2022-07-07 | J194: 2 | K194: 2 | L194: 2 | M194: 2 | N194: 2 | O194: 1 | P194: 2 | Q194: 1 | R194: 2 | S194: 1 | T194: 2 | U194: 1 | V194: 1 | W194: 1 | X194: 1 | Y194: 2 | AB194: 25
A195: 2022-07-08 | B195: 2022-07-08 | J195: 2 | K195: 2 | L195: 2 | M195: 2 | N195: 2 | O195: 1 | P195: 2 | Q195: 1 | R195: 2 | S195: 1 | T195: 2 | U195: 1 | V195: 1 | W195: 1 | X195: 1 | Y195: 2 | AB195: 25
A196: 2022-07-09 | B196: 2022-07-09 | J196: 1 | K196: 2 | L196: 2 | M196: 1 | N196: 2 | O196: 1 | P196: 1 | Q196: 1 | R196: 2 | S196: 1 | T196: 2 | U196: 1 | V196: 1 | W196: 2 | X196: 2 | Y196: 2 | AB196: 24
A197: 2022-07-10 | B197: 2022-07-10 | AB197: 0
A198: 2022-07-11 | B198: 2022-07-11 | J198: 2 | K198: 2 | L198: 2 | M198: 2 | N198: 2 | O198: 1 | P198: 2 | Q198: 1 | R198: 2 | S198: 1 | T198: 2 | U198: 1 | V198: 1 | W198: 1 | X198: 1 | Y198: 2 | AB198: 25
A199: 2022-07-12 | B199: 2022-07-12 | J199: 2 | K199: 2 | L199: 2 | M199: 2 | N199: 2 | O199: 1 | P199: 2 | Q199: 1 | R199: 2 | S199: 1 | T199: 2 | U199: 1 | V199: 1 | W199: 1 | X199: 1 | Y199: 2 | AB199: 25
A200: 2022-07-13 | B200: =A200 -> 2022-07-13 | J200: 2 | K200: 2 | L200: 2 | M200: 2 | N200: 2 | O200: 1 | P200: 2 | Q200: 1 | R200: 2 | S200: 1 | T200: 2 | U200: 1 | V200: 1 | W200: 1 | X200: 1 | Y200: 2 | AB200: =SUM(C200:AA200) -> 25
A201: 2022-07-14 | B201: 2022-07-14 | J201: 2 | K201: 2 | L201: 2 | M201: 2 | N201: 2 | O201: 1 | P201: 2 | Q201: 1 | R201: 2 | S201: 1 | T201: 2 | U201: 1 | V201: 1 | W201: 1 | X201: 1 | Y201: 2 | AB201: 25
A202: 2022-07-15 | B202: 2022-07-15 | J202: 2 | K202: 2 | L202: 2 | M202: 2 | N202: 2 | O202: 1 | P202: 2 | Q202: 1 | R202: 2 | S202: 1 | T202: 2 | U202: 1 | V202: 1 | W202: 1 | X202: 1 | Y202: 2 | AB202: 25
A203: 2022-07-16 | B203: 2022-07-16 | J203: 1 | K203: 2 | L203: 2 | M203: 1 | N203: 2 | O203: 1 | P203: 1 | Q203: 1 | R203: 2 | S203: 1 | T203: 2 | U203: 1 | V203: 1 | W203: 2 | X203: 2 | Y203: 2 | AB203: 24
... 168 more rows
